Service Area,Service Division,Expense Type,Expense Code,Detailed Expense Type,Payment Date,Transaction Number,Amount Exc Vat,Supplier Name
Assistant Chief Executive,Partnerships & Community Engagement Div.,Cap Exp on Grants & Other Financial Assistance (REFCUS),918004,Contributions to other bodies,01-Dec-2015,3057532-VOUCHER15AB,"1,000.00",BOWES & GILMONBY VILLAGE HALL ASSOCIATION.
Assistant Chief Executive,Partnerships & Community Engagement Div.,Cap Exp on Grants & Other Financial Assistance (REFCUS),918004,Contributions to other bodies,01-Dec-2015,3057575-VOUCHER14AB,"1,165.00",EASTLEA COMMUNITY ASSOCIATION.
Assistant Chief Executive,Partnerships & Community Engagement Div.,Cap Exp on Grants & Other Financial Assistance (REFCUS),918004,Contributions to other bodies,01-Dec-2015,3057595-VOUCHER14AB,"1,652.95",FREE THE WAY.
Assistant Chief Executive,Partnerships & Community Engagement Div.,Cap Exp on Grants & Other Financial Assistance (REFCUS),918401,Capital grants,01-Dec-2015,3057623-INS9-DCCCONTRIBUTION,"9,120.00",HORDEN YOUTH & COMMUNITY ASSOCIATION.
Assistant Chief Executive,Partnerships & Community Engagement Div.,Cap Exp on Grants & Other Financial Assistance (REFCUS),918004,Contributions to other bodies,01-Dec-2015,3057756-VOUCHER14AB,"1,358.96",SHOTTON & DISTRICT COMMUNITY ASSOCIATION.
Assistant Chief Executive,Partnerships & Community Engagement Div.,Cap Exp on Grants & Other Financial Assistance (REFCUS),918004,Contributions to other bodies,01-Dec-2015,3057782-VOUCHER14AB,"3,000.00",THE HAZELWELL CENTRE.
Assistant Chief Executive,Partnerships & Community Engagement Div.,Cap Exp on Grants & Other Financial Assistance (REFCUS),918004,Contributions to other bodies,01-Dec-2015,3057812-VOUCHER14AB,"1,765.00",WHEATLEY HILL COMMUNITY ASSOCIATION.
Children and Adult Services,Childrens Services,Third Party Payments,440001,Other Third Party Payments,01-Dec-2015,3056848-1068610,536.22,REDACTED - PAYMENT TO INDIVIDUAL
Children and Adult Services,Childrens Services,Third Party Payments,440001,Other Third Party Payments,01-Dec-2015,3056848-1068611,613.36,REDACTED - PAYMENT TO INDIVIDUAL
Children and Adult Services,Childrens Services,Third Party Payments,440001,Other Third Party Payments,01-Dec-2015,3057063-1068606,636.16,REDACTED - PAYMENT TO INDIVIDUAL
Children and Adult Services,Childrens Services,Third Party Payments,440001,Other Third Party Payments,01-Dec-2015,3057063-1068607,636.16,REDACTED - PAYMENT TO INDIVIDUAL
Children and Adult Services,Childrens Services,Third Party Payments,440001,Other Third Party Payments,01-Dec-2015,3057106-1069396,589.02,REDACTED - PAYMENT TO INDIVIDUAL
Children and Adult Services,Childrens Services,Third Party Payments,440001,Other Third Party Payments,01-Dec-2015,3057106-1069397,622.50,REDACTED - PAYMENT TO INDIVIDUAL
Children and Adult Services,Childrens Services,Third Party Payments,440001,Other Third Party Payments,01-Dec-2015,3057125-1068812,536.22,REDACTED - PAYMENT TO INDIVIDUAL
Children and Adult Services,Childrens Services,Third Party Payments,440001,Other Third Party Payments,01-Dec-2015,3057135-1069403,540.00,REDACTED - PAYMENT TO INDIVIDUAL
Children and Adult Services,Childrens Services,Third Party Payments,440001,Other Third Party Payments,01-Dec-2015,3057177-1068710,625.94,REDACTED - PAYMENT TO INDIVIDUAL
Children and Adult Services,Childrens Services,Third Party Payments,440001,Other Third Party Payments,01-Dec-2015,3057177-1068711,708.88,REDACTED - PAYMENT TO INDIVIDUAL
Children and Adult Services,Childrens Services,Third Party Payments,440001,Other Third Party Payments,01-Dec-2015,3057177-1068712,625.94,REDACTED - PAYMENT TO INDIVIDUAL
Children and Adult Services,Childrens Services,Third Party Payments,440001,Other Third Party Payments,01-Dec-2015,3057348-1069401,540.00,REDACTED - PAYMENT TO INDIVIDUAL
Children and Adult Services,Childrens Services,Third Party Payments,440001,Other Third Party Payments,01-Dec-2015,3057348-1069402,540.00,REDACTED - PAYMENT TO INDIVIDUAL
Children and Adult Services,Education,Supplies and Services,304040,Equipment and Materials,01-Dec-2015,3057500-INV-0053,820.00,ASSOCIATION OF ADULT EDUCATION & TRAINING ORGANISATION T/A HOLEX.
Children and Adult Services,Education,Transport,230007,Contract Hire,01-Dec-2015,3057501-DCC5NOV15,630.00,ATLAS TAXIS BISHOP AUCKLAND.
Children and Adult Services,Planning & Service Strategy,Supplies and Services,384540,Miscellaneous Expenses,01-Dec-2015,3057505-361941,"1,031.32",BAUER RADIO LTD.
Children and Adult Services,Public Health,Third Party Payments,460802,Contract Payments,01-Dec-2015,3057525-FYR53/OCT2015/EOHC,"2,686.01",BOOTS THE CHEMISTS LTD.
Children and Adult Services,Public Health,Third Party Payments,460802,Contract Payments,01-Dec-2015,3057527-FKP88/OCT2015/EOHC,"1,140.96",BOOTS THE CHEMISTS LTD.
Children and Adult Services,Public Health,Third Party Payments,460802,Contract Payments,01-Dec-2015,3057529-FQG19/OCT2015/EOHC,570.48,BOOTS THE CHEMISTS LTD.
Children and Adult Services,Childrens Services,Supplies and Services,364358,Grants to Voluntary Organisations,01-Dec-2015,3057540-CAS-11-2015-123,510.71,REDACTED - PAYMENT TO INDIVIDUAL
Children and Adult Services,Childrens Services,Employees,080025,Agency Staff,01-Dec-2015,3057544-2316112,"1,160.00",CELSIAN.
Children and Adult Services,Education,Transport,230005,Contract Hire,01-Dec-2015,3057569-DCT-14-15,"1,299.00",DUNCAN G CUMMINGS T/A DC TAXIS.
Children and Adult Services,Education,Third Party Payments,440999,Other Third Party Payments,01-Dec-2015,3057586-4426,"3,907.50",FANE LTD.
Children and Adult Services,Childrens Services,Premises,125009,Rents,01-Dec-2015,3057628-CAS-11-2015-121,"8,347.68",ISOS HOUSING LTD FORMERLY NOMADE5 HOUSING GROUP LTD.
Children and Adult Services,Head of Adults,Transport,230005,Contract Hire,01-Dec-2015,3057681-MCD11412,"1,025.00",MCDONALD TRAVEL.
Children and Adult Services,Education,Third Party Payments,440999,Other Third Party Payments,01-Dec-2015,3057706-93,"14,776.74",NORTHERN RIGHTS COMMUNITY INTEREST COMPANY (CIC)..
Children and Adult Services,Head of Adults,Supplies and Services,304259,Equipment and Materials,01-Dec-2015,3057714-558207,"1,600.00",P & N ASSOCIATES LTD.
Children and Adult Services,Childrens Services,Employees,080025,Agency Staff,01-Dec-2015,3057725-20975,"1,100.00",PK EDUCATION.
Children and Adult Services,Childrens Services,Employees,080025,Agency Staff,01-Dec-2015,3057725-21106,"1,100.00",PK EDUCATION.
Children and Adult Services,Childrens Services,Supplies and Services,384302,Miscellaneous Expenses,01-Dec-2015,3057734-CAS-11-2015-107,596.10,RAB OUTDOOR EDUCATION LTD.
Children and Adult Services,Childrens Services,Employees,080025,Agency Staff,01-Dec-2015,3057739-0228816336,585.00,REED MANAGED SERVICES LTD.
Children and Adult Services,Childrens Services,Supplies and Services,384491,Miscellaneous Expenses,01-Dec-2015,3057768-11588,528.00,SUNSHINE DAY NURSERY.
Children and Adult Services,Childrens Services,Third Party Payments,440037,Other Third Party Payments,01-Dec-2015,3057787-SI-630,512.00,TM NURSERY ENTERPRISES LTD T/A JACK IN THE BOX DAYCARE.
Children and Adult Services,Education,Transport,230005,Contract Hire,01-Dec-2015,3057794-74,"1,496.00",TRIDENT TAXIS.
Children and Adult Services,Childrens Services,Third Party Payments,440037,Other Third Party Payments,01-Dec-2015,3057813-CAS-11-2015-114,912.00,WHEATLEY HILL COMMUNITY NURSERY LTD.
Neighbourhood Services,Culture & Sport,Employees,080025,Agency Staff,01-Dec-2015,3057639-GALA2015NOV,740.00,JOHN MURDOCH.
Neighbourhood Services,Direct Services,Premises,150015,Apportioned Exps of Operational Blds,01-Dec-2015,3057808-464197,775.00,WERNICK HIRE LTD.
Neighbourhood Services,Direct Services,Transport,210057,Repair and Maintenance of Vehicles,01-Dec-2015,3057561-114855,507.64,DAVID DIXON GARDEN MACHINERY CENTRE.
Neighbourhood Services,Direct Services,Transport,210057,Repair and Maintenance of Vehicles,01-Dec-2015,3057598-216363625,500.00,FUCHS LUBRICANTS (UK) PLC.
Neighbourhood Services,Direct Services,Transport,210057,Repair and Maintenance of Vehicles,01-Dec-2015,3057620-234170,"1,250.00",HL SMITH (TRANSMISSIONS) LTD.
Neighbourhood Services,Direct Services,Transport,215005,Running Costs of Vehicles,01-Dec-2015,3057617-554567,"15,865.85",HARVEST ENERGY LTD.
Neighbourhood Services,Technical Services,Supplies and Services,304221,Equipment and Materials,01-Dec-2015,3057484-22278346,"1,474.02",AGGREGATE INDUSTRIES UK LTD.
Neighbourhood Services,Technical Services,Supplies and Services,304221,Equipment and Materials,01-Dec-2015,3057484-22322695,"1,158.09",AGGREGATE INDUSTRIES UK LTD.
Neighbourhood Services,Technical Services,Supplies and Services,304221,Equipment and Materials,01-Dec-2015,3057484-22322696,"1,617.92",AGGREGATE INDUSTRIES UK LTD.
Neighbourhood Services,Technical Services,Supplies and Services,304221,Equipment and Materials,01-Dec-2015,3057484-22322697,780.96,AGGREGATE INDUSTRIES UK LTD.
Neighbourhood Services,Direct Services,Supplies and Services,304221,Equipment and Materials,01-Dec-2015,3057617-558444,763.47,HARVEST ENERGY LTD.
Neighbourhood Services,Technical Services,Supplies and Services,304221,Equipment and Materials,01-Dec-2015,3057643-BII168988,709.20,JT DOVE LTD.
Neighbourhood Services,Technical Services,Supplies and Services,304221,Equipment and Materials,01-Dec-2015,3057643-BII169130,725.25,JT DOVE LTD.
Neighbourhood Services,Culture & Sport,Supplies and Services,304221,Equipment and Materials,01-Dec-2015,3057675-ST15-26,"2,466.50",MARK WALSH.
Neighbourhood Services,Technical Services,Supplies and Services,304221,Equipment and Materials,01-Dec-2015,3057737-I-000709,"4,577.00",READMAN FABRICATIONS LTD.
Neighbourhood Services,Technical Services,Supplies and Services,304221,Equipment and Materials,01-Dec-2015,3057765-076737,"1,308.52",STONEGRAVE AGGREGATES LTD.
Neighbourhood Services,Culture & Sport,Supplies and Services,304259,Equipment and Materials,01-Dec-2015,3057684-150282,"1,750.00",MIKE AYRES DESIGN LTD.
Neighbourhood Services,Technical Services,Supplies and Services,342215,Computers and Communications,01-Dec-2015,3057790-30396,"3,207.40",TRACKYOU LTD.
Neighbourhood Services,Direct Services,Supplies and Services,384194,Miscellaneous Expenses,01-Dec-2015,3057702-48958,"2,375.00",NIRAMAX GROUP LTD.
Neighbourhood Services,Direct Services,Third Party Payments,430100,Rendered by Private Contractors,01-Dec-2015,3057507-INV/5376,552.00,BELL CONTROL SOLUTIONS LTD.
Neighbourhood Services,Direct Services,Third Party Payments,430100,Rendered by Private Contractors,01-Dec-2015,3057543-140,769.72,CEILINGS DIRECT LTD.
Neighbourhood Services,Direct Services,Third Party Payments,430100,Rendered by Private Contractors,01-Dec-2015,3057615-1,"2,880.00",HALLS OF EASINGTON.
Neighbourhood Services,Direct Services,Third Party Payments,430100,Rendered by Private Contractors,01-Dec-2015,3057621-61368,752.22,HOGARTH COACHWORKS LTD.
Neighbourhood Services,Technical Services,Third Party Payments,430100,Rendered by Private Contractors,01-Dec-2015,3057682-252,998.40,MICHAEL KELLY.
Neighbourhood Services,Direct Services,Third Party Payments,430100,Rendered by Private Contractors,01-Dec-2015,3057707-IW02527658,"1,663.96",NORTHGATE VEHICLE HIRE LTD.
Neighbourhood Services,Direct Services,Third Party Payments,430100,Rendered by Private Contractors,01-Dec-2015,3057714-558188,557.00,P & N ASSOCIATES LTD.
Neighbourhood Services,Direct Services,Third Party Payments,430100,Rendered by Private Contractors,01-Dec-2015,3057714-558219,557.00,P & N ASSOCIATES LTD.
Neighbourhood Services,Direct Services,Third Party Payments,430100,Rendered by Private Contractors,01-Dec-2015,3057714-558234,781.00,P & N ASSOCIATES LTD.
Neighbourhood Services,Technical Services,Third Party Payments,430100,Rendered by Private Contractors,01-Dec-2015,3057735-2580/151045,"39,432.10",RAINTON CONSTRUCTION LTD.
Neighbourhood Services,Technical Services,Third Party Payments,430100,Rendered by Private Contractors,01-Dec-2015,3057735-2580/151047,"37,025.01",RAINTON CONSTRUCTION LTD.
Neighbourhood Services,Direct Services,Third Party Payments,430100,Rendered by Private Contractors,01-Dec-2015,3057775-17212,775.00,TEAM VALLEY TRANSMISSIONS LTD.
Neighbourhood Services,Projects and Business services,Construction Work,908105,Construction work,01-Dec-2015,3057640,"29,547.98",JOHN WADE (HAULAGE) LTD.
Neighbourhood Services,Direct Services,Stock,926004,Stock,01-Dec-2015,3057821-99081,722.64,ZOELLER WASTE SYSTEMS LTD.
Neighbourhood Services,Direct Services,Stock,926004,Stock,01-Dec-2015,3057821-99082,"1,330.32",ZOELLER WASTE SYSTEMS LTD.
Resources,Financial Services,Transfer Payments,520002,Housing Benefits,01-Dec-2015,3057574-82231,"2,009.59",EAST DURHAM HOMES.
Resources,Legal & Democratic Services,Creditors,952238,Chairmans Charity,01-Dec-2015,3057588-RES-11-2015-103,"9,477.04",FINCHALE TRAINING COLLEGE.
Resources,Legal & Democratic Services,Supplies and Services,384199,Miscellaneous Expenses,01-Dec-2015,3057744-21097,720.00,ROADSAFE CORPORATE GROUP LTD.
Resources,Legal & Democratic Services,Supplies and Services,338025,Services,01-Dec-2015,3057766-5653,510.00,STUART WRIGHT FUNERAL SERVICE LTD.
Assistant Chief Executive,Partnerships & Community Engagement Div.,Supplies and Services,332047,Printing Stationery and Gen Off Exps,02-Dec-2015,3058210-24988,979.60,CRE8IVE GRAPHICS.
Assistant Chief Executive,Partnerships & Community Engagement Div.,Transfer Payments,525030,Other,02-Dec-2015,3058232-NOV15/01,"54,312.63",DURHAM COMMUNITY ACTION LTD.
Assistant Chief Executive,Partnerships & Community Engagement Div.,Supplies and Services,364999,Grants to Voluntary Organisations,02-Dec-2015,3058232-NOV15/02,"27,500.00",DURHAM COMMUNITY ACTION LTD.
Assistant Chief Executive,Partnerships & Community Engagement Div.,Cap Exp on Grants & Other Financial Assistance (REFCUS),918004,Contributions to other bodies,02-Dec-2015,3058472-VOUCHER15NB,"2,000.00",THRISLINGTON BANNER GROUP.
Children and Adult Services,Childrens Services,Supplies and Services,364352,Grants to Voluntary Organisations,02-Dec-2015,301685-623,700.00,CITY OF SUNDERLAND YMCA LTD.
Children and Adult Services,Head of Adults,Supplies and Services,384199,Miscellaneous Expenses,02-Dec-2015,301687-JOB001/17996,"1,125.00",COLIN JOBLING T/A RAINBOW INTERNATIONAL.
Children and Adult Services,Education,Transport,230006,Contract Hire,02-Dec-2015,301688-10/15615,841.00,COLLINS TAXIS.
Children and Adult Services,Education,Transport,230005,Contract Hire,02-Dec-2015,301716-INV-90,"1,111.50",REDACTED - PAYMENT TO INDIVIDUAL
Children and Adult Services,Head of Adults,Third Party Payments,478101,Purchase of Care,02-Dec-2015,301720-2278369,"1,232.44",REDACTED - PAYMENT TO INDIVIDUAL
Children and Adult Services,Head of Adults,Third Party Payments,470101,Purchase of Care,02-Dec-2015,3057822-2278450,"6,031.16",3 RED ADMIRAL COURT.
Children and Adult Services,Head of Adults,Third Party Payments,470101,Purchase of Care,02-Dec-2015,3057823-2278722,"6,397.60",368 THE RIDGE.
Children and Adult Services,Head of Adults,Third Party Payments,470101,Purchase of Care,02-Dec-2015,3057824-2278438,"1,970.88",A CHARLES THOMAS (CARE) LTD.
Children and Adult Services,Head of Adults,Third Party Payments,474101,Purchase of Care,02-Dec-2015,3057824-2278482,"2,064.08",A CHARLES THOMAS (CARE) LTD.
Children and Adult Services,Head of Adults,Third Party Payments,474101,Purchase of Care,02-Dec-2015,3057824-2278485,"2,064.08",A CHARLES THOMAS (CARE) LTD.
Children and Adult Services,Head of Adults,Third Party Payments,470101,Purchase of Care,02-Dec-2015,3057824-2278735,"1,970.88",A CHARLES THOMAS (CARE) LTD.
Children and Adult Services,Head of Adults,Third Party Payments,470101,Purchase of Care,02-Dec-2015,3057824-2278923,"1,970.88",A CHARLES THOMAS (CARE) LTD.
Children and Adult Services,Head of Adults,Third Party Payments,470101,Purchase of Care,02-Dec-2015,3057824-2279197,"1,970.88",A CHARLES THOMAS (CARE) LTD.
Children and Adult Services,Head of Adults,Third Party Payments,470101,Purchase of Care,02-Dec-2015,3057824-2279261,"1,970.88",A CHARLES THOMAS (CARE) LTD.
Children and Adult Services,Head of Adults,Third Party Payments,470101,Purchase of Care,02-Dec-2015,3057824-2279453,"1,970.88",A CHARLES THOMAS (CARE) LTD.
Children and Adult Services,Head of Adults,Third Party Payments,474101,Purchase of Care,02-Dec-2015,3057824-2279682,"2,064.08",A CHARLES THOMAS (CARE) LTD.
Children and Adult Services,Head of Adults,Third Party Payments,474101,Purchase of Care,02-Dec-2015,3057824-2279699,516.02,A CHARLES THOMAS (CARE) LTD.
Children and Adult Services,Head of Adults,Third Party Payments,474101,Purchase of Care,02-Dec-2015,3057824-2279915,"2,064.08",A CHARLES THOMAS (CARE) LTD.
Children and Adult Services,Head of Adults,Third Party Payments,470101,Purchase of Care,02-Dec-2015,3057824-2280136,"1,970.88",A CHARLES THOMAS (CARE) LTD.
Children and Adult Services,Head of Adults,Third Party Payments,470101,Purchase of Care,02-Dec-2015,3057824-2280373,"1,970.88",A CHARLES THOMAS (CARE) LTD.
Children and Adult Services,Head of Adults,Third Party Payments,474101,Purchase of Care,02-Dec-2015,3057824-2280407,"2,064.08",A CHARLES THOMAS (CARE) LTD.
Children and Adult Services,Head of Adults,Third Party Payments,470101,Purchase of Care,02-Dec-2015,3057824-2280436,"1,970.88",A CHARLES THOMAS (CARE) LTD.
Children and Adult Services,Head of Adults,Third Party Payments,470101,Purchase of Care,02-Dec-2015,3057824-2280585,"1,970.88",A CHARLES THOMAS (CARE) LTD.
Children and Adult Services,Head of Adults,Third Party Payments,470101,Purchase of Care,02-Dec-2015,3057824-2280698,"1,970.88",A CHARLES THOMAS (CARE) LTD.
Children and Adult Services,Head of Adults,Third Party Payments,470101,Purchase of Care,02-Dec-2015,3057824-2281207,"1,970.88",A CHARLES THOMAS (CARE) LTD.
Children and Adult Services,Head of Adults,Third Party Payments,470101,Purchase of Care,02-Dec-2015,3057824-2281213,"1,970.88",A CHARLES THOMAS (CARE) LTD.
Children and Adult Services,Head of Adults,Third Party Payments,470101,Purchase of Care,02-Dec-2015,3057824-2281221,915.05,A CHARLES THOMAS (CARE) LTD.
Children and Adult Services,Head of Adults,Third Party Payments,470101,Purchase of Care,02-Dec-2015,3057824-2281354,"1,970.88",A CHARLES THOMAS (CARE) LTD.
Children and Adult Services,Head of Adults,Third Party Payments,474101,Purchase of Care,02-Dec-2015,3057824-2281423,"2,064.08",A CHARLES THOMAS (CARE) LTD.
Children and Adult Services,Head of Adults,Third Party Payments,474101,Purchase of Care,02-Dec-2015,3057824-2281600,"2,064.08",A CHARLES THOMAS (CARE) LTD.
Children and Adult Services,Head of Adults,Third Party Payments,474101,Purchase of Care,02-Dec-2015,3057824-2281746,"2,064.08",A CHARLES THOMAS (CARE) LTD.
Children and Adult Services,Head of Adults,Third Party Payments,474101,Purchase of Care,02-Dec-2015,3057824-2282104,"2,064.08",A CHARLES THOMAS (CARE) LTD.
Children and Adult Services,Head of Adults,Third Party Payments,474101,Purchase of Care,02-Dec-2015,3057824-2282276,"1,548.06",A CHARLES THOMAS (CARE) LTD.
Children and Adult Services,Head of Adults,Third Party Payments,474101,Purchase of Care,02-Dec-2015,3057824-2282411,"2,064.08",A CHARLES THOMAS (CARE) LTD.
Children and Adult Services,Head of Adults,Third Party Payments,474101,Purchase of Care,02-Dec-2015,3057824-2282809,"1,032.04",A CHARLES THOMAS (CARE) LTD.
Children and Adult Services,Head of Adults,Third Party Payments,474101,Purchase of Care,02-Dec-2015,3057825-2278266,"2,303.28",ABBEYMOOR CLINIC.
Children and Adult Services,Head of Adults,Third Party Payments,474101,Purchase of Care,02-Dec-2015,3057825-2279899,"2,303.28",ABBEYMOOR CLINIC.
Children and Adult Services,Head of Adults,Third Party Payments,474101,Purchase of Care,02-Dec-2015,3057825-2280185,"2,074.44",ABBEYMOOR CLINIC.
Children and Adult Services,Head of Adults,Third Party Payments,474101,Purchase of Care,02-Dec-2015,3057825-2280608,"1,994.28",ABBEYMOOR CLINIC.
Children and Adult Services,Head of Adults,Third Party Payments,474101,Purchase of Care,02-Dec-2015,3057825-2281718,"1,902.68",ABBEYMOOR CLINIC.
Children and Adult Services,Head of Adults,Third Party Payments,474101,Purchase of Care,02-Dec-2015,3057825-2281732,"1,902.68",ABBEYMOOR CLINIC.
Children and Adult Services,Head of Adults,Third Party Payments,470101,Purchase of Care,02-Dec-2015,3057826-2278736,"1,970.88",ABBEYVALE.
Children and Adult Services,Head of Adults,Third Party Payments,470101,Purchase of Care,02-Dec-2015,3057826-2278768,"2,500.00",ABBEYVALE.
Children and Adult Services,Head of Adults,Third Party Payments,470101,Purchase of Care,02-Dec-2015,3057826-2278800,"1,970.88",ABBEYVALE.
Children and Adult Services,Head of Adults,Third Party Payments,471101,Purchase of Care,02-Dec-2015,3057826-2278810,"2,043.64",ABBEYVALE.
Children and Adult Services,Head of Adults,Third Party Payments,470101,Purchase of Care,02-Dec-2015,3057826-2278843,"1,970.88",ABBEYVALE.
Children and Adult Services,Head of Adults,Third Party Payments,471101,Purchase of Care,02-Dec-2015,3057826-2278905,"2,043.64",ABBEYVALE.
Children and Adult Services,Head of Adults,Third Party Payments,471101,Purchase of Care,02-Dec-2015,3057826-2278984,"2,539.28",ABBEYVALE.
Children and Adult Services,Head of Adults,Third Party Payments,471101,Purchase of Care,02-Dec-2015,3057826-2279091,"2,043.64",ABBEYVALE.
Children and Adult Services,Head of Adults,Third Party Payments,470101,Purchase of Care,02-Dec-2015,3057826-2279109,"2,030.88",ABBEYVALE.
Children and Adult Services,Head of Adults,Third Party Payments,471101,Purchase of Care,02-Dec-2015,3057826-2279185,"2,043.64",ABBEYVALE.
Children and Adult Services,Head of Adults,Third Party Payments,470101,Purchase of Care,02-Dec-2015,3057826-2279228,"1,970.88",ABBEYVALE.
Children and Adult Services,Head of Adults,Third Party Payments,470101,Purchase of Care,02-Dec-2015,3057826-2279236,"1,970.88",ABBEYVALE.
Children and Adult Services,Head of Adults,Third Party Payments,470101,Purchase of Care,02-Dec-2015,3057826-2279316,"2,500.00",ABBEYVALE.
Children and Adult Services,Head of Adults,Third Party Payments,471101,Purchase of Care,02-Dec-2015,3057826-2279354,"1,021.84",ABBEYVALE.
Children and Adult Services,Head of Adults,Third Party Payments,470101,Purchase of Care,02-Dec-2015,3057826-2279378,"2,500.00",ABBEYVALE.
Children and Adult Services,Head of Adults,Third Party Payments,471101,Purchase of Care,02-Dec-2015,3057826-2279418,"2,043.64",ABBEYVALE.
Children and Adult Services,Head of Adults,Third Party Payments,470101,Purchase of Care,02-Dec-2015,3057826-2279444,"1,970.88",ABBEYVALE.
Children and Adult Services,Head of Adults,Third Party Payments,470101,Purchase of Care,02-Dec-2015,3057826-2279528,"1,970.88",ABBEYVALE.
Children and Adult Services,Head of Adults,Third Party Payments,470101,Purchase of Care,02-Dec-2015,3057826-2279581,"1,390.00",ABBEYVALE.
Children and Adult Services,Head of Adults,Third Party Payments,470101,Purchase of Care,02-Dec-2015,3057826-2279860,"1,970.88",ABBEYVALE.
Children and Adult Services,Head of Adults,Third Party Payments,471101,Purchase of Care,02-Dec-2015,3057826-2279995,"2,043.64",ABBEYVALE.
Children and Adult Services,Head of Adults,Third Party Payments,470101,Purchase of Care,02-Dec-2015,3057826-2280556,"1,970.88",ABBEYVALE.
Children and Adult Services,Head of Adults,Third Party Payments,470101,Purchase of Care,02-Dec-2015,3057826-2280784,"1,970.88",ABBEYVALE.
Children and Adult Services,Head of Adults,Third Party Payments,471101,Purchase of Care,02-Dec-2015,3057826-2280824,"2,043.64",ABBEYVALE.
Children and Adult Services,Head of Adults,Third Party Payments,470101,Purchase of Care,02-Dec-2015,3057826-2281097,"1,970.88",ABBEYVALE.
Children and Adult Services,Head of Adults,Third Party Payments,470101,Purchase of Care,02-Dec-2015,3057826-2281112,"1,970.88",ABBEYVALE.
Children and Adult Services,Head of Adults,Third Party Payments,471101,Purchase of Care,02-Dec-2015,3057826-2281467,"2,043.64",ABBEYVALE.
Children and Adult Services,Head of Adults,Third Party Payments,471101,Purchase of Care,02-Dec-2015,3057826-2281782,"2,043.64",ABBEYVALE.
Children and Adult Services,Head of Adults,Third Party Payments,470101,Purchase of Care,02-Dec-2015,3057826-2281843,"1,970.88",ABBEYVALE.
Children and Adult Services,Head of Adults,Third Party Payments,470101,Purchase of Care,02-Dec-2015,3057826-2281929,"1,970.88",ABBEYVALE.
Children and Adult Services,Head of Adults,Third Party Payments,471101,Purchase of Care,02-Dec-2015,3057826-2282128,"2,043.64",ABBEYVALE.
Children and Adult Services,Head of Adults,Third Party Payments,471101,Purchase of Care,02-Dec-2015,3057826-2282429,"1,240.78",ABBEYVALE.
Children and Adult Services,Head of Adults,Third Party Payments,470101,Purchase of Care,02-Dec-2015,3057827-2278534,"1,970.88",ABBOTTS COURT CARE HOME.
Children and Adult Services,Head of Adults,Third Party Payments,471101,Purchase of Care,02-Dec-2015,3057827-2278644,"2,043.64",ABBOTTS COURT CARE HOME.
Children and Adult Services,Head of Adults,Third Party Payments,470101,Purchase of Care,02-Dec-2015,3057827-2279044,"1,970.88",ABBOTTS COURT CARE HOME.
Children and Adult Services,Head of Adults,Third Party Payments,470101,Purchase of Care,02-Dec-2015,3057827-2279117,"1,970.88",ABBOTTS COURT CARE HOME.
Children and Adult Services,Head of Adults,Third Party Payments,471101,Purchase of Care,02-Dec-2015,3057827-2279269,"2,043.64",ABBOTTS COURT CARE HOME.
Children and Adult Services,Head of Adults,Third Party Payments,471101,Purchase of Care,02-Dec-2015,3057827-2279424,"2,043.64",ABBOTTS COURT CARE HOME.
Children and Adult Services,Head of Adults,Third Party Payments,471101,Purchase of Care,02-Dec-2015,3057827-2279548,"2,043.64",ABBOTTS COURT CARE HOME.
Children and Adult Services,Head of Adults,Third Party Payments,470101,Purchase of Care,02-Dec-2015,3057827-2279636,"1,970.88",ABBOTTS COURT CARE HOME.
Children and Adult Services,Head of Adults,Third Party Payments,470101,Purchase of Care,02-Dec-2015,3057827-2279723,"1,970.88",ABBOTTS COURT CARE HOME.
Children and Adult Services,Head of Adults,Third Party Payments,471101,Purchase of Care,02-Dec-2015,3057827-2279760,"2,043.64",ABBOTTS COURT CARE HOME.
Children and Adult Services,Head of Adults,Third Party Payments,470101,Purchase of Care,02-Dec-2015,3057827-2279789,"1,970.88",ABBOTTS COURT CARE HOME.
Children and Adult Services,Head of Adults,Third Party Payments,470101,Purchase of Care,02-Dec-2015,3057827-2279938,"1,970.88",ABBOTTS COURT CARE HOME.
Children and Adult Services,Head of Adults,Third Party Payments,470101,Purchase of Care,02-Dec-2015,3057827-2280358,"1,970.88",ABBOTTS COURT CARE HOME.
Children and Adult Services,Head of Adults,Third Party Payments,470101,Purchase of Care,02-Dec-2015,3057827-2280418,"1,970.88",ABBOTTS COURT CARE HOME.
Children and Adult Services,Head of Adults,Third Party Payments,470101,Purchase of Care,02-Dec-2015,3057827-2280442,"1,970.88",ABBOTTS COURT CARE HOME.
Children and Adult Services,Head of Adults,Third Party Payments,470101,Purchase of Care,02-Dec-2015,3057827-2280483,"1,970.88",ABBOTTS COURT CARE HOME.
Children and Adult Services,Head of Adults,Third Party Payments,470101,Purchase of Care,02-Dec-2015,3057827-2280602,"1,900.49",ABBOTTS COURT CARE HOME.
Children and Adult Services,Head of Adults,Third Party Payments,470101,Purchase of Care,02-Dec-2015,3057827-2280695,915.05,ABBOTTS COURT CARE HOME.
Children and Adult Services,Head of Adults,Third Party Payments,470101,Purchase of Care,02-Dec-2015,3057827-2280759,"1,970.88",ABBOTTS COURT CARE HOME.
Children and Adult Services,Head of Adults,Third Party Payments,470101,Purchase of Care,02-Dec-2015,3057827-2280823,"1,970.88",ABBOTTS COURT CARE HOME.
Children and Adult Services,Head of Adults,Third Party Payments,471101,Purchase of Care,02-Dec-2015,3057827-2280838,"2,043.64",ABBOTTS COURT CARE HOME.
Children and Adult Services,Head of Adults,Third Party Payments,470101,Purchase of Care,02-Dec-2015,3057827-2280910,"1,970.88",ABBOTTS COURT CARE HOME.
Children and Adult Services,Head of Adults,Third Party Payments,471101,Purchase of Care,02-Dec-2015,3057827-2281136,"2,043.64",ABBOTTS COURT CARE HOME.
Children and Adult Services,Head of Adults,Third Party Payments,470101,Purchase of Care,02-Dec-2015,3057827-2281514,"1,970.88",ABBOTTS COURT CARE HOME.
Children and Adult Services,Head of Adults,Third Party Payments,470101,Purchase of Care,02-Dec-2015,3057827-2282188,"1,970.88",ABBOTTS COURT CARE HOME.
Children and Adult Services,Head of Adults,Third Party Payments,471101,Purchase of Care,02-Dec-2015,3057827-2282245,"2,043.64",ABBOTTS COURT CARE HOME.
Children and Adult Services,Head of Adults,Third Party Payments,470101,Purchase of Care,02-Dec-2015,3057828-2278530,"1,865.32",ACORN GRANGE NURSING HOME.
Children and Adult Services,Head of Adults,Third Party Payments,471101,Purchase of Care,02-Dec-2015,3057828-2278561,"1,939.12",ACORN GRANGE NURSING HOME.
Children and Adult Services,Head of Adults,Third Party Payments,470101,Purchase of Care,02-Dec-2015,3057828-2278592,"1,865.32",ACORN GRANGE NURSING HOME.
Children and Adult Services,Head of Adults,Third Party Payments,471101,Purchase of Care,02-Dec-2015,3057828-2278928,"1,939.12",ACORN GRANGE NURSING HOME.
Children and Adult Services,Head of Adults,Third Party Payments,471101,Purchase of Care,02-Dec-2015,3057828-2279043,"1,246.57",ACORN GRANGE NURSING HOME.
Children and Adult Services,Head of Adults,Third Party Payments,471101,Purchase of Care,02-Dec-2015,3057828-2279166,"1,939.12",ACORN GRANGE NURSING HOME.
Children and Adult Services,Head of Adults,Third Party Payments,470101,Purchase of Care,02-Dec-2015,3057828-2279171,"1,865.32",ACORN GRANGE NURSING HOME.
Children and Adult Services,Head of Adults,Third Party Payments,470101,Purchase of Care,02-Dec-2015,3057828-2279244,"1,865.32",ACORN GRANGE NURSING HOME.
Children and Adult Services,Head of Adults,Third Party Payments,470101,Purchase of Care,02-Dec-2015,3057828-2279291,532.94,ACORN GRANGE NURSING HOME.
Children and Adult Services,Head of Adults,Third Party Payments,471101,Purchase of Care,02-Dec-2015,3057828-2279429,"1,939.12",ACORN GRANGE NURSING HOME.
Children and Adult Services,Head of Adults,Third Party Payments,471101,Purchase of Care,02-Dec-2015,3057828-2279443,"1,939.12",ACORN GRANGE NURSING HOME.
Children and Adult Services,Head of Adults,Third Party Payments,471101,Purchase of Care,02-Dec-2015,3057828-2279502,"1,939.12",ACORN GRANGE NURSING HOME.
Children and Adult Services,Head of Adults,Third Party Payments,471101,Purchase of Care,02-Dec-2015,3057828-2279519,"1,939.12",ACORN GRANGE NURSING HOME.
Children and Adult Services,Head of Adults,Third Party Payments,471101,Purchase of Care,02-Dec-2015,3057828-2279536,"1,939.12",ACORN GRANGE NURSING HOME.
Children and Adult Services,Head of Adults,Third Party Payments,470101,Purchase of Care,02-Dec-2015,3057828-2279563,"1,865.32",ACORN GRANGE NURSING HOME.
Children and Adult Services,Head of Adults,Third Party Payments,470101,Purchase of Care,02-Dec-2015,3057828-2280015,"1,865.32",ACORN GRANGE NURSING HOME.
Children and Adult Services,Head of Adults,Third Party Payments,470101,Purchase of Care,02-Dec-2015,3057828-2280048,"1,865.32",ACORN GRANGE NURSING HOME.
Children and Adult Services,Head of Adults,Third Party Payments,470101,Purchase of Care,02-Dec-2015,3057828-2280662,666.18,ACORN GRANGE NURSING HOME.
Children and Adult Services,Head of Adults,Third Party Payments,471101,Purchase of Care,02-Dec-2015,3057828-2281056,554.03,ACORN GRANGE NURSING HOME.
Children and Adult Services,Head of Adults,Third Party Payments,471101,Purchase of Care,02-Dec-2015,3057828-2281387,"1,939.12",ACORN GRANGE NURSING HOME.
Children and Adult Services,Head of Adults,Third Party Payments,471101,Purchase of Care,02-Dec-2015,3057828-2281458,"1,939.12",ACORN GRANGE NURSING HOME.
Children and Adult Services,Head of Adults,Third Party Payments,471101,Purchase of Care,02-Dec-2015,3057828-2281542,"1,939.12",ACORN GRANGE NURSING HOME.
Children and Adult Services,Head of Adults,Third Party Payments,470101,Purchase of Care,02-Dec-2015,3057828-2281572,"1,865.32",ACORN GRANGE NURSING HOME.
Children and Adult Services,Head of Adults,Third Party Payments,471101,Purchase of Care,02-Dec-2015,3057828-2281992,"1,939.12",ACORN GRANGE NURSING HOME.
Children and Adult Services,Head of Adults,Third Party Payments,471101,Purchase of Care,02-Dec-2015,3057828-2282026,"1,939.12",ACORN GRANGE NURSING HOME.
Children and Adult Services,Head of Adults,Third Party Payments,471101,Purchase of Care,02-Dec-2015,3057828-2282029,969.56,ACORN GRANGE NURSING HOME.
Children and Adult Services,Head of Adults,Third Party Payments,471101,Purchase of Care,02-Dec-2015,3057828-2282222,969.56,ACORN GRANGE NURSING HOME.
Children and Adult Services,Head of Adults,Third Party Payments,470101,Purchase of Care,02-Dec-2015,3057828-2282425,"1,865.32",ACORN GRANGE NURSING HOME.
Children and Adult Services,Head of Adults,Third Party Payments,471101,Purchase of Care,02-Dec-2015,3057828-2282426,"1,939.12",ACORN GRANGE NURSING HOME.
Children and Adult Services,Head of Adults,Third Party Payments,470101,Purchase of Care,02-Dec-2015,3057828-2282435,"1,865.32",ACORN GRANGE NURSING HOME.
Children and Adult Services,Head of Adults,Third Party Payments,470101,Purchase of Care,02-Dec-2015,3057828-2282807,"1,532.22",ACORN GRANGE NURSING HOME.
Children and Adult Services,Head of Adults,Third Party Payments,471101,Purchase of Care,02-Dec-2015,3057829-2282040,"1,815.60",AILWYN HALL RESIDENTIAL CARE HOME.
Children and Adult Services,Head of Adults,Third Party Payments,470101,Purchase of Care,02-Dec-2015,3057830-2279958,"1,888.40",ALBANY CARE HOME.
Children and Adult Services,Head of Adults,Third Party Payments,470101,Purchase of Care,02-Dec-2015,3057830-2280828,"1,888.40",ALBANY CARE HOME.
Children and Adult Services,Head of Adults,Third Party Payments,471101,Purchase of Care,02-Dec-2015,3057831-2276314,"1,028.88",ALEXANDRA VIEW CARE CENTRE.
Children and Adult Services,Head of Adults,Third Party Payments,471101,Purchase of Care,02-Dec-2015,3057831-2281968,901.60,ALEXANDRA VIEW CARE CENTRE.
Children and Adult Services,Head of Adults,Third Party Payments,470101,Purchase of Care,02-Dec-2015,3057832-2278297,"1,465.68",ALLIANCE CARE.
Children and Adult Services,Head of Adults,Third Party Payments,470101,Purchase of Care,02-Dec-2015,3057832-2278443,"1,703.00",ALLIANCE CARE.
Children and Adult Services,Head of Adults,Third Party Payments,470101,Purchase of Care,02-Dec-2015,3057832-2278639,"1,970.88",ALLIANCE CARE.
Children and Adult Services,Head of Adults,Third Party Payments,470101,Purchase of Care,02-Dec-2015,3057832-2278784,"1,970.88",ALLIANCE CARE.
Children and Adult Services,Head of Adults,Third Party Payments,474101,Purchase of Care,02-Dec-2015,3057832-2279098,"1,399.28",ALLIANCE CARE.
Children and Adult Services,Head of Adults,Third Party Payments,470101,Purchase of Care,02-Dec-2015,3057832-2279221,"1,970.88",ALLIANCE CARE.
Children and Adult Services,Head of Adults,Third Party Payments,471101,Purchase of Care,02-Dec-2015,3057832-2279402,"1,450.00",ALLIANCE CARE.
Children and Adult Services,Head of Adults,Third Party Payments,470101,Purchase of Care,02-Dec-2015,3057832-2279447,"1,465.68",ALLIANCE CARE.
Children and Adult Services,Head of Adults,Third Party Payments,470101,Purchase of Care,02-Dec-2015,3057832-2279656,"1,970.88",ALLIANCE CARE.
Children and Adult Services,Head of Adults,Third Party Payments,470101,Purchase of Care,02-Dec-2015,3057832-2279724,"1,970.88",ALLIANCE CARE.
Children and Adult Services,Head of Adults,Third Party Payments,470101,Purchase of Care,02-Dec-2015,3057832-2279752,"1,337.04",ALLIANCE CARE.
Children and Adult Services,Head of Adults,Third Party Payments,471101,Purchase of Care,02-Dec-2015,3057832-2279843,"1,262.72",ALLIANCE CARE.
Children and Adult Services,Head of Adults,Third Party Payments,471101,Purchase of Care,02-Dec-2015,3057832-2279944,"2,043.64",ALLIANCE CARE.
Children and Adult Services,Head of Adults,Third Party Payments,474101,Purchase of Care,02-Dec-2015,3057832-2279989,"1,558.88",ALLIANCE CARE.
Children and Adult Services,Head of Adults,Third Party Payments,471101,Purchase of Care,02-Dec-2015,3057832-2280002,"2,043.64",ALLIANCE CARE.
Children and Adult Services,Head of Adults,Third Party Payments,471101,Purchase of Care,02-Dec-2015,3057832-2280156,"1,454.44",ALLIANCE CARE.
Children and Adult Services,Head of Adults,Third Party Payments,470101,Purchase of Care,02-Dec-2015,3057832-2280212,"1,163.76",ALLIANCE CARE.
Children and Adult Services,Head of Adults,Third Party Payments,470102,Purchase of Care,02-Dec-2015,3057832-2280292,"1,449.21",ALLIANCE CARE.
Children and Adult Services,Head of Adults,Third Party Payments,474101,Purchase of Care,02-Dec-2015,3057832-2280328,"1,032.04",ALLIANCE CARE.
Children and Adult Services,Head of Adults,Third Party Payments,471101,Purchase of Care,02-Dec-2015,3057832-2280454,"1,021.80",ALLIANCE CARE.
Children and Adult Services,Head of Adults,Third Party Payments,470101,Purchase of Care,02-Dec-2015,3057832-2280458,"1,970.88",ALLIANCE CARE.
Children and Adult Services,Head of Adults,Third Party Payments,471101,Purchase of Care,02-Dec-2015,3057832-2280605,"1,538.44",ALLIANCE CARE.
Children and Adult Services,Head of Adults,Third Party Payments,471101,Purchase of Care,02-Dec-2015,3057832-2280667,729.87,ALLIANCE CARE.
Children and Adult Services,Head of Adults,Third Party Payments,470101,Purchase of Care,02-Dec-2015,3057832-2280691,"1,970.88",ALLIANCE CARE.
Children and Adult Services,Head of Adults,Third Party Payments,474101,Purchase of Care,02-Dec-2015,3057832-2280703,"1,375.40",ALLIANCE CARE.
Children and Adult Services,Head of Adults,Third Party Payments,471101,Purchase of Care,02-Dec-2015,3057832-2280757,"2,043.64",ALLIANCE CARE.
Children and Adult Services,Head of Adults,Debtors,930136,Debtor Nursing Care - IC+ Nursing,02-Dec-2015,3057832-2280836,505.90,ALLIANCE CARE.
Children and Adult Services,Head of Adults,Third Party Payments,474101,Purchase of Care,02-Dec-2015,3057832-2280902,810.88,ALLIANCE CARE.
Children and Adult Services,Head of Adults,Third Party Payments,470101,Purchase of Care,02-Dec-2015,3057832-2280913,"1,443.88",ALLIANCE CARE.
Children and Adult Services,Head of Adults,Debtors,930135,Debtor Residential Care - IC+ Rehabilitation,02-Dec-2015,3057832-2280936,"1,587.23",ALLIANCE CARE.
Children and Adult Services,Head of Adults,Third Party Payments,471101,Purchase of Care,02-Dec-2015,3057832-2281004,"1,484.31",ALLIANCE CARE.
Children and Adult Services,Head of Adults,Third Party Payments,470101,Purchase of Care,02-Dec-2015,3057832-2281155,"1,465.68",ALLIANCE CARE.
Children and Adult Services,Head of Adults,Third Party Payments,470101,Purchase of Care,02-Dec-2015,3057832-2281304,"1,241.76",ALLIANCE CARE.
Children and Adult Services,Head of Adults,Third Party Payments,471101,Purchase of Care,02-Dec-2015,3057832-2281388,"2,043.64",ALLIANCE CARE.
Children and Adult Services,Head of Adults,Third Party Payments,471101,Purchase of Care,02-Dec-2015,3057832-2281500,"2,043.64",ALLIANCE CARE.
Children and Adult Services,Head of Adults,Third Party Payments,470101,Purchase of Care,02-Dec-2015,3057832-2281521,"1,970.88",ALLIANCE CARE.
Children and Adult Services,Head of Adults,Third Party Payments,474101,Purchase of Care,02-Dec-2015,3057832-2281915,"1,696.73",ALLIANCE CARE.
Children and Adult Services,Central/Other,Debtors,930024,Debtor-free nursing care,02-Dec-2015,3057832-2281916,608.00,ALLIANCE CARE.
Children and Adult Services,Head of Adults,Third Party Payments,470101,Purchase of Care,02-Dec-2015,3057832-2281959,"1,970.88",ALLIANCE CARE.
Children and Adult Services,Head of Adults,Third Party Payments,471101,Purchase of Care,02-Dec-2015,3057832-2282025,"2,116.63",ALLIANCE CARE.
Children and Adult Services,Head of Adults,Third Party Payments,470101,Purchase of Care,02-Dec-2015,3057832-2282079,"1,196.60",ALLIANCE CARE.
Children and Adult Services,Head of Adults,Debtors,930135,Debtor Residential Care - IC+ Rehabilitation,02-Dec-2015,3057832-2282117,"1,035.15",ALLIANCE CARE.
Children and Adult Services,Head of Adults,Third Party Payments,470101,Purchase of Care,02-Dec-2015,3057832-2282129,"1,005.32",ALLIANCE CARE.
Children and Adult Services,Head of Adults,Third Party Payments,474101,Purchase of Care,02-Dec-2015,3057832-2282242,"2,064.08",ALLIANCE CARE.
Children and Adult Services,Head of Adults,Third Party Payments,470101,Purchase of Care,02-Dec-2015,3057832-2282252,"1,337.38",ALLIANCE CARE.
Children and Adult Services,Head of Adults,Third Party Payments,470101,Purchase of Care,02-Dec-2015,3057832-2282885,"1,970.88",ALLIANCE CARE.
Children and Adult Services,Head of Adults,Debtors,930135,Debtor Residential Care - IC+ Rehabilitation,02-Dec-2015,3057832-2282886,"1,380.20",ALLIANCE CARE.
Children and Adult Services,Head of Adults,Debtors,930135,Debtor Residential Care - IC+ Rehabilitation,02-Dec-2015,3057832-2282887,"1,173.17",ALLIANCE CARE.
Children and Adult Services,Head of Adults,Debtors,930135,Debtor Residential Care - IC+ Rehabilitation,02-Dec-2015,3057832-2282888,759.11,ALLIANCE CARE.
Children and Adult Services,Head of Adults,Third Party Payments,474101,Purchase of Care,02-Dec-2015,3057832-2282889,589.73,ALLIANCE CARE.
Children and Adult Services,Head of Adults,Debtors,930136,Debtor Nursing Care - IC+ Nursing,02-Dec-2015,3057832-2282895,"1,517.70",ALLIANCE CARE.
Children and Adult Services,Head of Adults,Debtors,930135,Debtor Residential Care - IC+ Rehabilitation,02-Dec-2015,3057832-2282909,"1,863.27",ALLIANCE CARE.
Children and Adult Services,Head of Adults,Third Party Payments,471101,Purchase of Care,02-Dec-2015,3057833-2281749,"2,132.08",AMERIND GROVE NURSING HOME.
Children and Adult Services,Head of Adults,Third Party Payments,470101,Purchase of Care,02-Dec-2015,3057834-2280102,"1,860.00",ANCHOR HOUSING ASSOCIATION.
Children and Adult Services,Head of Adults,Third Party Payments,470101,Purchase of Care,02-Dec-2015,3057834-2281445,"1,860.00",ANCHOR HOUSING ASSOCIATION.
Children and Adult Services,Head of Adults,Third Party Payments,470101,Purchase of Care,02-Dec-2015,3057834-2281564,"1,860.00",ANCHOR HOUSING ASSOCIATION.
Children and Adult Services,Head of Adults,Third Party Payments,470101,Purchase of Care,02-Dec-2015,3057834-2281970,"1,860.00",ANCHOR HOUSING ASSOCIATION.
Children and Adult Services,Head of Adults,Third Party Payments,474101,Purchase of Care,02-Dec-2015,3057835-2279108,"1,620.48",ANN CHARLTON LODGE.
Children and Adult Services,Head of Adults,Third Party Payments,470101,Purchase of Care,02-Dec-2015,3057836-2280001,"1,857.44",ARK HOUSE REHAB LTD.
Children and Adult Services,Head of Adults,Third Party Payments,470101,Purchase of Care,02-Dec-2015,3057836-2280311,706.92,ARK HOUSE REHAB LTD.
Children and Adult Services,Head of Adults,Third Party Payments,470101,Purchase of Care,02-Dec-2015,3057836-2280814,"1,980.00",ARK HOUSE REHAB LTD.
Children and Adult Services,Head of Adults,Third Party Payments,471101,Purchase of Care,02-Dec-2015,3057837-2278822,"1,400.32",ASCOT CARE NORTHEAST LTD.
Children and Adult Services,Head of Adults,Third Party Payments,474101,Purchase of Care,02-Dec-2015,3057837-2279381,"1,361.36",ASCOT CARE NORTHEAST LTD.
Children and Adult Services,Head of Adults,Third Party Payments,470101,Purchase of Care,02-Dec-2015,3057837-2279834,"1,865.32",ASCOT CARE NORTHEAST LTD.
Children and Adult Services,Head of Adults,Third Party Payments,470101,Purchase of Care,02-Dec-2015,3057837-2280076,"1,073.60",ASCOT CARE NORTHEAST LTD.
Children and Adult Services,Head of Adults,Third Party Payments,471101,Purchase of Care,02-Dec-2015,3057837-2280417,"1,561.16",ASCOT CARE NORTHEAST LTD.
Children and Adult Services,Head of Adults,Third Party Payments,470101,Purchase of Care,02-Dec-2015,3057837-2280557,"1,865.32",ASCOT CARE NORTHEAST LTD.
Children and Adult Services,Head of Adults,Third Party Payments,470101,Purchase of Care,02-Dec-2015,3057837-2280677,"1,360.12",ASCOT CARE NORTHEAST LTD.
Children and Adult Services,Head of Adults,Third Party Payments,470101,Purchase of Care,02-Dec-2015,3057837-2280787,"1,360.12",ASCOT CARE NORTHEAST LTD.
Children and Adult Services,Head of Adults,Third Party Payments,471101,Purchase of Care,02-Dec-2015,3057837-2281050,873.82,ASCOT CARE NORTHEAST LTD.
Children and Adult Services,Head of Adults,Third Party Payments,470101,Purchase of Care,02-Dec-2015,3057837-2281103,"1,269.96",ASCOT CARE NORTHEAST LTD.
Children and Adult Services,Head of Adults,Third Party Payments,471101,Purchase of Care,02-Dec-2015,3057837-2281182,959.52,ASCOT CARE NORTHEAST LTD.
Children and Adult Services,Head of Adults,Third Party Payments,470101,Purchase of Care,02-Dec-2015,3057837-2281330,"1,342.60",ASCOT CARE NORTHEAST LTD.
Children and Adult Services,Head of Adults,Third Party Payments,470101,Purchase of Care,02-Dec-2015,3057837-2281433,"1,360.12",ASCOT CARE NORTHEAST LTD.
Children and Adult Services,Head of Adults,Third Party Payments,470101,Purchase of Care,02-Dec-2015,3057837-2281507,"1,212.68",ASCOT CARE NORTHEAST LTD.
Children and Adult Services,Head of Adults,Third Party Payments,470101,Purchase of Care,02-Dec-2015,3057837-2281794,974.04,ASCOT CARE NORTHEAST LTD.
Children and Adult Services,Head of Adults,Third Party Payments,470101,Purchase of Care,02-Dec-2015,3057837-2281815,"1,360.12",ASCOT CARE NORTHEAST LTD.
Children and Adult Services,Head of Adults,Third Party Payments,470101,Purchase of Care,02-Dec-2015,3057837-2281921,"1,315.92",ASCOT CARE NORTHEAST LTD.
Children and Adult Services,Head of Adults,Third Party Payments,470101,Purchase of Care,02-Dec-2015,3057837-2282017,"1,865.32",ASCOT CARE NORTHEAST LTD.
Children and Adult Services,Head of Adults,Third Party Payments,474101,Purchase of Care,02-Dec-2015,3057837-2282036,"1,158.76",ASCOT CARE NORTHEAST LTD.
Children and Adult Services,Head of Adults,Third Party Payments,474101,Purchase of Care,02-Dec-2015,3057837-2282161,"1,010.24",ASCOT CARE NORTHEAST LTD.
Children and Adult Services,Head of Adults,Third Party Payments,474101,Purchase of Care,02-Dec-2015,3057837-2282339,"1,331.68",ASCOT CARE NORTHEAST LTD.
Children and Adult Services,Head of Adults,Third Party Payments,470101,Purchase of Care,02-Dec-2015,3057838-2279216,"1,824.00",ASCOT CARE T/A THE GARDENS CARE HOME.
Children and Adult Services,Head of Adults,Third Party Payments,470101,Purchase of Care,02-Dec-2015,3057839-2274717,"1,280.68",ASHBOURNE LODGE CARE HOME.
Children and Adult Services,Head of Adults,Third Party Payments,470101,Purchase of Care,02-Dec-2015,3057839-2280190,"1,996.40",ASHBOURNE LODGE CARE HOME.
Children and Adult Services,Head of Adults,Third Party Payments,470101,Purchase of Care,02-Dec-2015,3057840-2278687,"2,700.00",ASHFIELD NURSING HOME LTD.
Children and Adult Services,Head of Adults,Third Party Payments,470101,Purchase of Care,02-Dec-2015,3057841-2278752,"3,564.00",AUTISM CARE UK (4) LTD.
Children and Adult Services,Head of Adults,Third Party Payments,470101,Purchase of Care,02-Dec-2015,3057841-2279471,"4,244.80",AUTISM CARE UK (4) LTD.
Children and Adult Services,Head of Adults,Third Party Payments,470101,Purchase of Care,02-Dec-2015,3057841-2279472,"1,742.44",AUTISM CARE UK (4) LTD.
Children and Adult Services,Head of Adults,Third Party Payments,470101,Purchase of Care,02-Dec-2015,3057841-2279473,568.96,AUTISM CARE UK (4) LTD.
Children and Adult Services,Head of Adults,Third Party Payments,470101,Purchase of Care,02-Dec-2015,3057842-2278891,"9,318.00",AUTISM NORTH.
Children and Adult Services,Head of Adults,Third Party Payments,470101,Purchase of Care,02-Dec-2015,3057842-2282755,"7,328.57",AUTISM NORTH.
Children and Adult Services,Head of Adults,Third Party Payments,470101,Purchase of Care,02-Dec-2015,3057842-2282756,"2,797.20",AUTISM NORTH.
Children and Adult Services,Head of Adults,Third Party Payments,470101,Purchase of Care,02-Dec-2015,3057843-2278624,"6,478.68",AUTISM NORTH.
Children and Adult Services,Head of Adults,Third Party Payments,470101,Purchase of Care,02-Dec-2015,3057844-2278256,"1,865.32",AYCLIFFE CARE HOME.
Children and Adult Services,Head of Adults,Third Party Payments,471101,Purchase of Care,02-Dec-2015,3057844-2278426,"1,939.12",AYCLIFFE CARE HOME.
Children and Adult Services,Head of Adults,Third Party Payments,471101,Purchase of Care,02-Dec-2015,3057844-2278481,"1,939.12",AYCLIFFE CARE HOME.
Children and Adult Services,Head of Adults,Third Party Payments,470101,Purchase of Care,02-Dec-2015,3057844-2278789,"1,865.32",AYCLIFFE CARE HOME.
Children and Adult Services,Head of Adults,Third Party Payments,471101,Purchase of Care,02-Dec-2015,3057844-2278922,"1,939.12",AYCLIFFE CARE HOME.
Children and Adult Services,Head of Adults,Third Party Payments,470101,Purchase of Care,02-Dec-2015,3057844-2279014,"1,865.32",AYCLIFFE CARE HOME.
Children and Adult Services,Head of Adults,Third Party Payments,474101,Purchase of Care,02-Dec-2015,3057844-2279103,979.24,AYCLIFFE CARE HOME.
Children and Adult Services,Head of Adults,Third Party Payments,470101,Purchase of Care,02-Dec-2015,3057844-2279326,"1,865.32",AYCLIFFE CARE HOME.
Children and Adult Services,Head of Adults,Third Party Payments,474101,Purchase of Care,02-Dec-2015,3057844-2279412,"1,958.48",AYCLIFFE CARE HOME.
Children and Adult Services,Head of Adults,Third Party Payments,470101,Purchase of Care,02-Dec-2015,3057844-2279421,"1,865.32",AYCLIFFE CARE HOME.
Children and Adult Services,Head of Adults,Third Party Payments,470101,Purchase of Care,02-Dec-2015,3057844-2279633,"1,865.32",AYCLIFFE CARE HOME.
Children and Adult Services,Head of Adults,Third Party Payments,471101,Purchase of Care,02-Dec-2015,3057844-2279763,"1,939.12",AYCLIFFE CARE HOME.
Children and Adult Services,Head of Adults,Third Party Payments,474101,Purchase of Care,02-Dec-2015,3057844-2279764,979.24,AYCLIFFE CARE HOME.
Children and Adult Services,Head of Adults,Third Party Payments,471101,Purchase of Care,02-Dec-2015,3057844-2279877,"1,939.12",AYCLIFFE CARE HOME.
Children and Adult Services,Head of Adults,Third Party Payments,470101,Purchase of Care,02-Dec-2015,3057844-2279970,"1,865.32",AYCLIFFE CARE HOME.
Children and Adult Services,Head of Adults,Third Party Payments,474101,Purchase of Care,02-Dec-2015,3057844-2280016,"1,958.48",AYCLIFFE CARE HOME.
Children and Adult Services,Head of Adults,Third Party Payments,470101,Purchase of Care,02-Dec-2015,3057844-2280085,"1,865.32",AYCLIFFE CARE HOME.
Children and Adult Services,Head of Adults,Third Party Payments,470101,Purchase of Care,02-Dec-2015,3057844-2280172,"1,865.32",AYCLIFFE CARE HOME.
Children and Adult Services,Head of Adults,Third Party Payments,474101,Purchase of Care,02-Dec-2015,3057844-2280218,"1,958.48",AYCLIFFE CARE HOME.
Children and Adult Services,Head of Adults,Third Party Payments,471101,Purchase of Care,02-Dec-2015,3057844-2280265,"1,939.12",AYCLIFFE CARE HOME.
Children and Adult Services,Head of Adults,Third Party Payments,471101,Purchase of Care,02-Dec-2015,3057844-2280439,"1,939.12",AYCLIFFE CARE HOME.
Children and Adult Services,Head of Adults,Third Party Payments,471101,Purchase of Care,02-Dec-2015,3057844-2280451,"1,939.12",AYCLIFFE CARE HOME.
Children and Adult Services,Head of Adults,Third Party Payments,474101,Purchase of Care,02-Dec-2015,3057844-2280606,"1,270.44",AYCLIFFE CARE HOME.
Children and Adult Services,Head of Adults,Third Party Payments,470101,Purchase of Care,02-Dec-2015,3057844-2280670,"1,199.13",AYCLIFFE CARE HOME.
Children and Adult Services,Head of Adults,Third Party Payments,471101,Purchase of Care,02-Dec-2015,3057844-2280737,"1,939.12",AYCLIFFE CARE HOME.
Children and Adult Services,Head of Adults,Third Party Payments,470101,Purchase of Care,02-Dec-2015,3057844-2280743,"1,865.32",AYCLIFFE CARE HOME.
Children and Adult Services,Head of Adults,Third Party Payments,474101,Purchase of Care,02-Dec-2015,3057844-2280845,"1,958.48",AYCLIFFE CARE HOME.
Children and Adult Services,Head of Adults,Third Party Payments,471101,Purchase of Care,02-Dec-2015,3057844-2280864,"1,939.12",AYCLIFFE CARE HOME.
Children and Adult Services,Head of Adults,Third Party Payments,474101,Purchase of Care,02-Dec-2015,3057844-2280878,"1,958.48",AYCLIFFE CARE HOME.
Children and Adult Services,Head of Adults,Third Party Payments,471101,Purchase of Care,02-Dec-2015,3057844-2281135,"1,939.12",AYCLIFFE CARE HOME.
Children and Adult Services,Head of Adults,Third Party Payments,470101,Purchase of Care,02-Dec-2015,3057844-2281156,"1,865.32",AYCLIFFE CARE HOME.
Children and Adult Services,Head of Adults,Third Party Payments,471101,Purchase of Care,02-Dec-2015,3057844-2281176,"1,939.12",AYCLIFFE CARE HOME.
Children and Adult Services,Head of Adults,Third Party Payments,471101,Purchase of Care,02-Dec-2015,3057844-2281288,"3,185.70",AYCLIFFE CARE HOME.
Children and Adult Services,Head of Adults,Third Party Payments,470101,Purchase of Care,02-Dec-2015,3057844-2281463,932.68,AYCLIFFE CARE HOME.
Children and Adult Services,Head of Adults,Third Party Payments,474101,Purchase of Care,02-Dec-2015,3057844-2281527,"1,958.48",AYCLIFFE CARE HOME.
Children and Adult Services,Head of Adults,Third Party Payments,471101,Purchase of Care,02-Dec-2015,3057844-2281532,"1,939.12",AYCLIFFE CARE HOME.
Children and Adult Services,Head of Adults,Third Party Payments,471101,Purchase of Care,02-Dec-2015,3057844-2281597,"1,939.12",AYCLIFFE CARE HOME.
Children and Adult Services,Head of Adults,Third Party Payments,470101,Purchase of Care,02-Dec-2015,3057844-2281645,"1,865.32",AYCLIFFE CARE HOME.
Children and Adult Services,Head of Adults,Third Party Payments,474101,Purchase of Care,02-Dec-2015,3057844-2281813,"1,958.48",AYCLIFFE CARE HOME.
Children and Adult Services,Head of Adults,Third Party Payments,471101,Purchase of Care,02-Dec-2015,3057844-2282302,"1,939.12",AYCLIFFE CARE HOME.
Children and Adult Services,Head of Adults,Third Party Payments,470101,Purchase of Care,02-Dec-2015,3057844-2282322,"1,865.32",AYCLIFFE CARE HOME.
Children and Adult Services,Head of Adults,Third Party Payments,474101,Purchase of Care,02-Dec-2015,3057844-2282427,979.24,AYCLIFFE CARE HOME.
Children and Adult Services,Head of Adults,Third Party Payments,471101,Purchase of Care,02-Dec-2015,3057844-2282754,"2,839.42",AYCLIFFE CARE HOME.
Children and Adult Services,Head of Adults,Third Party Payments,470101,Purchase of Care,02-Dec-2015,3057845-2280162,"1,931.00",AYRESOME COURT NURSING HOME.
Children and Adult Services,Head of Adults,Third Party Payments,471101,Purchase of Care,02-Dec-2015,3057846-2279275,"1,894.20",BARCHESTER HEALTHCARE HOMES LTD.
Children and Adult Services,Head of Adults,Third Party Payments,474101,Purchase of Care,02-Dec-2015,3057847-2279893,"1,984.00",BARCHESTER HEALTHCARE HOMES LTD.
Children and Adult Services,Head of Adults,Third Party Payments,471101,Purchase of Care,02-Dec-2015,3057848-2274194,"1,100.00",BARCHESTER HEALTHCARE HOMES LTD.
Children and Adult Services,Head of Adults,Third Party Payments,471101,Purchase of Care,02-Dec-2015,3057849-2279032,"1,642.20",BARCHESTER HEALTHCARE HOMES LTD.
Children and Adult Services,Head of Adults,Third Party Payments,471101,Purchase of Care,02-Dec-2015,3057850-2279092,"1,537.71",BARCHESTER HEALTHCARE HOMES LTD.
Children and Adult Services,Head of Adults,Third Party Payments,471101,Purchase of Care,02-Dec-2015,3057850-2279792,"1,872.00",BARCHESTER HEALTHCARE HOMES LTD.
Children and Adult Services,Head of Adults,Third Party Payments,471101,Purchase of Care,02-Dec-2015,3057850-2280684,"1,872.00",BARCHESTER HEALTHCARE HOMES LTD.
Children and Adult Services,Head of Adults,Third Party Payments,471101,Purchase of Care,02-Dec-2015,3057850-2281074,"1,872.00",BARCHESTER HEALTHCARE HOMES LTD.
Children and Adult Services,Head of Adults,Third Party Payments,471101,Purchase of Care,02-Dec-2015,3057850-2281291,"1,404.00",BARCHESTER HEALTHCARE HOMES LTD.
Children and Adult Services,Head of Adults,Third Party Payments,471101,Purchase of Care,02-Dec-2015,3057850-2281481,"1,872.00",BARCHESTER HEALTHCARE HOMES LTD.
Children and Adult Services,Head of Adults,Third Party Payments,471101,Purchase of Care,02-Dec-2015,3057850-2281515,"1,872.00",BARCHESTER HEALTHCARE HOMES LTD.
Children and Adult Services,Head of Adults,Third Party Payments,470101,Purchase of Care,02-Dec-2015,3057850-2282053,"1,816.00",BARCHESTER HEALTHCARE HOMES LTD.
Children and Adult Services,Head of Adults,Third Party Payments,470101,Purchase of Care,02-Dec-2015,3057850-2282974,"2,464.57",BARCHESTER HEALTHCARE HOMES LTD.
Children and Adult Services,Head of Adults,Third Party Payments,474101,Purchase of Care,02-Dec-2015,3057851-2278313,"2,136.00",BARCHESTER HEALTHCARE HOMES LTD.
Children and Adult Services,Head of Adults,Third Party Payments,474101,Purchase of Care,02-Dec-2015,3057851-2278382,"1,958.48",BARCHESTER HEALTHCARE HOMES LTD.
Children and Adult Services,Head of Adults,Third Party Payments,474101,Purchase of Care,02-Dec-2015,3057851-2278605,"1,958.48",BARCHESTER HEALTHCARE HOMES LTD.
Children and Adult Services,Head of Adults,Third Party Payments,474101,Purchase of Care,02-Dec-2015,3057851-2278811,"1,958.48",BARCHESTER HEALTHCARE HOMES LTD.
Children and Adult Services,Head of Adults,Third Party Payments,474101,Purchase of Care,02-Dec-2015,3057851-2278875,"1,958.48",BARCHESTER HEALTHCARE HOMES LTD.
Children and Adult Services,Head of Adults,Third Party Payments,474101,Purchase of Care,02-Dec-2015,3057851-2279070,"1,958.48",BARCHESTER HEALTHCARE HOMES LTD.
Children and Adult Services,Head of Adults,Third Party Payments,474101,Purchase of Care,02-Dec-2015,3057851-2279105,"1,958.48",BARCHESTER HEALTHCARE HOMES LTD.
Children and Adult Services,Head of Adults,Third Party Payments,474101,Purchase of Care,02-Dec-2015,3057851-2279541,"1,958.48",BARCHESTER HEALTHCARE HOMES LTD.
Children and Adult Services,Head of Adults,Third Party Payments,474101,Purchase of Care,02-Dec-2015,3057851-2279782,"1,958.48",BARCHESTER HEALTHCARE HOMES LTD.
Children and Adult Services,Head of Adults,Third Party Payments,474101,Purchase of Care,02-Dec-2015,3057851-2279869,"2,136.00",BARCHESTER HEALTHCARE HOMES LTD.
Children and Adult Services,Head of Adults,Third Party Payments,474101,Purchase of Care,02-Dec-2015,3057851-2279966,"1,958.48",BARCHESTER HEALTHCARE HOMES LTD.
Children and Adult Services,Head of Adults,Third Party Payments,474101,Purchase of Care,02-Dec-2015,3057851-2279978,909.29,BARCHESTER HEALTHCARE HOMES LTD.
Children and Adult Services,Head of Adults,Third Party Payments,474101,Purchase of Care,02-Dec-2015,3057851-2280026,"2,136.00",BARCHESTER HEALTHCARE HOMES LTD.
Children and Adult Services,Head of Adults,Third Party Payments,474101,Purchase of Care,02-Dec-2015,3057851-2280099,979.24,BARCHESTER HEALTHCARE HOMES LTD.
Children and Adult Services,Head of Adults,Third Party Payments,474101,Purchase of Care,02-Dec-2015,3057851-2280138,"2,136.00",BARCHESTER HEALTHCARE HOMES LTD.
Children and Adult Services,Head of Adults,Third Party Payments,474101,Purchase of Care,02-Dec-2015,3057851-2280221,979.24,BARCHESTER HEALTHCARE HOMES LTD.
Children and Adult Services,Head of Adults,Third Party Payments,474101,Purchase of Care,02-Dec-2015,3057851-2280258,979.24,BARCHESTER HEALTHCARE HOMES LTD.
Children and Adult Services,Head of Adults,Third Party Payments,474101,Purchase of Care,02-Dec-2015,3057851-2280711,979.24,BARCHESTER HEALTHCARE HOMES LTD.
Children and Adult Services,Head of Adults,Third Party Payments,474101,Purchase of Care,02-Dec-2015,3057851-2280729,"1,958.48",BARCHESTER HEALTHCARE HOMES LTD.
Children and Adult Services,Head of Adults,Third Party Payments,474101,Purchase of Care,02-Dec-2015,3057851-2280888,"2,797.83",BARCHESTER HEALTHCARE HOMES LTD.
Children and Adult Services,Central/Other,Debtors,930024,Debtor-free nursing care,02-Dec-2015,3057851-2280889,640.00,BARCHESTER HEALTHCARE HOMES LTD.
Children and Adult Services,Head of Adults,Third Party Payments,474101,Purchase of Care,02-Dec-2015,3057851-2281495,"1,958.48",BARCHESTER HEALTHCARE HOMES LTD.
Children and Adult Services,Head of Adults,Third Party Payments,474101,Purchase of Care,02-Dec-2015,3057851-2281855,"2,600.00",BARCHESTER HEALTHCARE HOMES LTD.
Children and Adult Services,Head of Adults,Third Party Payments,474101,Purchase of Care,02-Dec-2015,3057851-2282041,979.24,BARCHESTER HEALTHCARE HOMES LTD.
Children and Adult Services,Head of Adults,Third Party Payments,474101,Purchase of Care,02-Dec-2015,3057851-2282140,"1,958.48",BARCHESTER HEALTHCARE HOMES LTD.
Children and Adult Services,Head of Adults,Third Party Payments,474101,Purchase of Care,02-Dec-2015,3057851-2282149,"1,958.48",BARCHESTER HEALTHCARE HOMES LTD.
Children and Adult Services,Head of Adults,Third Party Payments,474101,Purchase of Care,02-Dec-2015,3057851-2282237,"1,958.48",BARCHESTER HEALTHCARE HOMES LTD.
Children and Adult Services,Head of Adults,Third Party Payments,474101,Purchase of Care,02-Dec-2015,3057851-2282352,"1,958.48",BARCHESTER HEALTHCARE HOMES LTD.
Children and Adult Services,Head of Adults,Third Party Payments,474101,Purchase of Care,02-Dec-2015,3057851-2282391,"1,958.48",BARCHESTER HEALTHCARE HOMES LTD.
Children and Adult Services,Head of Adults,Third Party Payments,474101,Purchase of Care,02-Dec-2015,3057851-2282420,"1,958.48",BARCHESTER HEALTHCARE HOMES LTD.
Children and Adult Services,Head of Adults,Third Party Payments,474101,Purchase of Care,02-Dec-2015,3057851-2282963,"1,958.48",BARCHESTER HEALTHCARE HOMES LTD.
Children and Adult Services,Head of Adults,Third Party Payments,474101,Purchase of Care,02-Dec-2015,3057851-2282966,"1,958.48",BARCHESTER HEALTHCARE HOMES LTD.
Children and Adult Services,Head of Adults,Third Party Payments,474101,Purchase of Care,02-Dec-2015,3057852-2272732,"1,836.72",BARNES COURT NURSING HOME.
Children and Adult Services,Head of Adults,Third Party Payments,474101,Purchase of Care,02-Dec-2015,3057852-2278300,"1,836.72",BARNES COURT NURSING HOME.
Children and Adult Services,Head of Adults,Third Party Payments,470101,Purchase of Care,02-Dec-2015,3057853-2279499,"1,865.32",BEACONSFIELD COURT.
Children and Adult Services,Head of Adults,Third Party Payments,470101,Purchase of Care,02-Dec-2015,3057853-2279622,"1,865.32",BEACONSFIELD COURT.
Children and Adult Services,Head of Adults,Third Party Payments,470101,Purchase of Care,02-Dec-2015,3057853-2279624,"1,865.32",BEACONSFIELD COURT.
Children and Adult Services,Head of Adults,Third Party Payments,470101,Purchase of Care,02-Dec-2015,3057853-2279833,"1,865.32",BEACONSFIELD COURT.
Children and Adult Services,Head of Adults,Third Party Payments,470101,Purchase of Care,02-Dec-2015,3057853-2279954,"1,865.32",BEACONSFIELD COURT.
Children and Adult Services,Head of Adults,Third Party Payments,470101,Purchase of Care,02-Dec-2015,3057853-2280548,"1,865.32",BEACONSFIELD COURT.
Children and Adult Services,Head of Adults,Third Party Payments,470101,Purchase of Care,02-Dec-2015,3057853-2280633,"1,865.32",BEACONSFIELD COURT.
Children and Adult Services,Head of Adults,Third Party Payments,470101,Purchase of Care,02-Dec-2015,3057853-2280701,"1,865.32",BEACONSFIELD COURT.
Children and Adult Services,Head of Adults,Third Party Payments,470101,Purchase of Care,02-Dec-2015,3057853-2280911,"1,865.32",BEACONSFIELD COURT.
Children and Adult Services,Head of Adults,Third Party Payments,470101,Purchase of Care,02-Dec-2015,3057853-2281453,"1,865.32",BEACONSFIELD COURT.
Children and Adult Services,Head of Adults,Third Party Payments,470101,Purchase of Care,02-Dec-2015,3057853-2281908,"1,865.32",BEACONSFIELD COURT.
Children and Adult Services,Head of Adults,Third Party Payments,470101,Purchase of Care,02-Dec-2015,3057853-2281972,"1,865.32",BEACONSFIELD COURT.
Children and Adult Services,Head of Adults,Third Party Payments,470101,Purchase of Care,02-Dec-2015,3057853-2282126,"1,865.32",BEACONSFIELD COURT.
Children and Adult Services,Head of Adults,Third Party Payments,470101,Purchase of Care,02-Dec-2015,3057853-2282130,"1,865.32",BEACONSFIELD COURT.
Children and Adult Services,Head of Adults,Third Party Payments,470101,Purchase of Care,02-Dec-2015,3057853-2282321,"1,865.32",BEACONSFIELD COURT.
Children and Adult Services,Head of Adults,Third Party Payments,470101,Purchase of Care,02-Dec-2015,3057853-2282792,"1,532.22",BEACONSFIELD COURT.
Children and Adult Services,Head of Adults,Third Party Payments,470101,Purchase of Care,02-Dec-2015,3057853-2282793,"1,865.32",BEACONSFIELD COURT.
Children and Adult Services,Head of Adults,Third Party Payments,470101,Purchase of Care,02-Dec-2015,3057854-2278414,"1,865.32",BEAMISH RESIDENTIAL HOME.
Children and Adult Services,Head of Adults,Third Party Payments,470101,Purchase of Care,02-Dec-2015,3057854-2278661,"1,321.76",BEAMISH RESIDENTIAL HOME.
Children and Adult Services,Head of Adults,Third Party Payments,470101,Purchase of Care,02-Dec-2015,3057854-2278671,"1,300.80",BEAMISH RESIDENTIAL HOME.
Children and Adult Services,Head of Adults,Third Party Payments,470101,Purchase of Care,02-Dec-2015,3057854-2279193,"1,865.32",BEAMISH RESIDENTIAL HOME.
Children and Adult Services,Head of Adults,Third Party Payments,470101,Purchase of Care,02-Dec-2015,3057854-2279209,"1,352.56",BEAMISH RESIDENTIAL HOME.
Children and Adult Services,Head of Adults,Third Party Payments,470101,Purchase of Care,02-Dec-2015,3057854-2279976,"1,308.12",BEAMISH RESIDENTIAL HOME.
Children and Adult Services,Head of Adults,Third Party Payments,470101,Purchase of Care,02-Dec-2015,3057854-2280499,836.44,BEAMISH RESIDENTIAL HOME.
Children and Adult Services,Head of Adults,Third Party Payments,470101,Purchase of Care,02-Dec-2015,3057854-2280689,"1,865.32",BEAMISH RESIDENTIAL HOME.
Children and Adult Services,Head of Adults,Third Party Payments,470101,Purchase of Care,02-Dec-2015,3057854-2280692,"1,223.92",BEAMISH RESIDENTIAL HOME.
Children and Adult Services,Head of Adults,Third Party Payments,470101,Purchase of Care,02-Dec-2015,3057854-2280945,"1,665.46",BEAMISH RESIDENTIAL HOME.
Children and Adult Services,Head of Adults,Third Party Payments,470101,Purchase of Care,02-Dec-2015,3057854-2281332,"1,865.32",BEAMISH RESIDENTIAL HOME.
Children and Adult Services,Head of Adults,Third Party Payments,470101,Purchase of Care,02-Dec-2015,3057854-2281575,932.68,BEAMISH RESIDENTIAL HOME.
Children and Adult Services,Head of Adults,Third Party Payments,470101,Purchase of Care,02-Dec-2015,3057854-2281740,"1,865.32",BEAMISH RESIDENTIAL HOME.
Children and Adult Services,Head of Adults,Third Party Payments,470101,Purchase of Care,02-Dec-2015,3057854-2282106,"1,089.32",BEAMISH RESIDENTIAL HOME.
Children and Adult Services,Head of Adults,Third Party Payments,470101,Purchase of Care,02-Dec-2015,3057854-2282191,"1,865.32",BEAMISH RESIDENTIAL HOME.
Children and Adult Services,Head of Adults,Third Party Payments,470101,Purchase of Care,02-Dec-2015,3057854-2282196,"1,865.32",BEAMISH RESIDENTIAL HOME.
Children and Adult Services,Head of Adults,Third Party Payments,470101,Purchase of Care,02-Dec-2015,3057854-2282323,"1,865.32",BEAMISH RESIDENTIAL HOME.
Children and Adult Services,Head of Adults,Third Party Payments,470101,Purchase of Care,02-Dec-2015,3057854-2282349,"1,331.88",BEAMISH RESIDENTIAL HOME.
Children and Adult Services,Head of Adults,Third Party Payments,470101,Purchase of Care,02-Dec-2015,3057854-2282818,"1,865.32",BEAMISH RESIDENTIAL HOME.
Children and Adult Services,Head of Adults,Third Party Payments,470101,Purchase of Care,02-Dec-2015,3057855-2279251,"1,073.08",BEAULEY LODGE CARE HOME.
Children and Adult Services,Head of Adults,Third Party Payments,471101,Purchase of Care,02-Dec-2015,3057855-2279717,"1,242.44",BEAULEY LODGE CARE HOME.
Children and Adult Services,Head of Adults,Third Party Payments,470101,Purchase of Care,02-Dec-2015,3057855-2280323,"1,659.60",BEAULEY LODGE CARE HOME.
Children and Adult Services,Head of Adults,Third Party Payments,470101,Purchase of Care,02-Dec-2015,3057855-2280337,"1,659.60",BEAULEY LODGE CARE HOME.
Children and Adult Services,Head of Adults,Third Party Payments,471101,Purchase of Care,02-Dec-2015,3057855-2281363,"1,733.24",BEAULEY LODGE CARE HOME.
Children and Adult Services,Head of Adults,Third Party Payments,470101,Purchase of Care,02-Dec-2015,3057855-2282004,"1,659.60",BEAULEY LODGE CARE HOME.
Children and Adult Services,Head of Adults,Third Party Payments,470101,Purchase of Care,02-Dec-2015,3057856-2278700,"1,970.88",BEDDELL HOUSE.
Children and Adult Services,Head of Adults,Third Party Payments,470101,Purchase of Care,02-Dec-2015,3057856-2278783,"1,970.88",BEDDELL HOUSE.
Children and Adult Services,Head of Adults,Third Party Payments,470101,Purchase of Care,02-Dec-2015,3057856-2278794,"1,970.88",BEDDELL HOUSE.
Children and Adult Services,Head of Adults,Third Party Payments,470101,Purchase of Care,02-Dec-2015,3057856-2279214,"1,970.88",BEDDELL HOUSE.
Children and Adult Services,Head of Adults,Third Party Payments,470101,Purchase of Care,02-Dec-2015,3057856-2279309,"1,970.88",BEDDELL HOUSE.
Children and Adult Services,Head of Adults,Third Party Payments,470101,Purchase of Care,02-Dec-2015,3057856-2279687,"1,970.88",BEDDELL HOUSE.
Children and Adult Services,Head of Adults,Third Party Payments,470101,Purchase of Care,02-Dec-2015,3057856-2279866,"1,970.88",BEDDELL HOUSE.
Children and Adult Services,Head of Adults,Third Party Payments,470101,Purchase of Care,02-Dec-2015,3057856-2280086,"1,970.88",BEDDELL HOUSE.
Children and Adult Services,Head of Adults,Third Party Payments,470101,Purchase of Care,02-Dec-2015,3057856-2280986,"1,970.88",BEDDELL HOUSE.
Children and Adult Services,Head of Adults,Third Party Payments,470101,Purchase of Care,02-Dec-2015,3057856-2281292,"3,941.76",BEDDELL HOUSE.
Children and Adult Services,Head of Adults,Third Party Payments,470101,Purchase of Care,02-Dec-2015,3057856-2281482,"1,970.88",BEDDELL HOUSE.
Children and Adult Services,Head of Adults,Third Party Payments,470101,Purchase of Care,02-Dec-2015,3057856-2281907,"1,970.88",BEDDELL HOUSE.
Children and Adult Services,Head of Adults,Third Party Payments,470101,Purchase of Care,02-Dec-2015,3057856-2282035,"1,970.88",BEDDELL HOUSE.
Children and Adult Services,Head of Adults,Third Party Payments,470101,Purchase of Care,02-Dec-2015,3057856-2282303,"1,970.88",BEDDELL HOUSE.
Children and Adult Services,Head of Adults,Third Party Payments,470101,Purchase of Care,02-Dec-2015,3057857-2279196,"1,824.00",BELLE VUE HEALTHCARE LTD.
Children and Adult Services,Head of Adults,Third Party Payments,470101,Purchase of Care,02-Dec-2015,3057858-2278351,"1,548.52",BENAMY HOUSE.
Children and Adult Services,Head of Adults,Third Party Payments,470101,Purchase of Care,02-Dec-2015,3057858-2278354,"1,548.52",BENAMY HOUSE.
Children and Adult Services,Head of Adults,Third Party Payments,470101,Purchase of Care,02-Dec-2015,3057858-2278412,"1,870.32",BENAMY HOUSE.
Children and Adult Services,Head of Adults,Third Party Payments,470101,Purchase of Care,02-Dec-2015,3057858-2278422,"1,870.32",BENAMY HOUSE.
Children and Adult Services,Head of Adults,Third Party Payments,470101,Purchase of Care,02-Dec-2015,3057858-2278487,"1,548.52",BENAMY HOUSE.
Children and Adult Services,Head of Adults,Third Party Payments,474101,Purchase of Care,02-Dec-2015,3057859-2280538,949.60,BENFIELD HALL RESIDENTIAL CARE.
Children and Adult Services,Head of Adults,Third Party Payments,474101,Purchase of Care,02-Dec-2015,3057859-2281648,949.60,BENFIELD HALL RESIDENTIAL CARE.
Children and Adult Services,Head of Adults,Third Party Payments,474101,Purchase of Care,02-Dec-2015,3057859-2281650,949.60,BENFIELD HALL RESIDENTIAL CARE.
Children and Adult Services,Head of Adults,Third Party Payments,474101,Purchase of Care,02-Dec-2015,3057859-2281652,"1,899.16",BENFIELD HALL RESIDENTIAL CARE.
Children and Adult Services,Head of Adults,Third Party Payments,474101,Purchase of Care,02-Dec-2015,3057859-2281654,949.60,BENFIELD HALL RESIDENTIAL CARE.
Children and Adult Services,Head of Adults,Third Party Payments,474101,Purchase of Care,02-Dec-2015,3057859-2281656,"1,393.96",BENFIELD HALL RESIDENTIAL CARE.
Children and Adult Services,Head of Adults,Third Party Payments,474101,Purchase of Care,02-Dec-2015,3057859-2281658,949.60,BENFIELD HALL RESIDENTIAL CARE.
Children and Adult Services,Head of Adults,Third Party Payments,474101,Purchase of Care,02-Dec-2015,3057859-2281660,"1,899.16",BENFIELD HALL RESIDENTIAL CARE.
Children and Adult Services,Head of Adults,Third Party Payments,470101,Purchase of Care,02-Dec-2015,3057859-2282185,"1,808.20",BENFIELD HALL RESIDENTIAL CARE.
Children and Adult Services,Head of Adults,Third Party Payments,478101,Purchase of Care,02-Dec-2015,3057860-2279351,"1,232.44",REDACTED - PAYMENT TO INDIVIDUAL
Children and Adult Services,Head of Adults,Third Party Payments,478101,Purchase of Care,02-Dec-2015,3057860-2280324,"1,232.44",REDACTED - PAYMENT TO INDIVIDUAL
Children and Adult Services,Head of Adults,Third Party Payments,470101,Purchase of Care,02-Dec-2015,3057861-2278502,"1,865.32",BISHOPSGATE LODGE.
Children and Adult Services,Head of Adults,Third Party Payments,474101,Purchase of Care,02-Dec-2015,3057861-2278801,"1,958.48",BISHOPSGATE LODGE.
Children and Adult Services,Head of Adults,Third Party Payments,470101,Purchase of Care,02-Dec-2015,3057861-2278945,"1,865.32",BISHOPSGATE LODGE.
Children and Adult Services,Head of Adults,Third Party Payments,470101,Purchase of Care,02-Dec-2015,3057861-2279063,"1,865.32",BISHOPSGATE LODGE.
Children and Adult Services,Head of Adults,Third Party Payments,470101,Purchase of Care,02-Dec-2015,3057861-2279143,"1,865.32",BISHOPSGATE LODGE.
Children and Adult Services,Head of Adults,Third Party Payments,474101,Purchase of Care,02-Dec-2015,3057861-2279355,"1,958.48",BISHOPSGATE LODGE.
Children and Adult Services,Head of Adults,Third Party Payments,474101,Purchase of Care,02-Dec-2015,3057861-2279379,"1,958.48",BISHOPSGATE LODGE.
Children and Adult Services,Head of Adults,Third Party Payments,470101,Purchase of Care,02-Dec-2015,3057861-2279433,"1,865.32",BISHOPSGATE LODGE.
Children and Adult Services,Head of Adults,Third Party Payments,470101,Purchase of Care,02-Dec-2015,3057861-2279540,"1,865.32",BISHOPSGATE LODGE.
Children and Adult Services,Head of Adults,Third Party Payments,471101,Purchase of Care,02-Dec-2015,3057861-2279586,"1,939.12",BISHOPSGATE LODGE.
Children and Adult Services,Head of Adults,Third Party Payments,470101,Purchase of Care,02-Dec-2015,3057861-2279740,"1,865.32",BISHOPSGATE LODGE.
Children and Adult Services,Head of Adults,Third Party Payments,471101,Purchase of Care,02-Dec-2015,3057861-2279785,"1,939.12",BISHOPSGATE LODGE.
Children and Adult Services,Head of Adults,Third Party Payments,470101,Purchase of Care,02-Dec-2015,3057861-2279879,"1,865.32",BISHOPSGATE LODGE.
Children and Adult Services,Head of Adults,Third Party Payments,470101,Purchase of Care,02-Dec-2015,3057861-2279911,"1,865.32",BISHOPSGATE LODGE.
Children and Adult Services,Head of Adults,Third Party Payments,471101,Purchase of Care,02-Dec-2015,3057861-2279996,"1,939.12",BISHOPSGATE LODGE.
Children and Adult Services,Head of Adults,Third Party Payments,474101,Purchase of Care,02-Dec-2015,3057861-2280036,"1,958.48",BISHOPSGATE LODGE.
Children and Adult Services,Head of Adults,Third Party Payments,471101,Purchase of Care,02-Dec-2015,3057861-2280348,"1,939.12",BISHOPSGATE LODGE.
Children and Adult Services,Head of Adults,Third Party Payments,470101,Purchase of Care,02-Dec-2015,3057861-2280450,"1,865.32",BISHOPSGATE LODGE.
Children and Adult Services,Head of Adults,Third Party Payments,470101,Purchase of Care,02-Dec-2015,3057861-2280524,"1,865.32",BISHOPSGATE LODGE.
Children and Adult Services,Head of Adults,Third Party Payments,470101,Purchase of Care,02-Dec-2015,3057861-2281084,"1,865.32",BISHOPSGATE LODGE.
Children and Adult Services,Head of Adults,Third Party Payments,474101,Purchase of Care,02-Dec-2015,3057861-2281160,"1,958.48",BISHOPSGATE LODGE.
Children and Adult Services,Head of Adults,Third Party Payments,470101,Purchase of Care,02-Dec-2015,3057861-2281336,"1,865.32",BISHOPSGATE LODGE.
Children and Adult Services,Head of Adults,Third Party Payments,470101,Purchase of Care,02-Dec-2015,3057861-2281405,"3,730.64",BISHOPSGATE LODGE.
Children and Adult Services,Head of Adults,Third Party Payments,470101,Purchase of Care,02-Dec-2015,3057861-2281408,"1,865.32",BISHOPSGATE LODGE.
Children and Adult Services,Head of Adults,Third Party Payments,470101,Purchase of Care,02-Dec-2015,3057861-2281551,"1,865.32",BISHOPSGATE LODGE.
Children and Adult Services,Head of Adults,Third Party Payments,470101,Purchase of Care,02-Dec-2015,3057861-2281628,"1,865.32",BISHOPSGATE LODGE.
Children and Adult Services,Head of Adults,Third Party Payments,470101,Purchase of Care,02-Dec-2015,3057861-2281731,"1,865.32",BISHOPSGATE LODGE.
Children and Adult Services,Head of Adults,Third Party Payments,470101,Purchase of Care,02-Dec-2015,3057861-2282136,"1,865.32",BISHOPSGATE LODGE.
Children and Adult Services,Head of Adults,Third Party Payments,470101,Purchase of Care,02-Dec-2015,3057861-2282170,"1,865.32",BISHOPSGATE LODGE.
Children and Adult Services,Head of Adults,Third Party Payments,471101,Purchase of Care,02-Dec-2015,3057861-2282800,"1,385.08",BISHOPSGATE LODGE.
Children and Adult Services,Head of Adults,Third Party Payments,470101,Purchase of Care,02-Dec-2015,3057861-2283037,732.80,BISHOPSGATE LODGE.
Children and Adult Services,Head of Adults,Third Party Payments,474101,Purchase of Care,02-Dec-2015,3057861-2283038,"1,049.18",BISHOPSGATE LODGE.
Children and Adult Services,Head of Adults,Third Party Payments,474101,Purchase of Care,02-Dec-2015,3057861-2283063,"4,336.63",BISHOPSGATE LODGE.
Children and Adult Services,Central/Other,Debtors,930024,Debtor-free nursing care,02-Dec-2015,3057861-2283064,992.00,BISHOPSGATE LODGE.
Children and Adult Services,Head of Adults,Third Party Payments,470101,Purchase of Care,02-Dec-2015,3057862-2280789,"2,600.00",BONHOMIE HOUSE.
Children and Adult Services,Head of Adults,Third Party Payments,470101,Purchase of Care,02-Dec-2015,3057863-2278566,"3,672.00",BOWES COURT CARE HOME.
Children and Adult Services,Head of Adults,Third Party Payments,474101,Purchase of Care,02-Dec-2015,3057863-2278617,"4,800.00",BOWES COURT CARE HOME.
Children and Adult Services,Head of Adults,Third Party Payments,474101,Purchase of Care,02-Dec-2015,3057863-2278638,"2,400.00",BOWES COURT CARE HOME.
Children and Adult Services,Head of Adults,Third Party Payments,470101,Purchase of Care,02-Dec-2015,3057863-2279500,"2,300.00",BOWES COURT CARE HOME.
Children and Adult Services,Head of Adults,Third Party Payments,470101,Purchase of Care,02-Dec-2015,3057863-2279501,"5,082.00",BOWES COURT CARE HOME.
Children and Adult Services,Head of Adults,Third Party Payments,470101,Purchase of Care,02-Dec-2015,3057863-2279652,"2,222.00",BOWES COURT CARE HOME.
Children and Adult Services,Head of Adults,Third Party Payments,470101,Purchase of Care,02-Dec-2015,3057863-2279653,"1,008.00",BOWES COURT CARE HOME.
Children and Adult Services,Head of Adults,Third Party Payments,474101,Purchase of Care,02-Dec-2015,3057863-2279854,"12,596.25",BOWES COURT CARE HOME.
Children and Adult Services,Head of Adults,Third Party Payments,474101,Purchase of Care,02-Dec-2015,3057863-2281392,"2,500.00",BOWES COURT CARE HOME.
Children and Adult Services,Head of Adults,Third Party Payments,474101,Purchase of Care,02-Dec-2015,3057863-2281478,"2,525.00",BOWES COURT CARE HOME.
Children and Adult Services,Head of Adults,Third Party Payments,474101,Purchase of Care,02-Dec-2015,3057863-2282356,"2,500.00",BOWES COURT CARE HOME.
Children and Adult Services,Head of Adults,Third Party Payments,470101,Purchase of Care,02-Dec-2015,3057863-2282837,"1,736.72",BOWES COURT CARE HOME.
Children and Adult Services,Head of Adults,Third Party Payments,470101,Purchase of Care,02-Dec-2015,3057864-2278569,"2,033.04",BRANCEPETH COURT.
Children and Adult Services,Head of Adults,Third Party Payments,470101,Purchase of Care,02-Dec-2015,3057864-2278570,"2,033.04",BRANCEPETH COURT.
Children and Adult Services,Head of Adults,Third Party Payments,470101,Purchase of Care,02-Dec-2015,3057864-2278571,"2,033.04",BRANCEPETH COURT.
Children and Adult Services,Head of Adults,Third Party Payments,470101,Purchase of Care,02-Dec-2015,3057864-2278572,"2,033.04",BRANCEPETH COURT.
Children and Adult Services,Head of Adults,Third Party Payments,474101,Purchase of Care,02-Dec-2015,3057864-2278718,"2,064.08",BRANCEPETH COURT.
Children and Adult Services,Head of Adults,Third Party Payments,470101,Purchase of Care,02-Dec-2015,3057864-2278785,"2,033.04",BRANCEPETH COURT.
Children and Adult Services,Head of Adults,Third Party Payments,474101,Purchase of Care,02-Dec-2015,3057864-2278832,"2,064.08",BRANCEPETH COURT.
Children and Adult Services,Head of Adults,Third Party Payments,470101,Purchase of Care,02-Dec-2015,3057864-2278947,"2,033.04",BRANCEPETH COURT.
Children and Adult Services,Head of Adults,Third Party Payments,470101,Purchase of Care,02-Dec-2015,3057864-2279762,"1,970.88",BRANCEPETH COURT.
Children and Adult Services,Head of Adults,Third Party Payments,474101,Purchase of Care,02-Dec-2015,3057864-2279925,"2,064.08",BRANCEPETH COURT.
Children and Adult Services,Head of Adults,Third Party Payments,470101,Purchase of Care,02-Dec-2015,3057864-2279946,"1,970.88",BRANCEPETH COURT.
Children and Adult Services,Head of Adults,Third Party Payments,474101,Purchase of Care,02-Dec-2015,3057864-2280273,"1,548.06",BRANCEPETH COURT.
Children and Adult Services,Head of Adults,Third Party Payments,470101,Purchase of Care,02-Dec-2015,3057864-2280394,"1,970.88",BRANCEPETH COURT.
Children and Adult Services,Head of Adults,Third Party Payments,474101,Purchase of Care,02-Dec-2015,3057864-2280587,"2,064.08",BRANCEPETH COURT.
Children and Adult Services,Head of Adults,Third Party Payments,470101,Purchase of Care,02-Dec-2015,3057864-2280690,"2,033.04",BRANCEPETH COURT.
Children and Adult Services,Head of Adults,Third Party Payments,470101,Purchase of Care,02-Dec-2015,3057864-2281086,"2,033.04",BRANCEPETH COURT.
Children and Adult Services,Head of Adults,Third Party Payments,470101,Purchase of Care,02-Dec-2015,3057864-2281186,"1,970.88",BRANCEPETH COURT.
Children and Adult Services,Head of Adults,Third Party Payments,470101,Purchase of Care,02-Dec-2015,3057864-2281297,"1,970.88",BRANCEPETH COURT.
Children and Adult Services,Head of Adults,Third Party Payments,470101,Purchase of Care,02-Dec-2015,3057864-2281435,"2,033.04",BRANCEPETH COURT.
Children and Adult Services,Head of Adults,Third Party Payments,474101,Purchase of Care,02-Dec-2015,3057864-2281899,"2,241.56",BRANCEPETH COURT.
Children and Adult Services,Head of Adults,Third Party Payments,470101,Purchase of Care,02-Dec-2015,3057864-2282305,"1,970.88",BRANCEPETH COURT.
Children and Adult Services,Head of Adults,Third Party Payments,470101,Purchase of Care,02-Dec-2015,3057865-2278441,"1,465.68",BROOMHOUSE CARE LTD.
Children and Adult Services,Head of Adults,Third Party Payments,471101,Purchase of Care,02-Dec-2015,3057865-2278906,"1,086.96",BROOMHOUSE CARE LTD.
Children and Adult Services,Head of Adults,Third Party Payments,470101,Purchase of Care,02-Dec-2015,3057865-2279045,"1,465.68",BROOMHOUSE CARE LTD.
Children and Adult Services,Head of Adults,Third Party Payments,470101,Purchase of Care,02-Dec-2015,3057865-2279281,"1,465.68",BROOMHOUSE CARE LTD.
Children and Adult Services,Head of Adults,Third Party Payments,471101,Purchase of Care,02-Dec-2015,3057865-2279317,"1,590.44",BROOMHOUSE CARE LTD.
Children and Adult Services,Head of Adults,Third Party Payments,470101,Purchase of Care,02-Dec-2015,3057865-2279749,"1,970.88",BROOMHOUSE CARE LTD.
Children and Adult Services,Head of Adults,Third Party Payments,471101,Purchase of Care,02-Dec-2015,3057865-2279999,"1,339.24",BROOMHOUSE CARE LTD.
Children and Adult Services,Head of Adults,Third Party Payments,470101,Purchase of Care,02-Dec-2015,3057865-2280177,"1,226.08",BROOMHOUSE CARE LTD.
Children and Adult Services,Head of Adults,Third Party Payments,471101,Purchase of Care,02-Dec-2015,3057865-2280475,"2,043.64",BROOMHOUSE CARE LTD.
Children and Adult Services,Head of Adults,Third Party Payments,471101,Purchase of Care,02-Dec-2015,3057865-2281022,"1,224.16",BROOMHOUSE CARE LTD.
Children and Adult Services,Head of Adults,Third Party Payments,470101,Purchase of Care,02-Dec-2015,3057865-2281075,"1,354.00",BROOMHOUSE CARE LTD.
Children and Adult Services,Head of Adults,Third Party Payments,471101,Purchase of Care,02-Dec-2015,3057865-2281076,"2,043.64",BROOMHOUSE CARE LTD.
Children and Adult Services,Head of Adults,Third Party Payments,471101,Purchase of Care,02-Dec-2015,3057865-2281312,"1,541.28",BROOMHOUSE CARE LTD.
Children and Adult Services,Head of Adults,Third Party Payments,470101,Purchase of Care,02-Dec-2015,3057865-2281522,"1,970.88",BROOMHOUSE CARE LTD.
Children and Adult Services,Head of Adults,Third Party Payments,471101,Purchase of Care,02-Dec-2015,3057865-2281953,"2,043.64",BROOMHOUSE CARE LTD.
Children and Adult Services,Head of Adults,Third Party Payments,471101,Purchase of Care,02-Dec-2015,3057865-2282139,"2,043.64",BROOMHOUSE CARE LTD.
Children and Adult Services,Head of Adults,Third Party Payments,474101,Purchase of Care,02-Dec-2015,3057866-2278270,"1,950.52",BUPA CARE SERVICES.
Children and Adult Services,Head of Adults,Third Party Payments,474101,Purchase of Care,02-Dec-2015,3057866-2278279,"1,628.72",BUPA CARE SERVICES.
Children and Adult Services,Head of Adults,Third Party Payments,474101,Purchase of Care,02-Dec-2015,3057867-2273540,"1,715.08",BURLINGTON CARE LTD T/A MOORLANDS CARE HOME.
Children and Adult Services,Head of Adults,Third Party Payments,474101,Purchase of Care,02-Dec-2015,3057867-2279089,"1,715.08",BURLINGTON CARE LTD T/A MOORLANDS CARE HOME.
Children and Adult Services,Head of Adults,Third Party Payments,478101,Purchase of Care,02-Dec-2015,3057868-2279456,"1,371.04",REDACTED - PAYMENT TO INDIVIDUAL
Children and Adult Services,Head of Adults,Third Party Payments,470101,Purchase of Care,02-Dec-2015,3057869-2279159,"1,860.00",CARE UK..
Children and Adult Services,Head of Adults,Third Party Payments,474101,Purchase of Care,02-Dec-2015,3057869-2280993,"1,860.00",CARE UK..
Children and Adult Services,Head of Adults,Third Party Payments,471101,Purchase of Care,02-Dec-2015,3057870-2280391,"1,716.00",CARE UK..
Children and Adult Services,Head of Adults,Third Party Payments,471101,Purchase of Care,02-Dec-2015,3057870-2281534,"1,716.00",CARE UK..
Children and Adult Services,Head of Adults,Third Party Payments,474101,Purchase of Care,02-Dec-2015,3057871-2278786,"2,808.00",CARELINE LIFESTYLES (UK) LTD.
Children and Adult Services,Head of Adults,Third Party Payments,474101,Purchase of Care,02-Dec-2015,3057871-2278803,"4,800.00",CARELINE LIFESTYLES (UK) LTD.
Children and Adult Services,Head of Adults,Third Party Payments,470101,Purchase of Care,02-Dec-2015,3057872-2278411,"2,461.68",CARELINE LIFESTYLES (UK) LTD.
Children and Adult Services,Head of Adults,Third Party Payments,470101,Purchase of Care,02-Dec-2015,3057873-2278992,"2,500.00",CARELINE LIFESTYLES (UK) LTD.
Children and Adult Services,Head of Adults,Third Party Payments,470101,Purchase of Care,02-Dec-2015,3057873-2278993,"2,016.00",CARELINE LIFESTYLES (UK) LTD.
Children and Adult Services,Head of Adults,Third Party Payments,474101,Purchase of Care,02-Dec-2015,3057873-2281068,"2,694.00",CARELINE LIFESTYLES (UK) LTD.
Children and Adult Services,Head of Adults,Third Party Payments,474101,Purchase of Care,02-Dec-2015,3057874-2280623,"2,300.00",CARELINE LIFESTYLES (UK) LTD.
Children and Adult Services,Head of Adults,Third Party Payments,474101,Purchase of Care,02-Dec-2015,3057874-2280760,"5,400.00",CARELINE LIFESTYLES (UK) LTD.
Children and Adult Services,Head of Adults,Third Party Payments,474101,Purchase of Care,02-Dec-2015,3057874-2282299,"3,908.00",CARELINE LIFESTYLES (UK) LTD.
Children and Adult Services,Head of Adults,Third Party Payments,474101,Purchase of Care,02-Dec-2015,3057875-2281783,"1,792.00",CEDAR LODGE CARE HOME.
Children and Adult Services,Head of Adults,Third Party Payments,470101,Purchase of Care,02-Dec-2015,3057876-2278471,"1,325.64",CHILTON CARE CENTRE.
Children and Adult Services,Head of Adults,Third Party Payments,471101,Purchase of Care,02-Dec-2015,3057876-2278509,"1,538.44",CHILTON CARE CENTRE.
Children and Adult Services,Head of Adults,Third Party Payments,471101,Purchase of Care,02-Dec-2015,3057876-2278514,"1,538.44",CHILTON CARE CENTRE.
Children and Adult Services,Head of Adults,Third Party Payments,470101,Purchase of Care,02-Dec-2015,3057876-2278547,"1,159.68",CHILTON CARE CENTRE.
Children and Adult Services,Head of Adults,Third Party Payments,470101,Purchase of Care,02-Dec-2015,3057876-2278815,"1,970.88",CHILTON CARE CENTRE.
Children and Adult Services,Head of Adults,Third Party Payments,471101,Purchase of Care,02-Dec-2015,3057876-2278889,"1,538.44",CHILTON CARE CENTRE.
Children and Adult Services,Head of Adults,Third Party Payments,470101,Purchase of Care,02-Dec-2015,3057876-2278989,"1,476.52",CHILTON CARE CENTRE.
Children and Adult Services,Head of Adults,Third Party Payments,471101,Purchase of Care,02-Dec-2015,3057876-2279035,"2,043.64",CHILTON CARE CENTRE.
Children and Adult Services,Head of Adults,Third Party Payments,471101,Purchase of Care,02-Dec-2015,3057876-2279137,"2,043.64",CHILTON CARE CENTRE.
Children and Adult Services,Head of Adults,Third Party Payments,471101,Purchase of Care,02-Dec-2015,3057876-2279188,"1,230.60",CHILTON CARE CENTRE.
Children and Adult Services,Head of Adults,Third Party Payments,471101,Purchase of Care,02-Dec-2015,3057876-2279296,"1,538.44",CHILTON CARE CENTRE.
Children and Adult Services,Head of Adults,Third Party Payments,470101,Purchase of Care,02-Dec-2015,3057876-2279391,"1,970.88",CHILTON CARE CENTRE.
Children and Adult Services,Head of Adults,Third Party Payments,471101,Purchase of Care,02-Dec-2015,3057876-2279445,"2,043.64",CHILTON CARE CENTRE.
Children and Adult Services,Head of Adults,Third Party Payments,470101,Purchase of Care,02-Dec-2015,3057876-2279493,"1,221.84",CHILTON CARE CENTRE.
Children and Adult Services,Head of Adults,Third Party Payments,470101,Purchase of Care,02-Dec-2015,3057876-2279761,"1,421.56",CHILTON CARE CENTRE.
Children and Adult Services,Head of Adults,Third Party Payments,470101,Purchase of Care,02-Dec-2015,3057876-2280077,"1,406.76",CHILTON CARE CENTRE.
Children and Adult Services,Head of Adults,Third Party Payments,470101,Purchase of Care,02-Dec-2015,3057876-2280107,"1,387.84",CHILTON CARE CENTRE.
Children and Adult Services,Head of Adults,Third Party Payments,471101,Purchase of Care,02-Dec-2015,3057876-2280372,"1,203.84",CHILTON CARE CENTRE.
Children and Adult Services,Head of Adults,Third Party Payments,471101,Purchase of Care,02-Dec-2015,3057876-2280403,"4,968.81",CHILTON CARE CENTRE.
Children and Adult Services,Head of Adults,Third Party Payments,471101,Purchase of Care,02-Dec-2015,3057876-2280537,"2,043.64",CHILTON CARE CENTRE.
Children and Adult Services,Head of Adults,Third Party Payments,471101,Purchase of Care,02-Dec-2015,3057876-2280687,"1,443.08",CHILTON CARE CENTRE.
Children and Adult Services,Head of Adults,Third Party Payments,470101,Purchase of Care,02-Dec-2015,3057876-2280738,"1,970.88",CHILTON CARE CENTRE.
Children and Adult Services,Head of Adults,Third Party Payments,470101,Purchase of Care,02-Dec-2015,3057876-2281058,500.08,CHILTON CARE CENTRE.
Children and Adult Services,Head of Adults,Third Party Payments,470101,Purchase of Care,02-Dec-2015,3057876-2281205,"1,465.68",CHILTON CARE CENTRE.
Children and Adult Services,Head of Adults,Third Party Payments,470101,Purchase of Care,02-Dec-2015,3057876-2281386,"1,416.88",CHILTON CARE CENTRE.
Children and Adult Services,Head of Adults,Third Party Payments,471101,Purchase of Care,02-Dec-2015,3057876-2281413,"1,512.56",CHILTON CARE CENTRE.
Children and Adult Services,Head of Adults,Third Party Payments,470101,Purchase of Care,02-Dec-2015,3057876-2281845,"1,441.80",CHILTON CARE CENTRE.
Children and Adult Services,Head of Adults,Third Party Payments,470101,Purchase of Care,02-Dec-2015,3057876-2281852,"1,465.68",CHILTON CARE CENTRE.
Children and Adult Services,Head of Adults,Third Party Payments,471101,Purchase of Care,02-Dec-2015,3057876-2282028,"1,173.72",CHILTON CARE CENTRE.
Children and Adult Services,Head of Adults,Third Party Payments,470101,Purchase of Care,02-Dec-2015,3057876-2282088,703.88,CHILTON CARE CENTRE.
Children and Adult Services,Head of Adults,Third Party Payments,470101,Purchase of Care,02-Dec-2015,3057876-2282540,844.66,CHILTON CARE CENTRE.
Children and Adult Services,Head of Adults,Third Party Payments,470101,Purchase of Care,02-Dec-2015,3057877-2278662,"1,970.88",CHURCH VIEW CARE HOME.
Children and Adult Services,Head of Adults,Third Party Payments,470101,Purchase of Care,02-Dec-2015,3057877-2278764,"1,970.88",CHURCH VIEW CARE HOME.
Children and Adult Services,Head of Adults,Third Party Payments,470101,Purchase of Care,02-Dec-2015,3057877-2279124,"1,970.88",CHURCH VIEW CARE HOME.
Children and Adult Services,Head of Adults,Third Party Payments,471101,Purchase of Care,02-Dec-2015,3057877-2279318,"2,043.64",CHURCH VIEW CARE HOME.
Children and Adult Services,Head of Adults,Third Party Payments,471101,Purchase of Care,02-Dec-2015,3057877-2279370,"2,043.64",CHURCH VIEW CARE HOME.
Children and Adult Services,Head of Adults,Third Party Payments,471101,Purchase of Care,02-Dec-2015,3057877-2279488,"2,043.64",CHURCH VIEW CARE HOME.
Children and Adult Services,Head of Adults,Third Party Payments,471101,Purchase of Care,02-Dec-2015,3057877-2279489,717.92,CHURCH VIEW CARE HOME.
Children and Adult Services,Head of Adults,Third Party Payments,470101,Purchase of Care,02-Dec-2015,3057877-2279626,"1,970.88",CHURCH VIEW CARE HOME.
Children and Adult Services,Head of Adults,Third Party Payments,470101,Purchase of Care,02-Dec-2015,3057877-2279770,"1,970.88",CHURCH VIEW CARE HOME.
Children and Adult Services,Head of Adults,Third Party Payments,471101,Purchase of Care,02-Dec-2015,3057877-2279853,"2,043.64",CHURCH VIEW CARE HOME.
Children and Adult Services,Head of Adults,Third Party Payments,471101,Purchase of Care,02-Dec-2015,3057877-2279868,"2,043.64",CHURCH VIEW CARE HOME.
Children and Adult Services,Head of Adults,Third Party Payments,471101,Purchase of Care,02-Dec-2015,3057877-2279969,"2,043.64",CHURCH VIEW CARE HOME.
Children and Adult Services,Head of Adults,Third Party Payments,471101,Purchase of Care,02-Dec-2015,3057877-2280194,"2,043.64",CHURCH VIEW CARE HOME.
Children and Adult Services,Head of Adults,Third Party Payments,470101,Purchase of Care,02-Dec-2015,3057877-2280374,"1,970.88",CHURCH VIEW CARE HOME.
Children and Adult Services,Head of Adults,Third Party Payments,470101,Purchase of Care,02-Dec-2015,3057877-2280974,"2,322.82",CHURCH VIEW CARE HOME.
Children and Adult Services,Head of Adults,Third Party Payments,470101,Purchase of Care,02-Dec-2015,3057877-2281031,"1,970.88",CHURCH VIEW CARE HOME.
Children and Adult Services,Head of Adults,Third Party Payments,471101,Purchase of Care,02-Dec-2015,3057877-2281173,"1,021.84",CHURCH VIEW CARE HOME.
Children and Adult Services,Head of Adults,Third Party Payments,470101,Purchase of Care,02-Dec-2015,3057877-2281224,"1,266.99",CHURCH VIEW CARE HOME.
Children and Adult Services,Head of Adults,Third Party Payments,470101,Purchase of Care,02-Dec-2015,3057877-2281284,"1,970.88",CHURCH VIEW CARE HOME.
Children and Adult Services,Head of Adults,Third Party Payments,470101,Purchase of Care,02-Dec-2015,3057877-2281398,"1,970.88",CHURCH VIEW CARE HOME.
Children and Adult Services,Head of Adults,Third Party Payments,471101,Purchase of Care,02-Dec-2015,3057877-2281400,"2,043.64",CHURCH VIEW CARE HOME.
Children and Adult Services,Head of Adults,Third Party Payments,471101,Purchase of Care,02-Dec-2015,3057877-2281407,"2,043.64",CHURCH VIEW CARE HOME.
Children and Adult Services,Head of Adults,Third Party Payments,470101,Purchase of Care,02-Dec-2015,3057877-2281617,"1,970.88",CHURCH VIEW CARE HOME.
Children and Adult Services,Head of Adults,Third Party Payments,470101,Purchase of Care,02-Dec-2015,3057877-2281698,"1,830.10",CHURCH VIEW CARE HOME.
Children and Adult Services,Head of Adults,Third Party Payments,471101,Purchase of Care,02-Dec-2015,3057877-2281791,"2,043.64",CHURCH VIEW CARE HOME.
Children and Adult Services,Head of Adults,Third Party Payments,470101,Purchase of Care,02-Dec-2015,3057877-2282047,"1,970.88",CHURCH VIEW CARE HOME.
Children and Adult Services,Head of Adults,Third Party Payments,470101,Purchase of Care,02-Dec-2015,3057877-2282064,"1,970.88",CHURCH VIEW CARE HOME.
Children and Adult Services,Head of Adults,Third Party Payments,471101,Purchase of Care,02-Dec-2015,3057878-2278515,"1,939.12",CHURCH VIEW RESIDENTIAL CARE HOME.
Children and Adult Services,Head of Adults,Third Party Payments,470101,Purchase of Care,02-Dec-2015,3057878-2278761,"1,865.32",CHURCH VIEW RESIDENTIAL CARE HOME.
Children and Adult Services,Head of Adults,Third Party Payments,471101,Purchase of Care,02-Dec-2015,3057878-2278873,"1,939.12",CHURCH VIEW RESIDENTIAL CARE HOME.
Children and Adult Services,Head of Adults,Third Party Payments,471101,Purchase of Care,02-Dec-2015,3057878-2278892,"1,939.12",CHURCH VIEW RESIDENTIAL CARE HOME.
Children and Adult Services,Head of Adults,Third Party Payments,470101,Purchase of Care,02-Dec-2015,3057878-2278931,"1,865.32",CHURCH VIEW RESIDENTIAL CARE HOME.
Children and Adult Services,Head of Adults,Third Party Payments,471101,Purchase of Care,02-Dec-2015,3057878-2279130,"1,939.12",CHURCH VIEW RESIDENTIAL CARE HOME.
Children and Adult Services,Head of Adults,Third Party Payments,471101,Purchase of Care,02-Dec-2015,3057878-2279235,"1,939.12",CHURCH VIEW RESIDENTIAL CARE HOME.
Children and Adult Services,Head of Adults,Third Party Payments,470101,Purchase of Care,02-Dec-2015,3057878-2279260,"1,865.32",CHURCH VIEW RESIDENTIAL CARE HOME.
Children and Adult Services,Head of Adults,Third Party Payments,470101,Purchase of Care,02-Dec-2015,3057878-2279487,"1,865.32",CHURCH VIEW RESIDENTIAL CARE HOME.
Children and Adult Services,Head of Adults,Third Party Payments,471101,Purchase of Care,02-Dec-2015,3057878-2279618,"1,939.12",CHURCH VIEW RESIDENTIAL CARE HOME.
Children and Adult Services,Head of Adults,Third Party Payments,470101,Purchase of Care,02-Dec-2015,3057878-2279722,"1,865.32",CHURCH VIEW RESIDENTIAL CARE HOME.
Children and Adult Services,Head of Adults,Third Party Payments,470101,Purchase of Care,02-Dec-2015,3057878-2279768,"1,865.32",CHURCH VIEW RESIDENTIAL CARE HOME.
Children and Adult Services,Head of Adults,Third Party Payments,471101,Purchase of Care,02-Dec-2015,3057878-2279929,"1,939.12",CHURCH VIEW RESIDENTIAL CARE HOME.
Children and Adult Services,Head of Adults,Third Party Payments,471101,Purchase of Care,02-Dec-2015,3057878-2279973,"1,939.12",CHURCH VIEW RESIDENTIAL CARE HOME.
Children and Adult Services,Head of Adults,Third Party Payments,471101,Purchase of Care,02-Dec-2015,3057878-2280033,"1,939.12",CHURCH VIEW RESIDENTIAL CARE HOME.
Children and Adult Services,Head of Adults,Third Party Payments,470101,Purchase of Care,02-Dec-2015,3057878-2280335,"1,865.32",CHURCH VIEW RESIDENTIAL CARE HOME.
Children and Adult Services,Head of Adults,Third Party Payments,471101,Purchase of Care,02-Dec-2015,3057878-2280347,"1,939.12",CHURCH VIEW RESIDENTIAL CARE HOME.
Children and Adult Services,Head of Adults,Third Party Payments,471101,Purchase of Care,02-Dec-2015,3057878-2280479,"1,939.12",CHURCH VIEW RESIDENTIAL CARE HOME.
Children and Adult Services,Head of Adults,Third Party Payments,470101,Purchase of Care,02-Dec-2015,3057878-2280487,"1,865.32",CHURCH VIEW RESIDENTIAL CARE HOME.
Children and Adult Services,Head of Adults,Third Party Payments,470101,Purchase of Care,02-Dec-2015,3057878-2280547,"1,865.32",CHURCH VIEW RESIDENTIAL CARE HOME.
Children and Adult Services,Head of Adults,Third Party Payments,470101,Purchase of Care,02-Dec-2015,3057878-2280705,"1,865.32",CHURCH VIEW RESIDENTIAL CARE HOME.
Children and Adult Services,Head of Adults,Third Party Payments,471101,Purchase of Care,02-Dec-2015,3057878-2280726,"1,939.12",CHURCH VIEW RESIDENTIAL CARE HOME.
Children and Adult Services,Head of Adults,Third Party Payments,471101,Purchase of Care,02-Dec-2015,3057878-2280867,"1,939.12",CHURCH VIEW RESIDENTIAL CARE HOME.
Children and Adult Services,Head of Adults,Third Party Payments,470101,Purchase of Care,02-Dec-2015,3057878-2280870,"1,865.32",CHURCH VIEW RESIDENTIAL CARE HOME.
Children and Adult Services,Head of Adults,Third Party Payments,470101,Purchase of Care,02-Dec-2015,3057878-2280916,"1,865.32",CHURCH VIEW RESIDENTIAL CARE HOME.
Children and Adult Services,Head of Adults,Third Party Payments,470101,Purchase of Care,02-Dec-2015,3057878-2281048,"1,865.32",CHURCH VIEW RESIDENTIAL CARE HOME.
Children and Adult Services,Head of Adults,Third Party Payments,471101,Purchase of Care,02-Dec-2015,3057878-2281119,"1,939.12",CHURCH VIEW RESIDENTIAL CARE HOME.
Children and Adult Services,Head of Adults,Third Party Payments,470101,Purchase of Care,02-Dec-2015,3057878-2281167,"1,865.32",CHURCH VIEW RESIDENTIAL CARE HOME.
Children and Adult Services,Head of Adults,Third Party Payments,471101,Purchase of Care,02-Dec-2015,3057878-2281170,"1,939.12",CHURCH VIEW RESIDENTIAL CARE HOME.
Children and Adult Services,Head of Adults,Third Party Payments,471101,Purchase of Care,02-Dec-2015,3057878-2281171,"1,939.12",CHURCH VIEW RESIDENTIAL CARE HOME.
Children and Adult Services,Head of Adults,Third Party Payments,470101,Purchase of Care,02-Dec-2015,3057878-2281358,"1,865.32",CHURCH VIEW RESIDENTIAL CARE HOME.
Children and Adult Services,Head of Adults,Third Party Payments,471101,Purchase of Care,02-Dec-2015,3057878-2281996,"1,939.12",CHURCH VIEW RESIDENTIAL CARE HOME.
Children and Adult Services,Head of Adults,Third Party Payments,471101,Purchase of Care,02-Dec-2015,3057878-2282169,969.56,CHURCH VIEW RESIDENTIAL CARE HOME.
Children and Adult Services,Head of Adults,Third Party Payments,471101,Purchase of Care,02-Dec-2015,3057878-2282192,"1,939.12",CHURCH VIEW RESIDENTIAL CARE HOME.
Children and Adult Services,Head of Adults,Third Party Payments,471101,Purchase of Care,02-Dec-2015,3057878-2282216,"1,869.86",CHURCH VIEW RESIDENTIAL CARE HOME.
Children and Adult Services,Head of Adults,Third Party Payments,470101,Purchase of Care,02-Dec-2015,3057878-2282416,932.68,CHURCH VIEW RESIDENTIAL CARE HOME.
Children and Adult Services,Head of Adults,Third Party Payments,471101,Purchase of Care,02-Dec-2015,3057878-2282423,"1,939.12",CHURCH VIEW RESIDENTIAL CARE HOME.
Children and Adult Services,Head of Adults,Third Party Payments,471101,Purchase of Care,02-Dec-2015,3057878-2282928,"1,177.32",CHURCH VIEW RESIDENTIAL CARE HOME.
Children and Adult Services,Head of Adults,Third Party Payments,470101,Purchase of Care,02-Dec-2015,3057878-2282929,"1,897.56",CHURCH VIEW RESIDENTIAL CARE HOME.
Children and Adult Services,Head of Adults,Third Party Payments,471101,Purchase of Care,02-Dec-2015,3057881-2279164,"1,780.00",COVENT HOUSE.
Children and Adult Services,Head of Adults,Third Party Payments,474101,Purchase of Care,02-Dec-2015,3057881-2279521,"1,824.00",COVENT HOUSE.
Children and Adult Services,Head of Adults,Third Party Payments,471101,Purchase of Care,02-Dec-2015,3057881-2279677,890.00,COVENT HOUSE.
Children and Adult Services,Head of Adults,Third Party Payments,474101,Purchase of Care,02-Dec-2015,3057881-2279725,"1,752.00",COVENT HOUSE.
Children and Adult Services,Head of Adults,Third Party Payments,471101,Purchase of Care,02-Dec-2015,3057881-2280229,"1,780.00",COVENT HOUSE.
Children and Adult Services,Head of Adults,Third Party Payments,474101,Purchase of Care,02-Dec-2015,3057881-2280419,"1,752.00",COVENT HOUSE.
Children and Adult Services,Head of Adults,Third Party Payments,474101,Purchase of Care,02-Dec-2015,3057881-2281842,"1,752.00",COVENT HOUSE.
Children and Adult Services,Head of Adults,Third Party Payments,474101,Purchase of Care,02-Dec-2015,3057881-2281904,"1,752.00",COVENT HOUSE.
Children and Adult Services,Head of Adults,Third Party Payments,474101,Purchase of Care,02-Dec-2015,3057881-2282159,"1,824.00",COVENT HOUSE.
Children and Adult Services,Head of Adults,Third Party Payments,470101,Purchase of Care,02-Dec-2015,3057881-2283087,"1,748.85",COVENT HOUSE.
Children and Adult Services,Head of Adults,Third Party Payments,471101,Purchase of Care,02-Dec-2015,3057882-2278614,"1,896.00",COVERAGE CARE SERVICES LTD/COTON HILL HOUSE.
Children and Adult Services,Head of Adults,Third Party Payments,471101,Purchase of Care,02-Dec-2015,3057883-2278806,"2,043.64",CRAIGARRAN CARE HOME WITH NURSING.
Children and Adult Services,Head of Adults,Third Party Payments,471101,Purchase of Care,02-Dec-2015,3057883-2278845,"2,043.64",CRAIGARRAN CARE HOME WITH NURSING.
Children and Adult Services,Head of Adults,Third Party Payments,470101,Purchase of Care,02-Dec-2015,3057883-2278855,"1,970.88",CRAIGARRAN CARE HOME WITH NURSING.
Children and Adult Services,Head of Adults,Third Party Payments,474101,Purchase of Care,02-Dec-2015,3057883-2278912,"2,064.08",CRAIGARRAN CARE HOME WITH NURSING.
Children and Adult Services,Head of Adults,Third Party Payments,471101,Purchase of Care,02-Dec-2015,3057883-2279062,"2,043.64",CRAIGARRAN CARE HOME WITH NURSING.
Children and Adult Services,Head of Adults,Third Party Payments,470101,Purchase of Care,02-Dec-2015,3057883-2279283,"1,970.88",CRAIGARRAN CARE HOME WITH NURSING.
Children and Adult Services,Head of Adults,Third Party Payments,474101,Purchase of Care,02-Dec-2015,3057883-2279310,"2,064.08",CRAIGARRAN CARE HOME WITH NURSING.
Children and Adult Services,Head of Adults,Third Party Payments,471101,Purchase of Care,02-Dec-2015,3057883-2279389,"2,043.64",CRAIGARRAN CARE HOME WITH NURSING.
Children and Adult Services,Head of Adults,Third Party Payments,474101,Purchase of Care,02-Dec-2015,3057883-2279485,"2,064.08",CRAIGARRAN CARE HOME WITH NURSING.
Children and Adult Services,Head of Adults,Third Party Payments,474101,Purchase of Care,02-Dec-2015,3057883-2279613,"2,064.08",CRAIGARRAN CARE HOME WITH NURSING.
Children and Adult Services,Head of Adults,Third Party Payments,470101,Purchase of Care,02-Dec-2015,3057883-2279754,"1,970.88",CRAIGARRAN CARE HOME WITH NURSING.
Children and Adult Services,Head of Adults,Third Party Payments,474101,Purchase of Care,02-Dec-2015,3057883-2280195,"2,064.08",CRAIGARRAN CARE HOME WITH NURSING.
Children and Adult Services,Head of Adults,Third Party Payments,470101,Purchase of Care,02-Dec-2015,3057883-2280676,"1,970.88",CRAIGARRAN CARE HOME WITH NURSING.
Children and Adult Services,Head of Adults,Third Party Payments,470101,Purchase of Care,02-Dec-2015,3057883-2280954,"1,337.38",CRAIGARRAN CARE HOME WITH NURSING.
Children and Adult Services,Head of Adults,Third Party Payments,474101,Purchase of Care,02-Dec-2015,3057883-2280977,"2,064.08",CRAIGARRAN CARE HOME WITH NURSING.
Children and Adult Services,Head of Adults,Third Party Payments,470101,Purchase of Care,02-Dec-2015,3057883-2281299,"1,970.88",CRAIGARRAN CARE HOME WITH NURSING.
Children and Adult Services,Head of Adults,Third Party Payments,470101,Purchase of Care,02-Dec-2015,3057883-2281322,"1,970.88",CRAIGARRAN CARE HOME WITH NURSING.
Children and Adult Services,Head of Adults,Third Party Payments,474101,Purchase of Care,02-Dec-2015,3057883-2281460,"2,064.08",CRAIGARRAN CARE HOME WITH NURSING.
Children and Adult Services,Head of Adults,Third Party Payments,474101,Purchase of Care,02-Dec-2015,3057883-2281464,"2,064.08",CRAIGARRAN CARE HOME WITH NURSING.
Children and Adult Services,Head of Adults,Third Party Payments,474101,Purchase of Care,02-Dec-2015,3057883-2281808,"2,064.08",CRAIGARRAN CARE HOME WITH NURSING.
Children and Adult Services,Head of Adults,Third Party Payments,471101,Purchase of Care,02-Dec-2015,3057883-2282135,"2,043.64",CRAIGARRAN CARE HOME WITH NURSING.
Children and Adult Services,Head of Adults,Third Party Payments,474101,Purchase of Care,02-Dec-2015,3057883-2282230,"2,064.08",CRAIGARRAN CARE HOME WITH NURSING.
Children and Adult Services,Head of Adults,Third Party Payments,474101,Purchase of Care,02-Dec-2015,3057883-2282307,"2,064.08",CRAIGARRAN CARE HOME WITH NURSING.
Children and Adult Services,Head of Adults,Third Party Payments,471101,Purchase of Care,02-Dec-2015,3057883-2282398,"1,021.80",CRAIGARRAN CARE HOME WITH NURSING.
Children and Adult Services,Head of Adults,Third Party Payments,470101,Purchase of Care,02-Dec-2015,3057883-2282915,703.88,CRAIGARRAN CARE HOME WITH NURSING.
Children and Adult Services,Head of Adults,Third Party Payments,474101,Purchase of Care,02-Dec-2015,3057883-2282916,"1,769.21",CRAIGARRAN CARE HOME WITH NURSING.
Children and Adult Services,Head of Adults,Third Party Payments,470101,Purchase of Care,02-Dec-2015,3057884-2278347,"1,970.88",CROFT HOUSE RESIDENTIAL HOME.
Children and Adult Services,Head of Adults,Third Party Payments,474101,Purchase of Care,02-Dec-2015,3057884-2278957,"2,064.08",CROFT HOUSE RESIDENTIAL HOME.
Children and Adult Services,Head of Adults,Third Party Payments,471101,Purchase of Care,02-Dec-2015,3057884-2279075,"1,493.84",CROFT HOUSE RESIDENTIAL HOME.
Children and Adult Services,Head of Adults,Third Party Payments,470101,Purchase of Care,02-Dec-2015,3057884-2279148,"2,210.20",CROFT HOUSE RESIDENTIAL HOME.
Children and Adult Services,Head of Adults,Third Party Payments,471101,Purchase of Care,02-Dec-2015,3057884-2279255,"1,461.96",CROFT HOUSE RESIDENTIAL HOME.
Children and Adult Services,Head of Adults,Third Party Payments,471101,Purchase of Care,02-Dec-2015,3057884-2279322,"1,221.08",CROFT HOUSE RESIDENTIAL HOME.
Children and Adult Services,Head of Adults,Third Party Payments,470101,Purchase of Care,02-Dec-2015,3057884-2279441,913.16,CROFT HOUSE RESIDENTIAL HOME.
Children and Adult Services,Head of Adults,Third Party Payments,470101,Purchase of Care,02-Dec-2015,3057884-2279450,"1,465.68",CROFT HOUSE RESIDENTIAL HOME.
Children and Adult Services,Head of Adults,Third Party Payments,470101,Purchase of Care,02-Dec-2015,3057884-2279455,"1,970.88",CROFT HOUSE RESIDENTIAL HOME.
Children and Adult Services,Head of Adults,Third Party Payments,470101,Purchase of Care,02-Dec-2015,3057884-2279530,"1,465.68",CROFT HOUSE RESIDENTIAL HOME.
Children and Adult Services,Head of Adults,Third Party Payments,474101,Purchase of Care,02-Dec-2015,3057884-2279936,"2,064.08",CROFT HOUSE RESIDENTIAL HOME.
Children and Adult Services,Head of Adults,Third Party Payments,470101,Purchase of Care,02-Dec-2015,3057884-2279955,"1,970.88",CROFT HOUSE RESIDENTIAL HOME.
Children and Adult Services,Head of Adults,Third Party Payments,474101,Purchase of Care,02-Dec-2015,3057884-2279985,"1,247.88",CROFT HOUSE RESIDENTIAL HOME.
Children and Adult Services,Head of Adults,Third Party Payments,474101,Purchase of Care,02-Dec-2015,3057884-2280007,884.60,CROFT HOUSE RESIDENTIAL HOME.
Children and Adult Services,Head of Adults,Third Party Payments,474101,Purchase of Care,02-Dec-2015,3057884-2280226,"2,064.08",CROFT HOUSE RESIDENTIAL HOME.
Children and Adult Services,Head of Adults,Third Party Payments,474101,Purchase of Care,02-Dec-2015,3057884-2280244,"2,241.56",CROFT HOUSE RESIDENTIAL HOME.
Children and Adult Services,Head of Adults,Third Party Payments,474101,Purchase of Care,02-Dec-2015,3057884-2280332,"2,064.08",CROFT HOUSE RESIDENTIAL HOME.
Children and Adult Services,Head of Adults,Third Party Payments,471101,Purchase of Care,02-Dec-2015,3057884-2280504,"2,043.64",CROFT HOUSE RESIDENTIAL HOME.
Children and Adult Services,Head of Adults,Third Party Payments,470101,Purchase of Care,02-Dec-2015,3057884-2280517,"1,970.88",CROFT HOUSE RESIDENTIAL HOME.
Children and Adult Services,Head of Adults,Third Party Payments,471101,Purchase of Care,02-Dec-2015,3057884-2280520,"1,021.80",CROFT HOUSE RESIDENTIAL HOME.
Children and Adult Services,Head of Adults,Third Party Payments,470101,Purchase of Care,02-Dec-2015,3057884-2281001,844.66,CROFT HOUSE RESIDENTIAL HOME.
Children and Adult Services,Head of Adults,Third Party Payments,471101,Purchase of Care,02-Dec-2015,3057884-2281077,"2,043.64",CROFT HOUSE RESIDENTIAL HOME.
Children and Adult Services,Head of Adults,Third Party Payments,474101,Purchase of Care,02-Dec-2015,3057884-2281604,"2,064.08",CROFT HOUSE RESIDENTIAL HOME.
Children and Adult Services,Head of Adults,Third Party Payments,474101,Purchase of Care,02-Dec-2015,3057884-2281760,"2,064.08",CROFT HOUSE RESIDENTIAL HOME.
Children and Adult Services,Head of Adults,Third Party Payments,474101,Purchase of Care,02-Dec-2015,3057884-2281766,"2,064.08",CROFT HOUSE RESIDENTIAL HOME.
Children and Adult Services,Head of Adults,Third Party Payments,474101,Purchase of Care,02-Dec-2015,3057884-2281956,"2,064.08",CROFT HOUSE RESIDENTIAL HOME.
Children and Adult Services,Head of Adults,Third Party Payments,470101,Purchase of Care,02-Dec-2015,3057884-2282598,"1,759.71",CROFT HOUSE RESIDENTIAL HOME.
Children and Adult Services,Head of Adults,Third Party Payments,474101,Purchase of Care,02-Dec-2015,3057884-2282874,737.17,CROFT HOUSE RESIDENTIAL HOME.
Children and Adult Services,Head of Adults,Third Party Payments,474101,Purchase of Care,02-Dec-2015,3057884-2282876,810.89,CROFT HOUSE RESIDENTIAL HOME.
Children and Adult Services,Head of Adults,Third Party Payments,470101,Purchase of Care,02-Dec-2015,3057884-2282878,703.88,CROFT HOUSE RESIDENTIAL HOME.
Children and Adult Services,Head of Adults,Third Party Payments,470101,Purchase of Care,02-Dec-2015,3057885-2278251,"1,303.00",CROFT UNIT.
Children and Adult Services,Head of Adults,Third Party Payments,470101,Purchase of Care,02-Dec-2015,3057885-2278405,"1,808.20",CROFT UNIT.
Children and Adult Services,Head of Adults,Third Party Payments,470101,Purchase of Care,02-Dec-2015,3057885-2278488,"1,808.20",CROFT UNIT.
Children and Adult Services,Head of Adults,Third Party Payments,470101,Purchase of Care,02-Dec-2015,3057885-2278539,"1,808.20",CROFT UNIT.
Children and Adult Services,Head of Adults,Third Party Payments,470101,Purchase of Care,02-Dec-2015,3057885-2278649,"1,125.88",CROFT UNIT.
Children and Adult Services,Head of Adults,Third Party Payments,470101,Purchase of Care,02-Dec-2015,3057885-2279276,"1,214.00",CROFT UNIT.
Children and Adult Services,Head of Adults,Third Party Payments,470101,Purchase of Care,02-Dec-2015,3057885-2279577,"1,790.32",CROFT UNIT.
Children and Adult Services,Head of Adults,Third Party Payments,470101,Purchase of Care,02-Dec-2015,3057885-2280104,"2,755.88",CROFT UNIT.
Children and Adult Services,Head of Adults,Third Party Payments,470101,Purchase of Care,02-Dec-2015,3057885-2280130,"2,428.00",CROFT UNIT.
Children and Adult Services,Head of Adults,Third Party Payments,470101,Purchase of Care,02-Dec-2015,3057885-2280267,"1,214.00",CROFT UNIT.
Children and Adult Services,Head of Adults,Third Party Payments,470101,Purchase of Care,02-Dec-2015,3057885-2280658,"2,428.00",CROFT UNIT.
Children and Adult Services,Head of Adults,Third Party Payments,470101,Purchase of Care,02-Dec-2015,3057885-2280774,"2,428.00",CROFT UNIT.
Children and Adult Services,Head of Adults,Third Party Payments,470101,Purchase of Care,02-Dec-2015,3057885-2281318,"2,100.00",CROFT UNIT.
Children and Adult Services,Head of Adults,Third Party Payments,470101,Purchase of Care,02-Dec-2015,3057885-2282232,"1,214.00",CROFT UNIT.
Children and Adult Services,Head of Adults,Third Party Payments,470101,Purchase of Care,02-Dec-2015,3057885-2282992,"1,342.58",CROFT UNIT.
Children and Adult Services,Head of Adults,Third Party Payments,470101,Purchase of Care,02-Dec-2015,3057885-2282995,607.00,CROFT UNIT.
Children and Adult Services,Head of Adults,Third Party Payments,470101,Purchase of Care,02-Dec-2015,3057885-2282996,"1,327.20",CROFT UNIT.
Children and Adult Services,Head of Adults,Third Party Payments,471101,Purchase of Care,02-Dec-2015,3057886-2278511,"2,064.40",DAIRY LANE CARE CENTRE.
Children and Adult Services,Head of Adults,Third Party Payments,470101,Purchase of Care,02-Dec-2015,3057886-2282281,641.70,DAIRY LANE CARE CENTRE.
Children and Adult Services,Head of Adults,Third Party Payments,470101,Purchase of Care,02-Dec-2015,3057887-2278466,"1,970.88",DEFOE COURT.
Children and Adult Services,Head of Adults,Third Party Payments,474101,Purchase of Care,02-Dec-2015,3057887-2278544,"2,064.08",DEFOE COURT.
Children and Adult Services,Head of Adults,Third Party Payments,470101,Purchase of Care,02-Dec-2015,3057887-2278712,"1,970.88",DEFOE COURT.
Children and Adult Services,Head of Adults,Third Party Payments,470101,Purchase of Care,02-Dec-2015,3057887-2279059,"1,970.88",DEFOE COURT.
Children and Adult Services,Head of Adults,Third Party Payments,474101,Purchase of Care,02-Dec-2015,3057887-2279271,"2,064.08",DEFOE COURT.
Children and Adult Services,Head of Adults,Third Party Payments,470101,Purchase of Care,02-Dec-2015,3057887-2279339,985.44,DEFOE COURT.
Children and Adult Services,Head of Adults,Third Party Payments,470101,Purchase of Care,02-Dec-2015,3057887-2279669,"1,970.88",DEFOE COURT.
Children and Adult Services,Head of Adults,Third Party Payments,470101,Purchase of Care,02-Dec-2015,3057887-2279848,"1,970.88",DEFOE COURT.
Children and Adult Services,Head of Adults,Third Party Payments,474101,Purchase of Care,02-Dec-2015,3057887-2280043,"2,064.08",DEFOE COURT.
Children and Adult Services,Head of Adults,Third Party Payments,470101,Purchase of Care,02-Dec-2015,3057887-2280314,633.49,DEFOE COURT.
Children and Adult Services,Head of Adults,Third Party Payments,470101,Purchase of Care,02-Dec-2015,3057887-2280470,"1,970.88",DEFOE COURT.
Children and Adult Services,Head of Adults,Third Party Payments,470101,Purchase of Care,02-Dec-2015,3057887-2280521,"1,970.88",DEFOE COURT.
Children and Adult Services,Head of Adults,Third Party Payments,470101,Purchase of Care,02-Dec-2015,3057887-2280558,"1,970.88",DEFOE COURT.
Children and Adult Services,Head of Adults,Third Party Payments,470101,Purchase of Care,02-Dec-2015,3057887-2280652,"1,970.88",DEFOE COURT.
Children and Adult Services,Head of Adults,Debtors,930136,Debtor Nursing Care - IC+ Nursing,02-Dec-2015,3057887-2280665,"2,023.60",DEFOE COURT.
Children and Adult Services,Head of Adults,Third Party Payments,470101,Purchase of Care,02-Dec-2015,3057887-2280775,"1,970.88",DEFOE COURT.
Children and Adult Services,Head of Adults,Third Party Payments,470101,Purchase of Care,02-Dec-2015,3057887-2280947,"1,337.38",DEFOE COURT.
Children and Adult Services,Head of Adults,Third Party Payments,471101,Purchase of Care,02-Dec-2015,3057887-2281164,"2,043.64",DEFOE COURT.
Children and Adult Services,Head of Adults,Third Party Payments,474101,Purchase of Care,02-Dec-2015,3057887-2281328,"2,064.08",DEFOE COURT.
Children and Adult Services,Head of Adults,Third Party Payments,474101,Purchase of Care,02-Dec-2015,3057887-2281375,"2,064.08",DEFOE COURT.
Children and Adult Services,Head of Adults,Third Party Payments,474101,Purchase of Care,02-Dec-2015,3057887-2281537,"2,064.08",DEFOE COURT.
Children and Adult Services,Central/Other,Debtors,930024,Debtor-free nursing care,02-Dec-2015,3057887-2281723,720.00,DEFOE COURT.
Children and Adult Services,Head of Adults,Third Party Payments,471101,Purchase of Care,02-Dec-2015,3057887-2281774,"1,021.84",DEFOE COURT.
Children and Adult Services,Head of Adults,Third Party Payments,474101,Purchase of Care,02-Dec-2015,3057887-2281878,"2,064.08",DEFOE COURT.
Children and Adult Services,Head of Adults,Third Party Payments,470101,Purchase of Care,02-Dec-2015,3057887-2281896,"1,970.88",DEFOE COURT.
Children and Adult Services,Head of Adults,Third Party Payments,470101,Purchase of Care,02-Dec-2015,3057887-2282114,"1,970.88",DEFOE COURT.
Children and Adult Services,Head of Adults,Third Party Payments,470101,Purchase of Care,02-Dec-2015,3057887-2282202,"1,266.99",DEFOE COURT.
Children and Adult Services,Head of Adults,Third Party Payments,470101,Purchase of Care,02-Dec-2015,3057887-2282208,"1,970.88",DEFOE COURT.
Children and Adult Services,Head of Adults,Debtors,930135,Debtor Residential Care - IC+ Rehabilitation,02-Dec-2015,3057887-2283023,759.11,DEFOE COURT.
Children and Adult Services,Head of Adults,Third Party Payments,470101,Purchase of Care,02-Dec-2015,3057888-2278522,"1,970.88",DERWENT CARE HOME.
Children and Adult Services,Head of Adults,Third Party Payments,470101,Purchase of Care,02-Dec-2015,3057888-2278527,"1,970.88",DERWENT CARE HOME.
Children and Adult Services,Head of Adults,Third Party Payments,471101,Purchase of Care,02-Dec-2015,3057888-2278762,"2,043.64",DERWENT CARE HOME.
Children and Adult Services,Head of Adults,Third Party Payments,471101,Purchase of Care,02-Dec-2015,3057888-2279480,"2,043.64",DERWENT CARE HOME.
Children and Adult Services,Head of Adults,Third Party Payments,471101,Purchase of Care,02-Dec-2015,3057888-2279573,"2,043.64",DERWENT CARE HOME.
Children and Adult Services,Head of Adults,Third Party Payments,471101,Purchase of Care,02-Dec-2015,3057888-2279607,"1,021.84",DERWENT CARE HOME.
Children and Adult Services,Head of Adults,Third Party Payments,470101,Purchase of Care,02-Dec-2015,3057888-2280533,"1,970.88",DERWENT CARE HOME.
Children and Adult Services,Head of Adults,Third Party Payments,471101,Purchase of Care,02-Dec-2015,3057888-2280702,"2,043.64",DERWENT CARE HOME.
Children and Adult Services,Head of Adults,Third Party Payments,470101,Purchase of Care,02-Dec-2015,3057888-2280792,"1,970.88",DERWENT CARE HOME.
Children and Adult Services,Head of Adults,Third Party Payments,470101,Purchase of Care,02-Dec-2015,3057888-2280919,994.76,DERWENT CARE HOME.
Children and Adult Services,Head of Adults,Third Party Payments,471101,Purchase of Care,02-Dec-2015,3057888-2281928,"2,043.64",DERWENT CARE HOME.
Children and Adult Services,Head of Adults,Third Party Payments,471101,Purchase of Care,02-Dec-2015,3057888-2281933,"2,043.64",DERWENT CARE HOME.
Children and Adult Services,Head of Adults,Third Party Payments,470101,Purchase of Care,02-Dec-2015,3057888-2282364,"1,970.88",DERWENT CARE HOME.
Children and Adult Services,Head of Adults,Third Party Payments,470101,Purchase of Care,02-Dec-2015,3057889-2278282,"3,021.64",BENTON CARE SERVICES LTD.
Children and Adult Services,Head of Adults,Third Party Payments,470101,Purchase of Care,02-Dec-2015,3057889-2278284,"3,021.64",BENTON CARE SERVICES LTD.
Children and Adult Services,Head of Adults,Third Party Payments,470101,Purchase of Care,02-Dec-2015,3057889-2278285,"3,021.64",BENTON CARE SERVICES LTD.
Children and Adult Services,Head of Adults,Third Party Payments,470101,Purchase of Care,02-Dec-2015,3057889-2278337,"3,021.64",BENTON CARE SERVICES LTD.
Children and Adult Services,Head of Adults,Third Party Payments,470101,Purchase of Care,02-Dec-2015,3057889-2278338,"3,021.64",BENTON CARE SERVICES LTD.
Children and Adult Services,Head of Adults,Third Party Payments,470101,Purchase of Care,02-Dec-2015,3057889-2278339,"3,021.64",BENTON CARE SERVICES LTD.
Children and Adult Services,Head of Adults,Third Party Payments,470101,Purchase of Care,02-Dec-2015,3057889-2279538,"1,870.32",BENTON CARE SERVICES LTD.
Children and Adult Services,Head of Adults,Third Party Payments,470101,Purchase of Care,02-Dec-2015,3057889-2279704,935.16,BENTON CARE SERVICES LTD.
Children and Adult Services,Head of Adults,Third Party Payments,474101,Purchase of Care,02-Dec-2015,3057890-2278716,778.54,DEVONSHIRE HOUSE.
Children and Adult Services,Head of Adults,Third Party Payments,474101,Purchase of Care,02-Dec-2015,3057890-2278737,"1,967.32",DEVONSHIRE HOUSE.
Children and Adult Services,Head of Adults,Third Party Payments,470101,Purchase of Care,02-Dec-2015,3057890-2278749,"1,939.12",DEVONSHIRE HOUSE.
Children and Adult Services,Head of Adults,Third Party Payments,470101,Purchase of Care,02-Dec-2015,3057890-2278774,"1,865.32",DEVONSHIRE HOUSE.
Children and Adult Services,Head of Adults,Third Party Payments,471101,Purchase of Care,02-Dec-2015,3057890-2278860,"1,308.68",DEVONSHIRE HOUSE.
Children and Adult Services,Head of Adults,Third Party Payments,470101,Purchase of Care,02-Dec-2015,3057890-2279392,"1,351.48",DEVONSHIRE HOUSE.
Children and Adult Services,Head of Adults,Third Party Payments,470101,Purchase of Care,02-Dec-2015,3057890-2279393,"1,356.40",DEVONSHIRE HOUSE.
Children and Adult Services,Head of Adults,Third Party Payments,470101,Purchase of Care,02-Dec-2015,3057890-2280018,"1,354.44",DEVONSHIRE HOUSE.
Children and Adult Services,Head of Adults,Third Party Payments,470101,Purchase of Care,02-Dec-2015,3057890-2280091,"1,357.48",DEVONSHIRE HOUSE.
Children and Adult Services,Head of Adults,Third Party Payments,470101,Purchase of Care,02-Dec-2015,3057890-2280120,"1,360.12",DEVONSHIRE HOUSE.
Children and Adult Services,Head of Adults,Third Party Payments,470101,Purchase of Care,02-Dec-2015,3057890-2280390,"1,424.40",DEVONSHIRE HOUSE.
Children and Adult Services,Head of Adults,Third Party Payments,474101,Purchase of Care,02-Dec-2015,3057890-2280433,"1,958.48",DEVONSHIRE HOUSE.
Children and Adult Services,Head of Adults,Third Party Payments,474101,Purchase of Care,02-Dec-2015,3057890-2280628,909.29,DEVONSHIRE HOUSE.
Children and Adult Services,Head of Adults,Third Party Payments,470101,Purchase of Care,02-Dec-2015,3057890-2280735,"1,865.32",DEVONSHIRE HOUSE.
Children and Adult Services,Head of Adults,Third Party Payments,474101,Purchase of Care,02-Dec-2015,3057890-2280794,"1,958.48",DEVONSHIRE HOUSE.
Children and Adult Services,Head of Adults,Third Party Payments,470101,Purchase of Care,02-Dec-2015,3057890-2281371,"1,865.32",DEVONSHIRE HOUSE.
Children and Adult Services,Head of Adults,Third Party Payments,470101,Purchase of Care,02-Dec-2015,3057891-2279295,"1,970.88",DIPTON CARE HOME LTD.
Children and Adult Services,Head of Adults,Third Party Payments,470101,Purchase of Care,02-Dec-2015,3057891-2279321,"1,970.88",DIPTON CARE HOME LTD.
Children and Adult Services,Head of Adults,Third Party Payments,470101,Purchase of Care,02-Dec-2015,3057891-2279423,"1,970.88",DIPTON CARE HOME LTD.
Children and Adult Services,Head of Adults,Third Party Payments,471101,Purchase of Care,02-Dec-2015,3057891-2279676,"2,043.64",DIPTON CARE HOME LTD.
Children and Adult Services,Head of Adults,Third Party Payments,470101,Purchase of Care,02-Dec-2015,3057891-2279777,"1,970.88",DIPTON CARE HOME LTD.
Children and Adult Services,Head of Adults,Third Party Payments,470101,Purchase of Care,02-Dec-2015,3057891-2279920,"1,970.88",DIPTON CARE HOME LTD.
Children and Adult Services,Head of Adults,Third Party Payments,471101,Purchase of Care,02-Dec-2015,3057891-2280288,"1,313.76",DIPTON CARE HOME LTD.
Children and Adult Services,Head of Adults,Third Party Payments,470101,Purchase of Care,02-Dec-2015,3057891-2280414,"1,970.88",DIPTON CARE HOME LTD.
Children and Adult Services,Head of Adults,Third Party Payments,471101,Purchase of Care,02-Dec-2015,3057891-2280531,"2,043.64",DIPTON CARE HOME LTD.
Children and Adult Services,Head of Adults,Third Party Payments,471101,Purchase of Care,02-Dec-2015,3057891-2280545,"2,043.64",DIPTON CARE HOME LTD.
Children and Adult Services,Head of Adults,Third Party Payments,474101,Purchase of Care,02-Dec-2015,3057891-2280565,"2,064.08",DIPTON CARE HOME LTD.
Children and Adult Services,Head of Adults,Third Party Payments,470101,Purchase of Care,02-Dec-2015,3057891-2280568,"1,970.88",DIPTON CARE HOME LTD.
Children and Adult Services,Head of Adults,Third Party Payments,471101,Purchase of Care,02-Dec-2015,3057891-2280657,"2,043.64",DIPTON CARE HOME LTD.
Children and Adult Services,Head of Adults,Third Party Payments,474101,Purchase of Care,02-Dec-2015,3057891-2280706,"1,253.19",DIPTON CARE HOME LTD.
Children and Adult Services,Head of Adults,Third Party Payments,471101,Purchase of Care,02-Dec-2015,3057891-2280709,"2,043.64",DIPTON CARE HOME LTD.
Children and Adult Services,Head of Adults,Third Party Payments,470101,Purchase of Care,02-Dec-2015,3057891-2280710,"1,970.88",DIPTON CARE HOME LTD.
Children and Adult Services,Head of Adults,Third Party Payments,470101,Purchase of Care,02-Dec-2015,3057891-2280793,"1,970.88",DIPTON CARE HOME LTD.
Children and Adult Services,Head of Adults,Third Party Payments,471101,Purchase of Care,02-Dec-2015,3057891-2280915,"2,043.64",DIPTON CARE HOME LTD.
Children and Adult Services,Head of Adults,Third Party Payments,471101,Purchase of Care,02-Dec-2015,3057891-2281122,"2,043.64",DIPTON CARE HOME LTD.
Children and Adult Services,Head of Adults,Third Party Payments,470101,Purchase of Care,02-Dec-2015,3057891-2281203,"1,970.88",DIPTON CARE HOME LTD.
Children and Adult Services,Head of Adults,Third Party Payments,471101,Purchase of Care,02-Dec-2015,3057891-2281298,"2,043.64",DIPTON CARE HOME LTD.
Children and Adult Services,Head of Adults,Third Party Payments,470101,Purchase of Care,02-Dec-2015,3057891-2281434,"1,970.88",DIPTON CARE HOME LTD.
Children and Adult Services,Head of Adults,Third Party Payments,470101,Purchase of Care,02-Dec-2015,3057891-2281549,"1,970.88",DIPTON CARE HOME LTD.
Children and Adult Services,Head of Adults,Third Party Payments,471101,Purchase of Care,02-Dec-2015,3057891-2281633,"2,043.64",DIPTON CARE HOME LTD.
Children and Adult Services,Head of Adults,Third Party Payments,471101,Purchase of Care,02-Dec-2015,3057891-2281640,"2,043.64",DIPTON CARE HOME LTD.
Children and Adult Services,Head of Adults,Third Party Payments,471101,Purchase of Care,02-Dec-2015,3057891-2281646,"2,043.64",DIPTON CARE HOME LTD.
Children and Adult Services,Head of Adults,Third Party Payments,470101,Purchase of Care,02-Dec-2015,3057891-2281769,"1,970.88",DIPTON CARE HOME LTD.
Children and Adult Services,Head of Adults,Third Party Payments,471101,Purchase of Care,02-Dec-2015,3057891-2281788,"2,043.64",DIPTON CARE HOME LTD.
Children and Adult Services,Head of Adults,Third Party Payments,470101,Purchase of Care,02-Dec-2015,3057891-2281986,"1,970.88",DIPTON CARE HOME LTD.
Children and Adult Services,Head of Adults,Third Party Payments,471101,Purchase of Care,02-Dec-2015,3057891-2282095,"2,043.64",DIPTON CARE HOME LTD.
Children and Adult Services,Head of Adults,Third Party Payments,471101,Purchase of Care,02-Dec-2015,3057891-2282103,510.91,DIPTON CARE HOME LTD.
Children and Adult Services,Head of Adults,Third Party Payments,471101,Purchase of Care,02-Dec-2015,3057891-2282175,985.34,DIPTON CARE HOME LTD.
Children and Adult Services,Head of Adults,Third Party Payments,470101,Purchase of Care,02-Dec-2015,3057891-2282213,"1,970.88",DIPTON CARE HOME LTD.
Children and Adult Services,Head of Adults,Third Party Payments,470101,Purchase of Care,02-Dec-2015,3057891-2282255,"1,970.88",DIPTON CARE HOME LTD.
Children and Adult Services,Head of Adults,Third Party Payments,471101,Purchase of Care,02-Dec-2015,3057891-2282444,"2,043.64",DIPTON CARE HOME LTD.
Children and Adult Services,Head of Adults,Third Party Payments,470101,Purchase of Care,02-Dec-2015,3057891-2282921,"5,173.56",DIPTON CARE HOME LTD.
Children and Adult Services,Head of Adults,Third Party Payments,471101,Purchase of Care,02-Dec-2015,3057891-2282933,510.91,DIPTON CARE HOME LTD.
Children and Adult Services,Head of Adults,Third Party Payments,471101,Purchase of Care,02-Dec-2015,3057891-2282934,"1,897.66",DIPTON CARE HOME LTD.
Children and Adult Services,Head of Adults,Third Party Payments,470101,Purchase of Care,02-Dec-2015,3057891-2282952,"1,126.21",DIPTON CARE HOME LTD.
Children and Adult Services,Head of Adults,Third Party Payments,470101,Purchase of Care,02-Dec-2015,3057892-2279174,"1,711.20",DONWELL DAY CARE CENTRE.
Children and Adult Services,Head of Adults,Third Party Payments,474101,Purchase of Care,02-Dec-2015,3057892-2279377,"1,996.40",DONWELL DAY CARE CENTRE.
Children and Adult Services,Head of Adults,Third Party Payments,470101,Purchase of Care,02-Dec-2015,3057892-2279800,"1,996.40",DONWELL DAY CARE CENTRE.
Children and Adult Services,Head of Adults,Third Party Payments,474101,Purchase of Care,02-Dec-2015,3057892-2280116,"2,086.40",DONWELL DAY CARE CENTRE.
Children and Adult Services,Head of Adults,Third Party Payments,478101,Purchase of Care,02-Dec-2015,3057893-2278371,"1,371.04",REDACTED - PAYMENT TO INDIVIDUAL
Children and Adult Services,Head of Adults,Third Party Payments,470101,Purchase of Care,02-Dec-2015,3057894-2278425,"1,317.80",DR ANDREW ASHDOWN (DENEHURST NURSING HOME).
Children and Adult Services,Head of Adults,Third Party Payments,470101,Purchase of Care,02-Dec-2015,3057894-2278930,"1,865.32",DR ANDREW ASHDOWN (DENEHURST NURSING HOME).
Children and Adult Services,Head of Adults,Third Party Payments,474101,Purchase of Care,02-Dec-2015,3057894-2279203,"1,630.80",DR ANDREW ASHDOWN (DENEHURST NURSING HOME).
Children and Adult Services,Head of Adults,Third Party Payments,474101,Purchase of Care,02-Dec-2015,3057894-2279497,"1,145.60",DR ANDREW ASHDOWN (DENEHURST NURSING HOME).
Children and Adult Services,Head of Adults,Third Party Payments,470101,Purchase of Care,02-Dec-2015,3057894-2279578,"1,865.32",DR ANDREW ASHDOWN (DENEHURST NURSING HOME).
Children and Adult Services,Head of Adults,Third Party Payments,474101,Purchase of Care,02-Dec-2015,3057894-2279839,"1,122.96",DR ANDREW ASHDOWN (DENEHURST NURSING HOME).
Children and Adult Services,Head of Adults,Third Party Payments,471101,Purchase of Care,02-Dec-2015,3057894-2280025,"1,107.88",DR ANDREW ASHDOWN (DENEHURST NURSING HOME).
Children and Adult Services,Head of Adults,Third Party Payments,474101,Purchase of Care,02-Dec-2015,3057894-2280160,"1,604.24",DR ANDREW ASHDOWN (DENEHURST NURSING HOME).
Children and Adult Services,Head of Adults,Third Party Payments,470101,Purchase of Care,02-Dec-2015,3057894-2280490,"1,189.64",DR ANDREW ASHDOWN (DENEHURST NURSING HOME).
Children and Adult Services,Head of Adults,Third Party Payments,471101,Purchase of Care,02-Dec-2015,3057894-2280546,"1,429.84",DR ANDREW ASHDOWN (DENEHURST NURSING HOME).
Children and Adult Services,Head of Adults,Third Party Payments,474101,Purchase of Care,02-Dec-2015,3057894-2280893,"1,748.64",DR ANDREW ASHDOWN (DENEHURST NURSING HOME).
Children and Adult Services,Head of Adults,Third Party Payments,470101,Purchase of Care,02-Dec-2015,3057894-2281060,"1,360.12",DR ANDREW ASHDOWN (DENEHURST NURSING HOME).
Children and Adult Services,Head of Adults,Third Party Payments,470101,Purchase of Care,02-Dec-2015,3057894-2281107,"1,329.68",DR ANDREW ASHDOWN (DENEHURST NURSING HOME).
Children and Adult Services,Head of Adults,Third Party Payments,474101,Purchase of Care,02-Dec-2015,3057894-2281115,"1,958.48",DR ANDREW ASHDOWN (DENEHURST NURSING HOME).
Children and Adult Services,Head of Adults,Third Party Payments,470101,Purchase of Care,02-Dec-2015,3057894-2281303,"1,097.00",DR ANDREW ASHDOWN (DENEHURST NURSING HOME).
Children and Adult Services,Head of Adults,Third Party Payments,471101,Purchase of Care,02-Dec-2015,3057894-2281306,"1,242.20",DR ANDREW ASHDOWN (DENEHURST NURSING HOME).
Children and Adult Services,Head of Adults,Third Party Payments,470101,Purchase of Care,02-Dec-2015,3057894-2281323,932.68,DR ANDREW ASHDOWN (DENEHURST NURSING HOME).
Children and Adult Services,Head of Adults,Third Party Payments,471101,Purchase of Care,02-Dec-2015,3057894-2281523,"1,939.12",DR ANDREW ASHDOWN (DENEHURST NURSING HOME).
Children and Adult Services,Head of Adults,Third Party Payments,470101,Purchase of Care,02-Dec-2015,3057894-2281625,"1,003.20",DR ANDREW ASHDOWN (DENEHURST NURSING HOME).
Children and Adult Services,Head of Adults,Third Party Payments,474101,Purchase of Care,02-Dec-2015,3057894-2281976,"1,958.48",DR ANDREW ASHDOWN (DENEHURST NURSING HOME).
Children and Adult Services,Head of Adults,Third Party Payments,470101,Purchase of Care,02-Dec-2015,3057894-2282186,"1,865.32",DR ANDREW ASHDOWN (DENEHURST NURSING HOME).
Children and Adult Services,Head of Adults,Third Party Payments,474101,Purchase of Care,02-Dec-2015,3057894-2282375,774.12,DR ANDREW ASHDOWN (DENEHURST NURSING HOME).
Children and Adult Services,Head of Adults,Third Party Payments,471101,Purchase of Care,02-Dec-2015,3057895-2278430,"1,459.20",DR ANDREW ASHDOWN (STOCKTON LODGE CARE HOME).
Children and Adult Services,Head of Adults,Third Party Payments,470101,Purchase of Care,02-Dec-2015,3057895-2278467,"1,251.44",DR ANDREW ASHDOWN (STOCKTON LODGE CARE HOME).
Children and Adult Services,Head of Adults,Third Party Payments,470101,Purchase of Care,02-Dec-2015,3057895-2278626,"1,970.88",DR ANDREW ASHDOWN (STOCKTON LODGE CARE HOME).
Children and Adult Services,Head of Adults,Third Party Payments,471101,Purchase of Care,02-Dec-2015,3057895-2278711,"1,280.04",DR ANDREW ASHDOWN (STOCKTON LODGE CARE HOME).
Children and Adult Services,Head of Adults,Third Party Payments,471101,Purchase of Care,02-Dec-2015,3057895-2279096,"2,043.64",DR ANDREW ASHDOWN (STOCKTON LODGE CARE HOME).
Children and Adult Services,Head of Adults,Third Party Payments,470101,Purchase of Care,02-Dec-2015,3057895-2279131,"1,970.88",DR ANDREW ASHDOWN (STOCKTON LODGE CARE HOME).
Children and Adult Services,Head of Adults,Third Party Payments,471101,Purchase of Care,02-Dec-2015,3057895-2279323,"1,661.00",DR ANDREW ASHDOWN (STOCKTON LODGE CARE HOME).
Children and Adult Services,Head of Adults,Third Party Payments,471101,Purchase of Care,02-Dec-2015,3057895-2279675,"1,481.68",DR ANDREW ASHDOWN (STOCKTON LODGE CARE HOME).
Children and Adult Services,Head of Adults,Third Party Payments,470101,Purchase of Care,02-Dec-2015,3057895-2279793,"1,465.68",DR ANDREW ASHDOWN (STOCKTON LODGE CARE HOME).
Children and Adult Services,Head of Adults,Third Party Payments,470101,Purchase of Care,02-Dec-2015,3057895-2279857,"1,465.68",DR ANDREW ASHDOWN (STOCKTON LODGE CARE HOME).
Children and Adult Services,Head of Adults,Third Party Payments,471101,Purchase of Care,02-Dec-2015,3057895-2280202,"1,538.44",DR ANDREW ASHDOWN (STOCKTON LODGE CARE HOME).
Children and Adult Services,Head of Adults,Third Party Payments,470101,Purchase of Care,02-Dec-2015,3057895-2280400,"1,649.08",DR ANDREW ASHDOWN (STOCKTON LODGE CARE HOME).
Children and Adult Services,Head of Adults,Third Party Payments,471101,Purchase of Care,02-Dec-2015,3057895-2280569,"5,558.02",DR ANDREW ASHDOWN (STOCKTON LODGE CARE HOME).
Children and Adult Services,Head of Adults,Third Party Payments,470101,Purchase of Care,02-Dec-2015,3057895-2280714,774.27,DR ANDREW ASHDOWN (STOCKTON LODGE CARE HOME).
Children and Adult Services,Head of Adults,Third Party Payments,470101,Purchase of Care,02-Dec-2015,3057895-2280874,"1,970.88",DR ANDREW ASHDOWN (STOCKTON LODGE CARE HOME).
Children and Adult Services,Head of Adults,Third Party Payments,470101,Purchase of Care,02-Dec-2015,3057895-2280880,"1,465.68",DR ANDREW ASHDOWN (STOCKTON LODGE CARE HOME).
Children and Adult Services,Head of Adults,Third Party Payments,471101,Purchase of Care,02-Dec-2015,3057895-2281043,"2,043.64",DR ANDREW ASHDOWN (STOCKTON LODGE CARE HOME).
Children and Adult Services,Head of Adults,Third Party Payments,470101,Purchase of Care,02-Dec-2015,3057895-2281102,"1,329.56",DR ANDREW ASHDOWN (STOCKTON LODGE CARE HOME).
Children and Adult Services,Head of Adults,Third Party Payments,470101,Purchase of Care,02-Dec-2015,3057895-2281985,"1,404.92",DR ANDREW ASHDOWN (STOCKTON LODGE CARE HOME).
Children and Adult Services,Head of Adults,Third Party Payments,470101,Purchase of Care,02-Dec-2015,3057895-2282065,"1,196.60",DR ANDREW ASHDOWN (STOCKTON LODGE CARE HOME).
Children and Adult Services,Head of Adults,Third Party Payments,471101,Purchase of Care,02-Dec-2015,3057895-2282310,"2,043.64",DR ANDREW ASHDOWN (STOCKTON LODGE CARE HOME).
Children and Adult Services,Head of Adults,Third Party Payments,474101,Purchase of Care,02-Dec-2015,3057896-2281146,"4,744.68",DUCKS HALT CARE HOME
Children and Adult Services,Head of Adults,Third Party Payments,474101,Purchase of Care,02-Dec-2015,3057897-2279845,"8,000.00",DUNLUCE HOUSE T/A BOHILL BUNGALOWS.
Children and Adult Services,Head of Adults,Third Party Payments,470101,Purchase of Care,02-Dec-2015,3057898-2278970,"2,200.00",DURHAM CARELINE LTD.
Children and Adult Services,Head of Adults,Third Party Payments,470101,Purchase of Care,02-Dec-2015,3057899-2278255,"2,038.96",DURHAM CARELINE LTD.
Children and Adult Services,Head of Adults,Third Party Payments,470101,Purchase of Care,02-Dec-2015,3057899-2278304,"2,038.96",DURHAM CARELINE LTD.
Children and Adult Services,Head of Adults,Third Party Payments,470101,Purchase of Care,02-Dec-2015,3057899-2278376,"1,870.32",DURHAM CARELINE LTD.
Children and Adult Services,Head of Adults,Third Party Payments,470101,Purchase of Care,02-Dec-2015,3057899-2278423,"1,870.32",DURHAM CARELINE LTD.
Children and Adult Services,Head of Adults,Third Party Payments,470101,Purchase of Care,02-Dec-2015,3057899-2278432,"1,870.32",DURHAM CARELINE LTD.
Children and Adult Services,Head of Adults,Third Party Payments,470101,Purchase of Care,02-Dec-2015,3057899-2278440,"1,471.08",DURHAM CARELINE LTD.
Children and Adult Services,Head of Adults,Third Party Payments,470101,Purchase of Care,02-Dec-2015,3057899-2278455,"2,038.96",DURHAM CARELINE LTD.
Children and Adult Services,Head of Adults,Third Party Payments,470101,Purchase of Care,02-Dec-2015,3057899-2278520,"1,545.24",DURHAM CARELINE LTD.
Children and Adult Services,Head of Adults,Third Party Payments,470101,Purchase of Care,02-Dec-2015,3057899-2278558,"1,019.48",DURHAM CARELINE LTD.
Children and Adult Services,Head of Adults,Third Party Payments,470101,Purchase of Care,02-Dec-2015,3057899-2278665,"2,038.96",DURHAM CARELINE LTD.
Children and Adult Services,Head of Adults,Third Party Payments,470101,Purchase of Care,02-Dec-2015,3057899-2278866,"2,038.96",DURHAM CARELINE LTD.
Children and Adult Services,Head of Adults,Third Party Payments,470101,Purchase of Care,02-Dec-2015,3057899-2281346,"2,038.96",DURHAM CARELINE LTD.
Children and Adult Services,Head of Adults,Third Party Payments,470101,Purchase of Care,02-Dec-2015,3057901-2276932,"1,129.28",EDEN COTTAGE RESIDENTIAL HOME.
Children and Adult Services,Head of Adults,Third Party Payments,470101,Purchase of Care,02-Dec-2015,3057901-2281917,"1,860.00",EDEN COTTAGE RESIDENTIAL HOME.
Children and Adult Services,Head of Adults,Third Party Payments,470101,Purchase of Care,02-Dec-2015,3057902-2279923,"1,865.32",ELBA CARE LTD T/A DIVINE CARE CENTRE.
Children and Adult Services,Head of Adults,Third Party Payments,471101,Purchase of Care,02-Dec-2015,3057902-2280213,"1,939.12",ELBA CARE LTD T/A DIVINE CARE CENTRE.
Children and Adult Services,Head of Adults,Debtors,930135,Debtor Residential Care - IC+ Rehabilitation,02-Dec-2015,3057902-2280317,828.12,ELBA CARE LTD T/A DIVINE CARE CENTRE.
Children and Adult Services,Head of Adults,Third Party Payments,470101,Purchase of Care,02-Dec-2015,3057902-2280596,"1,865.32",ELBA CARE LTD T/A DIVINE CARE CENTRE.
Children and Adult Services,Head of Adults,Third Party Payments,470101,Purchase of Care,02-Dec-2015,3057902-2280884,"1,865.32",ELBA CARE LTD T/A DIVINE CARE CENTRE.
Children and Adult Services,Head of Adults,Third Party Payments,471101,Purchase of Care,02-Dec-2015,3057902-2280989,831.05,ELBA CARE LTD T/A DIVINE CARE CENTRE.
Children and Adult Services,Head of Adults,Third Party Payments,471101,Purchase of Care,02-Dec-2015,3057902-2281020,"1,939.12",ELBA CARE LTD T/A DIVINE CARE CENTRE.
Children and Adult Services,Head of Adults,Third Party Payments,470101,Purchase of Care,02-Dec-2015,3057902-2281148,"1,865.32",ELBA CARE LTD T/A DIVINE CARE CENTRE.
Children and Adult Services,Head of Adults,Third Party Payments,470101,Purchase of Care,02-Dec-2015,3057902-2281208,"1,865.32",ELBA CARE LTD T/A DIVINE CARE CENTRE.
Children and Adult Services,Head of Adults,Debtors,930135,Debtor Residential Care - IC+ Rehabilitation,02-Dec-2015,3057902-2281217,"1,656.24",ELBA CARE LTD T/A DIVINE CARE CENTRE.
Children and Adult Services,Head of Adults,Third Party Payments,470101,Purchase of Care,02-Dec-2015,3057902-2281938,"1,865.32",ELBA CARE LTD T/A DIVINE CARE CENTRE.
Children and Adult Services,Head of Adults,Third Party Payments,470101,Purchase of Care,02-Dec-2015,3057902-2282116,"1,865.32",ELBA CARE LTD T/A DIVINE CARE CENTRE.
Children and Adult Services,Head of Adults,Third Party Payments,470101,Purchase of Care,02-Dec-2015,3057902-2282145,"1,865.32",ELBA CARE LTD T/A DIVINE CARE CENTRE.
Children and Adult Services,Head of Adults,Debtors,930135,Debtor Residential Care - IC+ Rehabilitation,02-Dec-2015,3057902-2282400,"1,242.18",ELBA CARE LTD T/A DIVINE CARE CENTRE.
Children and Adult Services,Head of Adults,Third Party Payments,470102,Purchase of Care,02-Dec-2015,3057902-2282520,"1,380.20",ELBA CARE LTD T/A DIVINE CARE CENTRE.
Children and Adult Services,Head of Adults,Third Party Payments,478101,Purchase of Care,02-Dec-2015,3057903-2278331,"1,371.04",REDACTED - PAYMENT TO INDIVIDUAL
Children and Adult Services,Head of Adults,Third Party Payments,474101,Purchase of Care,02-Dec-2015,3057904-2278591,"1,976.00",ELIZABETH FLEMMING CARE HOME.
Children and Adult Services,Head of Adults,Third Party Payments,474101,Purchase of Care,02-Dec-2015,3057904-2278874,"1,976.00",ELIZABETH FLEMMING CARE HOME.
Children and Adult Services,Head of Adults,Third Party Payments,471101,Purchase of Care,02-Dec-2015,3057904-2279026,"1,151.36",ELIZABETH FLEMMING CARE HOME.
Children and Adult Services,Head of Adults,Third Party Payments,474101,Purchase of Care,02-Dec-2015,3057904-2279601,"1,976.00",ELIZABETH FLEMMING CARE HOME.
Children and Adult Services,Head of Adults,Third Party Payments,474101,Purchase of Care,02-Dec-2015,3057904-2279715,"1,976.00",ELIZABETH FLEMMING CARE HOME.
Children and Adult Services,Head of Adults,Third Party Payments,470101,Purchase of Care,02-Dec-2015,3057905-2278378,"11,023.16",ELLERSHAW HOUSE.
Children and Adult Services,Head of Adults,Third Party Payments,470101,Purchase of Care,02-Dec-2015,3057906-2278283,"2,574.60",ELPHA LODGE LTD.
Children and Adult Services,Head of Adults,Third Party Payments,471101,Purchase of Care,02-Dec-2015,3057907-2278448,"2,024.00",ELWICK GRANGE.
Children and Adult Services,Head of Adults,Third Party Payments,474101,Purchase of Care,02-Dec-2015,3057908-2279150,"2,064.08",EMBRACE ALL LTD.
Children and Adult Services,Head of Adults,Third Party Payments,474101,Purchase of Care,02-Dec-2015,3057908-2279231,"1,233.60",EMBRACE ALL LTD.
Children and Adult Services,Head of Adults,Third Party Payments,474101,Purchase of Care,02-Dec-2015,3057908-2279411,"1,189.88",EMBRACE ALL LTD.
Children and Adult Services,Head of Adults,Third Party Payments,474101,Purchase of Care,02-Dec-2015,3057908-2279476,"2,064.08",EMBRACE ALL LTD.
Children and Adult Services,Head of Adults,Third Party Payments,471101,Purchase of Care,02-Dec-2015,3057908-2279858,"2,043.64",EMBRACE ALL LTD.
Children and Adult Services,Head of Adults,Third Party Payments,471101,Purchase of Care,02-Dec-2015,3057908-2279993,"2,043.64",EMBRACE ALL LTD.
Children and Adult Services,Head of Adults,Third Party Payments,474101,Purchase of Care,02-Dec-2015,3057908-2280081,"2,064.08",EMBRACE ALL LTD.
Children and Adult Services,Head of Adults,Third Party Payments,474101,Purchase of Care,02-Dec-2015,3057908-2280082,"3,864.00",EMBRACE ALL LTD.
Children and Adult Services,Head of Adults,Third Party Payments,470101,Purchase of Care,02-Dec-2015,3057908-2280095,"1,970.88",EMBRACE ALL LTD.
Children and Adult Services,Head of Adults,Third Party Payments,470101,Purchase of Care,02-Dec-2015,3057908-2280129,"1,970.88",EMBRACE ALL LTD.
Children and Adult Services,Head of Adults,Third Party Payments,474101,Purchase of Care,02-Dec-2015,3057908-2280534,"2,064.08",EMBRACE ALL LTD.
Children and Adult Services,Head of Adults,Third Party Payments,470101,Purchase of Care,02-Dec-2015,3057908-2280578,"1,970.88",EMBRACE ALL LTD.
Children and Adult Services,Head of Adults,Third Party Payments,470101,Purchase of Care,02-Dec-2015,3057908-2280752,"1,970.88",EMBRACE ALL LTD.
Children and Adult Services,Head of Adults,Debtors,930135,Debtor Residential Care - IC+ Rehabilitation,02-Dec-2015,3057908-2280898,"1,757.86",EMBRACE ALL LTD.
Children and Adult Services,Head of Adults,Third Party Payments,470102,Purchase of Care,02-Dec-2015,3057908-2280899,897.13,EMBRACE ALL LTD.
Children and Adult Services,Head of Adults,Third Party Payments,474101,Purchase of Care,02-Dec-2015,3057908-2281210,"2,064.08",EMBRACE ALL LTD.
Children and Adult Services,Head of Adults,Debtors,930135,Debtor Residential Care - IC+ Rehabilitation,02-Dec-2015,3057908-2281262,"1,311.19",EMBRACE ALL LTD.
Children and Adult Services,Head of Adults,Debtors,930135,Debtor Residential Care - IC+ Rehabilitation,02-Dec-2015,3057908-2281531,966.14,EMBRACE ALL LTD.
Children and Adult Services,Head of Adults,Third Party Payments,470101,Purchase of Care,02-Dec-2015,3057908-2281553,"1,970.88",EMBRACE ALL LTD.
Children and Adult Services,Head of Adults,Third Party Payments,474101,Purchase of Care,02-Dec-2015,3057908-2281558,"2,064.08",EMBRACE ALL LTD.
Children and Adult Services,Head of Adults,Third Party Payments,474101,Purchase of Care,02-Dec-2015,3057908-2281801,"5,070.38",EMBRACE ALL LTD.
Children and Adult Services,Head of Adults,Third Party Payments,471101,Purchase of Care,02-Dec-2015,3057908-2281831,"2,043.64",EMBRACE ALL LTD.
Children and Adult Services,Head of Adults,Third Party Payments,474101,Purchase of Care,02-Dec-2015,3057908-2282007,"2,064.08",EMBRACE ALL LTD.
Children and Adult Services,Head of Adults,Third Party Payments,474101,Purchase of Care,02-Dec-2015,3057908-2282197,"2,064.08",EMBRACE ALL LTD.
Children and Adult Services,Head of Adults,Third Party Payments,471101,Purchase of Care,02-Dec-2015,3057908-2282401,"2,043.64",EMBRACE ALL LTD.
Children and Adult Services,Head of Adults,Third Party Payments,470101,Purchase of Care,02-Dec-2015,3057908-2282404,"1,970.88",EMBRACE ALL LTD.
Children and Adult Services,Head of Adults,Third Party Payments,474101,Purchase of Care,02-Dec-2015,3057908-2283011,"2,432.67",EMBRACE ALL LTD.
Children and Adult Services,Central/Other,Debtors,930024,Debtor-free nursing care,02-Dec-2015,3057908-2283012,528.00,EMBRACE ALL LTD.
Children and Adult Services,Head of Adults,Debtors,930135,Debtor Residential Care - IC+ Rehabilitation,02-Dec-2015,3057908-2283013,690.10,EMBRACE ALL LTD.
Children and Adult Services,Head of Adults,Debtors,930135,Debtor Residential Care - IC+ Rehabilitation,02-Dec-2015,3057908-2283016,"1,104.16",EMBRACE ALL LTD.
Children and Adult Services,Head of Adults,Debtors,930135,Debtor Residential Care - IC+ Rehabilitation,02-Dec-2015,3057908-2283017,"1,518.22",EMBRACE ALL LTD.
Children and Adult Services,Head of Adults,Third Party Payments,471101,Purchase of Care,02-Dec-2015,3057909-2278429,"1,939.12",EMBRACE ALL LTD.
Children and Adult Services,Head of Adults,Third Party Payments,471101,Purchase of Care,02-Dec-2015,3057909-2278528,"1,939.12",EMBRACE ALL LTD.
Children and Adult Services,Head of Adults,Third Party Payments,471101,Purchase of Care,02-Dec-2015,3057909-2278546,"1,939.12",EMBRACE ALL LTD.
Children and Adult Services,Head of Adults,Third Party Payments,474101,Purchase of Care,02-Dec-2015,3057909-2278573,"1,958.48",EMBRACE ALL LTD.
Children and Adult Services,Head of Adults,Third Party Payments,471101,Purchase of Care,02-Dec-2015,3057909-2278613,"1,939.12",EMBRACE ALL LTD.
Children and Adult Services,Head of Adults,Third Party Payments,470101,Purchase of Care,02-Dec-2015,3057909-2278809,"1,865.32",EMBRACE ALL LTD.
Children and Adult Services,Head of Adults,Third Party Payments,470101,Purchase of Care,02-Dec-2015,3057909-2278910,"2,059.68",EMBRACE ALL LTD.
Children and Adult Services,Head of Adults,Third Party Payments,474101,Purchase of Care,02-Dec-2015,3057909-2279145,"1,958.48",EMBRACE ALL LTD.
Children and Adult Services,Head of Adults,Third Party Payments,470101,Purchase of Care,02-Dec-2015,3057909-2279155,932.68,EMBRACE ALL LTD.
Children and Adult Services,Head of Adults,Third Party Payments,470101,Purchase of Care,02-Dec-2015,3057909-2279168,"1,865.32",EMBRACE ALL LTD.
Children and Adult Services,Head of Adults,Third Party Payments,471101,Purchase of Care,02-Dec-2015,3057909-2279200,"1,939.12",EMBRACE ALL LTD.
Children and Adult Services,Head of Adults,Third Party Payments,470101,Purchase of Care,02-Dec-2015,3057909-2279503,"1,865.32",EMBRACE ALL LTD.
Children and Adult Services,Head of Adults,Third Party Payments,474101,Purchase of Care,02-Dec-2015,3057909-2279510,"1,958.48",EMBRACE ALL LTD.
Children and Adult Services,Head of Adults,Third Party Payments,470101,Purchase of Care,02-Dec-2015,3057909-2279592,"1,865.32",EMBRACE ALL LTD.
Children and Adult Services,Head of Adults,Third Party Payments,474101,Purchase of Care,02-Dec-2015,3057909-2279627,"1,958.48",EMBRACE ALL LTD.
Children and Adult Services,Head of Adults,Third Party Payments,470101,Purchase of Care,02-Dec-2015,3057909-2279661,"2,059.68",EMBRACE ALL LTD.
Children and Adult Services,Head of Adults,Third Party Payments,474101,Purchase of Care,02-Dec-2015,3057909-2279662,"1,958.48",EMBRACE ALL LTD.
Children and Adult Services,Head of Adults,Third Party Payments,470101,Purchase of Care,02-Dec-2015,3057909-2279709,"1,865.32",EMBRACE ALL LTD.
Children and Adult Services,Head of Adults,Third Party Payments,474101,Purchase of Care,02-Dec-2015,3057909-2279710,"1,958.48",EMBRACE ALL LTD.
Children and Adult Services,Head of Adults,Third Party Payments,471101,Purchase of Care,02-Dec-2015,3057909-2279756,"1,939.12",EMBRACE ALL LTD.
Children and Adult Services,Head of Adults,Third Party Payments,474101,Purchase of Care,02-Dec-2015,3057909-2279802,"1,958.48",EMBRACE ALL LTD.
Children and Adult Services,Head of Adults,Third Party Payments,470101,Purchase of Care,02-Dec-2015,3057909-2279846,"1,865.32",EMBRACE ALL LTD.
Children and Adult Services,Head of Adults,Third Party Payments,470101,Purchase of Care,02-Dec-2015,3057909-2279861,"1,865.32",EMBRACE ALL LTD.
Children and Adult Services,Head of Adults,Third Party Payments,474101,Purchase of Care,02-Dec-2015,3057909-2279864,"1,958.48",EMBRACE ALL LTD.
Children and Adult Services,Head of Adults,Third Party Payments,471101,Purchase of Care,02-Dec-2015,3057909-2280150,"1,939.12",EMBRACE ALL LTD.
Children and Adult Services,Head of Adults,Third Party Payments,471101,Purchase of Care,02-Dec-2015,3057909-2280152,"1,939.12",EMBRACE ALL LTD.
Children and Adult Services,Head of Adults,Debtors,930134,Debtor Nursing Care - IC+ Time to Think,02-Dec-2015,3057909-2280312,"1,011.80",EMBRACE ALL LTD.
Children and Adult Services,Head of Adults,Third Party Payments,474101,Purchase of Care,02-Dec-2015,3057909-2280369,"1,958.48",EMBRACE ALL LTD.
Children and Adult Services,Head of Adults,Third Party Payments,471101,Purchase of Care,02-Dec-2015,3057909-2280376,"1,939.12",EMBRACE ALL LTD.
Children and Adult Services,Head of Adults,Third Party Payments,474101,Purchase of Care,02-Dec-2015,3057909-2280428,"1,958.48",EMBRACE ALL LTD.
Children and Adult Services,Head of Adults,Third Party Payments,470101,Purchase of Care,02-Dec-2015,3057909-2280469,"1,865.32",EMBRACE ALL LTD.
Children and Adult Services,Head of Adults,Third Party Payments,470101,Purchase of Care,02-Dec-2015,3057909-2280495,"1,865.32",EMBRACE ALL LTD.
Children and Adult Services,Head of Adults,Third Party Payments,470101,Purchase of Care,02-Dec-2015,3057909-2280868,"1,865.32",EMBRACE ALL LTD.
Children and Adult Services,Head of Adults,Third Party Payments,470101,Purchase of Care,02-Dec-2015,3057909-2280925,"1,929.60",EMBRACE ALL LTD.
Children and Adult Services,Head of Adults,Third Party Payments,474101,Purchase of Care,02-Dec-2015,3057909-2281200,"1,958.48",EMBRACE ALL LTD.
Children and Adult Services,Head of Adults,Debtors,930136,Debtor Nursing Care - IC+ Nursing,02-Dec-2015,3057909-2281231,794.98,EMBRACE ALL LTD.
Children and Adult Services,Head of Adults,Debtors,930136,Debtor Nursing Care - IC+ Nursing,02-Dec-2015,3057909-2281245,650.44,EMBRACE ALL LTD.
Children and Adult Services,Head of Adults,Third Party Payments,470101,Purchase of Care,02-Dec-2015,3057909-2281486,"1,865.32",EMBRACE ALL LTD.
Children and Adult Services,Head of Adults,Third Party Payments,470102,Purchase of Care,02-Dec-2015,3057909-2281694,"1,104.16",EMBRACE ALL LTD.
Children and Adult Services,Head of Adults,Debtors,930135,Debtor Residential Care - IC+ Rehabilitation,02-Dec-2015,3057909-2281696,"1,173.17",EMBRACE ALL LTD.
Children and Adult Services,Head of Adults,Third Party Payments,471101,Purchase of Care,02-Dec-2015,3057909-2281726,"1,939.12",EMBRACE ALL LTD.
Children and Adult Services,Head of Adults,Third Party Payments,474101,Purchase of Care,02-Dec-2015,3057909-2281729,"1,958.48",EMBRACE ALL LTD.
Children and Adult Services,Head of Adults,Third Party Payments,470101,Purchase of Care,02-Dec-2015,3057909-2281875,"1,732.08",EMBRACE ALL LTD.
Children and Adult Services,Head of Adults,Third Party Payments,470101,Purchase of Care,02-Dec-2015,3057909-2282013,"1,865.32",EMBRACE ALL LTD.
Children and Adult Services,Head of Adults,Third Party Payments,470101,Purchase of Care,02-Dec-2015,3057909-2282067,"1,865.32",EMBRACE ALL LTD.
Children and Adult Services,Head of Adults,Third Party Payments,470101,Purchase of Care,02-Dec-2015,3057909-2282214,932.66,EMBRACE ALL LTD.
Children and Adult Services,Head of Adults,Third Party Payments,470101,Purchase of Care,02-Dec-2015,3057909-2282251,"1,865.32",EMBRACE ALL LTD.
Children and Adult Services,Head of Adults,Third Party Payments,474101,Purchase of Care,02-Dec-2015,3057909-2282271,"1,958.48",EMBRACE ALL LTD.
Children and Adult Services,Head of Adults,Third Party Payments,470101,Purchase of Care,02-Dec-2015,3057909-2282316,"1,865.32",EMBRACE ALL LTD.
Children and Adult Services,Head of Adults,Third Party Payments,470101,Purchase of Care,02-Dec-2015,3057909-2283111,"1,798.70",EMBRACE ALL LTD.
Children and Adult Services,Head of Adults,Third Party Payments,470101,Purchase of Care,02-Dec-2015,3057910-2278390,"1,865.32",EMBRACE ALL LTD.
Children and Adult Services,Head of Adults,Third Party Payments,470101,Purchase of Care,02-Dec-2015,3057910-2278396,"1,865.32",EMBRACE ALL LTD.
Children and Adult Services,Head of Adults,Third Party Payments,470101,Purchase of Care,02-Dec-2015,3057910-2278556,"1,865.32",EMBRACE ALL LTD.
Children and Adult Services,Head of Adults,Third Party Payments,470101,Purchase of Care,02-Dec-2015,3057910-2278568,"1,865.32",EMBRACE ALL LTD.
Children and Adult Services,Head of Adults,Third Party Payments,470101,Purchase of Care,02-Dec-2015,3057910-2278600,"1,865.32",EMBRACE ALL LTD.
Children and Adult Services,Head of Adults,Third Party Payments,470101,Purchase of Care,02-Dec-2015,3057910-2278693,"1,865.32",EMBRACE ALL LTD.
Children and Adult Services,Head of Adults,Third Party Payments,470101,Purchase of Care,02-Dec-2015,3057910-2278708,"1,865.32",EMBRACE ALL LTD.
Children and Adult Services,Head of Adults,Third Party Payments,470101,Purchase of Care,02-Dec-2015,3057910-2278720,"1,865.32",EMBRACE ALL LTD.
Children and Adult Services,Head of Adults,Third Party Payments,470101,Purchase of Care,02-Dec-2015,3057910-2278793,"1,865.32",EMBRACE ALL LTD.
Children and Adult Services,Head of Adults,Third Party Payments,470101,Purchase of Care,02-Dec-2015,3057910-2278835,"1,865.32",EMBRACE ALL LTD.
Children and Adult Services,Head of Adults,Third Party Payments,470101,Purchase of Care,02-Dec-2015,3057910-2278911,"1,865.32",EMBRACE ALL LTD.
Children and Adult Services,Head of Adults,Third Party Payments,470101,Purchase of Care,02-Dec-2015,3057910-2278936,"1,865.32",EMBRACE ALL LTD.
Children and Adult Services,Head of Adults,Third Party Payments,470101,Purchase of Care,02-Dec-2015,3057910-2279446,"1,865.32",EMBRACE ALL LTD.
Children and Adult Services,Head of Adults,Third Party Payments,470101,Purchase of Care,02-Dec-2015,3057910-2279655,"1,865.32",EMBRACE ALL LTD.
Children and Adult Services,Head of Adults,Third Party Payments,470101,Purchase of Care,02-Dec-2015,3057910-2279939,"1,865.32",EMBRACE ALL LTD.
Children and Adult Services,Head of Adults,Third Party Payments,470101,Purchase of Care,02-Dec-2015,3057910-2280111,"1,865.32",EMBRACE ALL LTD.
Children and Adult Services,Head of Adults,Third Party Payments,470101,Purchase of Care,02-Dec-2015,3057910-2280112,"1,865.32",EMBRACE ALL LTD.
Children and Adult Services,Head of Adults,Third Party Payments,470101,Purchase of Care,02-Dec-2015,3057910-2280122,"1,865.32",EMBRACE ALL LTD.
Children and Adult Services,Head of Adults,Third Party Payments,471101,Purchase of Care,02-Dec-2015,3057910-2280338,"1,939.12",EMBRACE ALL LTD.
Children and Adult Services,Head of Adults,Third Party Payments,470101,Purchase of Care,02-Dec-2015,3057910-2280577,"1,865.32",EMBRACE ALL LTD.
Children and Adult Services,Head of Adults,Third Party Payments,471101,Purchase of Care,02-Dec-2015,3057910-2280734,"1,939.12",EMBRACE ALL LTD.
Children and Adult Services,Head of Adults,Third Party Payments,471101,Purchase of Care,02-Dec-2015,3057910-2280832,"2,770.17",EMBRACE ALL LTD.
Children and Adult Services,Head of Adults,Third Party Payments,470101,Purchase of Care,02-Dec-2015,3057910-2280866,"1,865.32",EMBRACE ALL LTD.
Children and Adult Services,Head of Adults,Third Party Payments,470101,Purchase of Care,02-Dec-2015,3057910-2281321,"1,865.32",EMBRACE ALL LTD.
Children and Adult Services,Head of Adults,Third Party Payments,471101,Purchase of Care,02-Dec-2015,3057910-2281488,"1,939.12",EMBRACE ALL LTD.
Children and Adult Services,Head of Adults,Third Party Payments,470101,Purchase of Care,02-Dec-2015,3057910-2281506,"1,865.32",EMBRACE ALL LTD.
Children and Adult Services,Head of Adults,Third Party Payments,470101,Purchase of Care,02-Dec-2015,3057910-2281583,"1,865.32",EMBRACE ALL LTD.
Children and Adult Services,Head of Adults,Third Party Payments,470101,Purchase of Care,02-Dec-2015,3057910-2282055,"1,865.32",EMBRACE ALL LTD.
Children and Adult Services,Head of Adults,Third Party Payments,470101,Purchase of Care,02-Dec-2015,3057910-2282177,"1,865.32",EMBRACE ALL LTD.
Children and Adult Services,Head of Adults,Third Party Payments,470101,Purchase of Care,02-Dec-2015,3057910-2282836,"17,149.62",EMBRACE ALL LTD.
Children and Adult Services,Head of Adults,Third Party Payments,470101,Purchase of Care,02-Dec-2015,3057910-2283086,"1,598.84",EMBRACE ALL LTD.
Children and Adult Services,Head of Adults,Third Party Payments,471101,Purchase of Care,02-Dec-2015,3057911-2278670,"2,043.64",EMBRACE ALL LTD.
Children and Adult Services,Head of Adults,Third Party Payments,470101,Purchase of Care,02-Dec-2015,3057911-2278674,"1,970.88",EMBRACE ALL LTD.
Children and Adult Services,Head of Adults,Third Party Payments,474101,Purchase of Care,02-Dec-2015,3057911-2278834,"1,032.04",EMBRACE ALL LTD.
Children and Adult Services,Head of Adults,Third Party Payments,471101,Purchase of Care,02-Dec-2015,3057911-2278895,"2,043.64",EMBRACE ALL LTD.
Children and Adult Services,Head of Adults,Third Party Payments,470101,Purchase of Care,02-Dec-2015,3057911-2279184,"1,970.88",EMBRACE ALL LTD.
Children and Adult Services,Head of Adults,Third Party Payments,471101,Purchase of Care,02-Dec-2015,3057911-2279301,"2,043.64",EMBRACE ALL LTD.
Children and Adult Services,Head of Adults,Third Party Payments,470101,Purchase of Care,02-Dec-2015,3057911-2279363,"1,970.88",EMBRACE ALL LTD.
Children and Adult Services,Head of Adults,Third Party Payments,471101,Purchase of Care,02-Dec-2015,3057911-2279589,"2,043.64",EMBRACE ALL LTD.
Children and Adult Services,Head of Adults,Third Party Payments,471101,Purchase of Care,02-Dec-2015,3057911-2279597,"2,043.64",EMBRACE ALL LTD.
Children and Adult Services,Head of Adults,Third Party Payments,474101,Purchase of Care,02-Dec-2015,3057911-2279672,"2,064.08",EMBRACE ALL LTD.
Children and Adult Services,Head of Adults,Third Party Payments,471101,Purchase of Care,02-Dec-2015,3057911-2279880,"2,043.64",EMBRACE ALL LTD.
Children and Adult Services,Head of Adults,Third Party Payments,474101,Purchase of Care,02-Dec-2015,3057911-2279887,"2,064.08",EMBRACE ALL LTD.
Children and Adult Services,Head of Adults,Third Party Payments,470101,Purchase of Care,02-Dec-2015,3057911-2280098,"1,970.88",EMBRACE ALL LTD.
Children and Adult Services,Head of Adults,Third Party Payments,470101,Purchase of Care,02-Dec-2015,3057911-2280137,"1,970.88",EMBRACE ALL LTD.
Children and Adult Services,Head of Adults,Debtors,930135,Debtor Residential Care - IC+ Rehabilitation,02-Dec-2015,3057911-2280309,828.12,EMBRACE ALL LTD.
Children and Adult Services,Head of Adults,Debtors,930135,Debtor Residential Care - IC+ Rehabilitation,02-Dec-2015,3057911-2280319,828.12,EMBRACE ALL LTD.
Children and Adult Services,Head of Adults,Third Party Payments,470101,Purchase of Care,02-Dec-2015,3057911-2280399,"1,970.88",EMBRACE ALL LTD.
Children and Adult Services,Head of Adults,Third Party Payments,470101,Purchase of Care,02-Dec-2015,3057911-2280532,"1,970.88",EMBRACE ALL LTD.
Children and Adult Services,Head of Adults,Third Party Payments,470101,Purchase of Care,02-Dec-2015,3057911-2280632,"1,970.88",EMBRACE ALL LTD.
Children and Adult Services,Head of Adults,Third Party Payments,474101,Purchase of Care,02-Dec-2015,3057911-2280796,"2,064.08",EMBRACE ALL LTD.
Children and Adult Services,Head of Adults,Third Party Payments,471101,Purchase of Care,02-Dec-2015,3057911-2280881,"2,043.64",EMBRACE ALL LTD.
Children and Adult Services,Head of Adults,Debtors,930135,Debtor Residential Care - IC+ Rehabilitation,02-Dec-2015,3057911-2280939,"1,449.21",EMBRACE ALL LTD.
Children and Adult Services,Head of Adults,Third Party Payments,474101,Purchase of Care,02-Dec-2015,3057911-2281045,"2,064.08",EMBRACE ALL LTD.
Children and Adult Services,Head of Adults,Third Party Payments,470101,Purchase of Care,02-Dec-2015,3057911-2281090,"1,970.88",EMBRACE ALL LTD.
Children and Adult Services,Head of Adults,Third Party Payments,470101,Purchase of Care,02-Dec-2015,3057911-2281188,"1,970.88",EMBRACE ALL LTD.
Children and Adult Services,Head of Adults,Debtors,930135,Debtor Residential Care - IC+ Rehabilitation,02-Dec-2015,3057911-2281233,"1,725.25",EMBRACE ALL LTD.
Children and Adult Services,Head of Adults,Debtors,930135,Debtor Residential Care - IC+ Rehabilitation,02-Dec-2015,3057911-2281277,759.11,EMBRACE ALL LTD.
Children and Adult Services,Head of Adults,Third Party Payments,474101,Purchase of Care,02-Dec-2015,3057911-2281503,"2,064.08",EMBRACE ALL LTD.
Children and Adult Services,Head of Adults,Third Party Payments,471101,Purchase of Care,02-Dec-2015,3057911-2281508,"2,043.64",EMBRACE ALL LTD.
Children and Adult Services,Head of Adults,Third Party Payments,471101,Purchase of Care,02-Dec-2015,3057911-2281578,"2,043.64",EMBRACE ALL LTD.
Children and Adult Services,Head of Adults,Third Party Payments,471101,Purchase of Care,02-Dec-2015,3057911-2281690,"2,043.64",EMBRACE ALL LTD.
Children and Adult Services,Head of Adults,Third Party Payments,470101,Purchase of Care,02-Dec-2015,3057911-2281713,"1,970.88",EMBRACE ALL LTD.
Children and Adult Services,Head of Adults,Debtors,930135,Debtor Residential Care - IC+ Rehabilitation,02-Dec-2015,3057911-2281753,"1,380.20",EMBRACE ALL LTD.
Children and Adult Services,Head of Adults,Third Party Payments,471101,Purchase of Care,02-Dec-2015,3057911-2281771,"2,043.64",EMBRACE ALL LTD.
Children and Adult Services,Head of Adults,Third Party Payments,474101,Purchase of Care,02-Dec-2015,3057911-2281820,"1,032.04",EMBRACE ALL LTD.
Children and Adult Services,Head of Adults,Debtors,930135,Debtor Residential Care - IC+ Rehabilitation,02-Dec-2015,3057911-2282024,"1,794.26",EMBRACE ALL LTD.
Children and Adult Services,Head of Adults,Third Party Payments,474101,Purchase of Care,02-Dec-2015,3057911-2282048,"2,064.08",EMBRACE ALL LTD.
Children and Adult Services,Head of Adults,Third Party Payments,470101,Purchase of Care,02-Dec-2015,3057911-2282054,"1,970.88",EMBRACE ALL LTD.
Children and Adult Services,Head of Adults,Third Party Payments,471101,Purchase of Care,02-Dec-2015,3057911-2282058,"2,043.64",EMBRACE ALL LTD.
Children and Adult Services,Head of Adults,Debtors,930135,Debtor Residential Care - IC+ Rehabilitation,02-Dec-2015,3057911-2282089,690.10,EMBRACE ALL LTD.
Children and Adult Services,Head of Adults,Debtors,930135,Debtor Residential Care - IC+ Rehabilitation,02-Dec-2015,3057911-2282195,828.12,EMBRACE ALL LTD.
Children and Adult Services,Head of Adults,Debtors,930135,Debtor Residential Care - IC+ Rehabilitation,02-Dec-2015,3057911-2282282,"1,104.16",EMBRACE ALL LTD.
Children and Adult Services,Head of Adults,Third Party Payments,474101,Purchase of Care,02-Dec-2015,3057911-2282327,"2,064.08",EMBRACE ALL LTD.
Children and Adult Services,Head of Adults,Third Party Payments,470102,Purchase of Care,02-Dec-2015,3057911-2282649,"1,449.21",EMBRACE ALL LTD.
Children and Adult Services,Head of Adults,Third Party Payments,470102,Purchase of Care,02-Dec-2015,3057911-2282650,"1,449.21",EMBRACE ALL LTD.
Children and Adult Services,Head of Adults,Third Party Payments,470101,Purchase of Care,02-Dec-2015,3057912-2278474,"1,491.20",EMBRACE ALL LTD.
Children and Adult Services,Head of Adults,Third Party Payments,474101,Purchase of Care,02-Dec-2015,3057912-2278865,"2,086.40",EMBRACE ALL LTD.
Children and Adult Services,Head of Adults,Third Party Payments,470101,Purchase of Care,02-Dec-2015,3057912-2278980,"1,186.00",EMBRACE ALL LTD.
Children and Adult Services,Head of Adults,Third Party Payments,474101,Purchase of Care,02-Dec-2015,3057912-2279427,"2,086.40",EMBRACE ALL LTD.
Children and Adult Services,Head of Adults,Third Party Payments,474101,Purchase of Care,02-Dec-2015,3057912-2280561,"1,403.96",EMBRACE ALL LTD.
Children and Adult Services,Head of Adults,Third Party Payments,470101,Purchase of Care,02-Dec-2015,3057913-2279036,"1,917.24",EOTHEN.
Children and Adult Services,Head of Adults,Third Party Payments,470101,Purchase of Care,02-Dec-2015,3057914-2279138,"9,611.92",ESPA LTD.
Children and Adult Services,Head of Adults,Third Party Payments,470101,Purchase of Care,02-Dec-2015,3057914-2279139,"7,888.80",ESPA LTD.
Children and Adult Services,Head of Adults,Third Party Payments,470101,Purchase of Care,02-Dec-2015,3057914-2279140,"4,747.08",ESPA LTD.
Children and Adult Services,Head of Adults,Third Party Payments,470101,Purchase of Care,02-Dec-2015,3057914-2279141,"4,743.08",ESPA LTD.
Children and Adult Services,Head of Adults,Third Party Payments,470101,Purchase of Care,02-Dec-2015,3057914-2279142,"6,489.92",ESPA LTD.
Children and Adult Services,Head of Adults,Third Party Payments,470101,Purchase of Care,02-Dec-2015,3057914-2281584,"4,743.08",ESPA LTD.
Children and Adult Services,Head of Adults,Third Party Payments,470101,Purchase of Care,02-Dec-2015,3057915-2278475,"1,970.88",FIELD VIEW CARE HOME.
Children and Adult Services,Head of Adults,Third Party Payments,470101,Purchase of Care,02-Dec-2015,3057915-2278490,"1,970.88",FIELD VIEW CARE HOME.
Children and Adult Services,Head of Adults,Third Party Payments,470101,Purchase of Care,02-Dec-2015,3057915-2278883,"1,970.88",FIELD VIEW CARE HOME.
Children and Adult Services,Head of Adults,Third Party Payments,470101,Purchase of Care,02-Dec-2015,3057915-2278960,"1,970.88",FIELD VIEW CARE HOME.
Children and Adult Services,Head of Adults,Third Party Payments,470101,Purchase of Care,02-Dec-2015,3057915-2279479,"1,970.88",FIELD VIEW CARE HOME.
Children and Adult Services,Head of Adults,Third Party Payments,470101,Purchase of Care,02-Dec-2015,3057915-2279553,"1,970.88",FIELD VIEW CARE HOME.
Children and Adult Services,Head of Adults,Third Party Payments,470101,Purchase of Care,02-Dec-2015,3057915-2279639,"1,970.88",FIELD VIEW CARE HOME.
Children and Adult Services,Head of Adults,Third Party Payments,470101,Purchase of Care,02-Dec-2015,3057915-2279703,"1,970.88",FIELD VIEW CARE HOME.
Children and Adult Services,Head of Adults,Third Party Payments,470101,Purchase of Care,02-Dec-2015,3057915-2279755,"1,970.88",FIELD VIEW CARE HOME.
Children and Adult Services,Head of Adults,Third Party Payments,471101,Purchase of Care,02-Dec-2015,3057915-2279815,"2,043.64",FIELD VIEW CARE HOME.
Children and Adult Services,Head of Adults,Third Party Payments,470101,Purchase of Care,02-Dec-2015,3057915-2280110,"1,970.88",FIELD VIEW CARE HOME.
Children and Adult Services,Head of Adults,Third Party Payments,470101,Purchase of Care,02-Dec-2015,3057915-2280186,"1,970.88",FIELD VIEW CARE HOME.
Children and Adult Services,Head of Adults,Third Party Payments,470101,Purchase of Care,02-Dec-2015,3057915-2280263,"1,970.88",FIELD VIEW CARE HOME.
Children and Adult Services,Head of Adults,Third Party Payments,471101,Purchase of Care,02-Dec-2015,3057915-2280341,"2,043.64",FIELD VIEW CARE HOME.
Children and Adult Services,Head of Adults,Third Party Payments,470101,Purchase of Care,02-Dec-2015,3057915-2280492,"1,970.88",FIELD VIEW CARE HOME.
Children and Adult Services,Head of Adults,Third Party Payments,470101,Purchase of Care,02-Dec-2015,3057915-2280494,"1,970.88",FIELD VIEW CARE HOME.
Children and Adult Services,Head of Adults,Third Party Payments,470101,Purchase of Care,02-Dec-2015,3057915-2281038,985.44,FIELD VIEW CARE HOME.
Children and Adult Services,Head of Adults,Third Party Payments,471101,Purchase of Care,02-Dec-2015,3057915-2281124,"2,043.64",FIELD VIEW CARE HOME.
Children and Adult Services,Head of Adults,Third Party Payments,470101,Purchase of Care,02-Dec-2015,3057915-2281324,"1,970.88",FIELD VIEW CARE HOME.
Children and Adult Services,Head of Adults,Third Party Payments,471101,Purchase of Care,02-Dec-2015,3057915-2281345,"2,043.64",FIELD VIEW CARE HOME.
Children and Adult Services,Head of Adults,Third Party Payments,470101,Purchase of Care,02-Dec-2015,3057915-2281394,"1,970.88",FIELD VIEW CARE HOME.
Children and Adult Services,Head of Adults,Third Party Payments,470101,Purchase of Care,02-Dec-2015,3057915-2281516,"1,970.88",FIELD VIEW CARE HOME.
Children and Adult Services,Head of Adults,Third Party Payments,470101,Purchase of Care,02-Dec-2015,3057915-2281582,"1,970.88",FIELD VIEW CARE HOME.
Children and Adult Services,Head of Adults,Third Party Payments,470101,Purchase of Care,02-Dec-2015,3057915-2281784,"1,970.88",FIELD VIEW CARE HOME.
Children and Adult Services,Head of Adults,Third Party Payments,470101,Purchase of Care,02-Dec-2015,3057915-2281895,"1,970.88",FIELD VIEW CARE HOME.
Children and Adult Services,Head of Adults,Third Party Payments,470101,Purchase of Care,02-Dec-2015,3057915-2282241,"1,970.88",FIELD VIEW CARE HOME.
Children and Adult Services,Head of Adults,Third Party Payments,471101,Purchase of Care,02-Dec-2015,3057915-2282751,"2,043.64",FIELD VIEW CARE HOME.
Children and Adult Services,Head of Adults,Third Party Payments,471101,Purchase of Care,02-Dec-2015,3057915-2282897,802.85,FIELD VIEW CARE HOME.
Children and Adult Services,Head of Adults,Third Party Payments,474101,Purchase of Care,02-Dec-2015,3057916-2280513,"1,738.68",FOUR SEASONS HEALTH CARE..
Children and Adult Services,Head of Adults,Third Party Payments,474101,Purchase of Care,02-Dec-2015,3057917-2278398,"2,136.00",FOUR SEASONS HEALTH CARE..
Children and Adult Services,Head of Adults,Third Party Payments,474101,Purchase of Care,02-Dec-2015,3057917-2278460,"2,373.64",FOUR SEASONS HEALTH CARE..
Children and Adult Services,Head of Adults,Third Party Payments,470101,Purchase of Care,02-Dec-2015,3057917-2278489,"1,865.32",FOUR SEASONS HEALTH CARE..
Children and Adult Services,Head of Adults,Third Party Payments,470101,Purchase of Care,02-Dec-2015,3057917-2278707,"1,865.32",FOUR SEASONS HEALTH CARE..
Children and Adult Services,Head of Adults,Third Party Payments,474101,Purchase of Care,02-Dec-2015,3057917-2278856,"1,958.48",FOUR SEASONS HEALTH CARE..
Children and Adult Services,Head of Adults,Third Party Payments,470101,Purchase of Care,02-Dec-2015,3057917-2278955,"1,865.32",FOUR SEASONS HEALTH CARE..
Children and Adult Services,Head of Adults,Third Party Payments,470101,Purchase of Care,02-Dec-2015,3057917-2278967,"1,865.32",FOUR SEASONS HEALTH CARE..
Children and Adult Services,Head of Adults,Third Party Payments,470101,Purchase of Care,02-Dec-2015,3057917-2279074,"1,865.32",FOUR SEASONS HEALTH CARE..
Children and Adult Services,Head of Adults,Third Party Payments,470101,Purchase of Care,02-Dec-2015,3057917-2279405,"1,865.32",FOUR SEASONS HEALTH CARE..
Children and Adult Services,Head of Adults,Third Party Payments,474101,Purchase of Care,02-Dec-2015,3057917-2279464,"1,958.48",FOUR SEASONS HEALTH CARE..
Children and Adult Services,Head of Adults,Third Party Payments,474101,Purchase of Care,02-Dec-2015,3057917-2279508,"1,958.48",FOUR SEASONS HEALTH CARE..
Children and Adult Services,Head of Adults,Third Party Payments,474101,Purchase of Care,02-Dec-2015,3057917-2280505,"1,958.48",FOUR SEASONS HEALTH CARE..
Children and Adult Services,Head of Adults,Third Party Payments,474101,Purchase of Care,02-Dec-2015,3057917-2280821,"1,958.48",FOUR SEASONS HEALTH CARE..
Children and Adult Services,Head of Adults,Third Party Payments,470101,Purchase of Care,02-Dec-2015,3057917-2280930,"1,865.32",FOUR SEASONS HEALTH CARE..
Children and Adult Services,Head of Adults,Debtors,930135,Debtor Residential Care - IC+ Rehabilitation,02-Dec-2015,3057917-2281294,621.09,FOUR SEASONS HEALTH CARE..
Children and Adult Services,Head of Adults,Third Party Payments,474101,Purchase of Care,02-Dec-2015,3057917-2281338,"1,958.48",FOUR SEASONS HEALTH CARE..
Children and Adult Services,Head of Adults,Third Party Payments,470101,Purchase of Care,02-Dec-2015,3057917-2281748,"1,865.32",FOUR SEASONS HEALTH CARE..
Children and Adult Services,Head of Adults,Third Party Payments,470101,Purchase of Care,02-Dec-2015,3057917-2282051,"1,865.32",FOUR SEASONS HEALTH CARE..
Children and Adult Services,Head of Adults,Third Party Payments,470101,Purchase of Care,02-Dec-2015,3057917-2282156,"1,865.32",FOUR SEASONS HEALTH CARE..
Children and Adult Services,Head of Adults,Third Party Payments,474101,Purchase of Care,02-Dec-2015,3057917-2282318,"1,958.48",FOUR SEASONS HEALTH CARE..
Children and Adult Services,Head of Adults,Third Party Payments,470101,Purchase of Care,02-Dec-2015,3057917-2282415,"1,865.32",FOUR SEASONS HEALTH CARE..
Children and Adult Services,Head of Adults,Third Party Payments,470101,Purchase of Care,02-Dec-2015,3057918-2278604,"1,159.00",FOUR SEASONS HEALTH CARE..
Children and Adult Services,Head of Adults,Third Party Payments,471101,Purchase of Care,02-Dec-2015,3057918-2278706,"1,876.00",FOUR SEASONS HEALTH CARE..
Children and Adult Services,Head of Adults,Third Party Payments,470101,Purchase of Care,02-Dec-2015,3057918-2281960,572.14,FOUR SEASONS HEALTH CARE..
Children and Adult Services,Head of Adults,Third Party Payments,474101,Purchase of Care,02-Dec-2015,3057919-2278924,"2,064.08",GAINFORD CARE HOMES LTD.
Children and Adult Services,Head of Adults,Third Party Payments,470101,Purchase of Care,02-Dec-2015,3057919-2278926,"1,970.88",GAINFORD CARE HOMES LTD.
Children and Adult Services,Head of Adults,Third Party Payments,471101,Purchase of Care,02-Dec-2015,3057919-2279000,"2,043.64",GAINFORD CARE HOMES LTD.
Children and Adult Services,Head of Adults,Third Party Payments,471101,Purchase of Care,02-Dec-2015,3057919-2279056,"2,043.64",GAINFORD CARE HOMES LTD.
Children and Adult Services,Head of Adults,Third Party Payments,474101,Purchase of Care,02-Dec-2015,3057919-2279094,"2,064.08",GAINFORD CARE HOMES LTD.
Children and Adult Services,Head of Adults,Third Party Payments,474101,Purchase of Care,02-Dec-2015,3057919-2279110,"1,189.92",GAINFORD CARE HOMES LTD.
Children and Adult Services,Head of Adults,Third Party Payments,470101,Purchase of Care,02-Dec-2015,3057919-2279177,"1,970.88",GAINFORD CARE HOMES LTD.
Children and Adult Services,Head of Adults,Third Party Payments,471101,Purchase of Care,02-Dec-2015,3057919-2279199,"2,043.64",GAINFORD CARE HOMES LTD.
Children and Adult Services,Head of Adults,Third Party Payments,470101,Purchase of Care,02-Dec-2015,3057919-2279201,"1,970.88",GAINFORD CARE HOMES LTD.
Children and Adult Services,Head of Adults,Third Party Payments,470101,Purchase of Care,02-Dec-2015,3057919-2279254,"1,970.88",GAINFORD CARE HOMES LTD.
Children and Adult Services,Head of Adults,Third Party Payments,471101,Purchase of Care,02-Dec-2015,3057919-2279259,"2,043.64",GAINFORD CARE HOMES LTD.
Children and Adult Services,Head of Adults,Third Party Payments,471101,Purchase of Care,02-Dec-2015,3057919-2279264,"2,043.64",GAINFORD CARE HOMES LTD.
Children and Adult Services,Head of Adults,Third Party Payments,471101,Purchase of Care,02-Dec-2015,3057919-2279428,"2,043.64",GAINFORD CARE HOMES LTD.
Children and Adult Services,Head of Adults,Third Party Payments,471101,Purchase of Care,02-Dec-2015,3057919-2279468,"2,043.64",GAINFORD CARE HOMES LTD.
Children and Adult Services,Head of Adults,Third Party Payments,470101,Purchase of Care,02-Dec-2015,3057919-2279520,"1,970.88",GAINFORD CARE HOMES LTD.
Children and Adult Services,Head of Adults,Third Party Payments,474101,Purchase of Care,02-Dec-2015,3057919-2279611,"1,032.04",GAINFORD CARE HOMES LTD.
Children and Adult Services,Head of Adults,Third Party Payments,470101,Purchase of Care,02-Dec-2015,3057919-2279632,"1,970.88",GAINFORD CARE HOMES LTD.
Children and Adult Services,Head of Adults,Third Party Payments,470101,Purchase of Care,02-Dec-2015,3057919-2280315,"1,900.49",GAINFORD CARE HOMES LTD.
Children and Adult Services,Head of Adults,Third Party Payments,474101,Purchase of Care,02-Dec-2015,3057919-2280354,"2,064.08",GAINFORD CARE HOMES LTD.
Children and Adult Services,Head of Adults,Third Party Payments,474101,Purchase of Care,02-Dec-2015,3057919-2280612,"2,064.08",GAINFORD CARE HOMES LTD.
Children and Adult Services,Head of Adults,Third Party Payments,471101,Purchase of Care,02-Dec-2015,3057919-2280740,"2,043.64",GAINFORD CARE HOMES LTD.
Children and Adult Services,Head of Adults,Third Party Payments,470101,Purchase of Care,02-Dec-2015,3057919-2280810,"1,970.88",GAINFORD CARE HOMES LTD.
Children and Adult Services,Head of Adults,Third Party Payments,470101,Purchase of Care,02-Dec-2015,3057919-2281214,"1,970.88",GAINFORD CARE HOMES LTD.
Children and Adult Services,Head of Adults,Third Party Payments,470101,Purchase of Care,02-Dec-2015,3057919-2281267,"1,337.38",GAINFORD CARE HOMES LTD.
Children and Adult Services,Head of Adults,Third Party Payments,471101,Purchase of Care,02-Dec-2015,3057919-2281359,"2,043.64",GAINFORD CARE HOMES LTD.
Children and Adult Services,Head of Adults,Third Party Payments,470101,Purchase of Care,02-Dec-2015,3057919-2281379,"1,970.88",GAINFORD CARE HOMES LTD.
Children and Adult Services,Head of Adults,Third Party Payments,474101,Purchase of Care,02-Dec-2015,3057919-2281416,"2,064.08",GAINFORD CARE HOMES LTD.
Children and Adult Services,Head of Adults,Third Party Payments,474101,Purchase of Care,02-Dec-2015,3057919-2281529,"2,064.08",GAINFORD CARE HOMES LTD.
Children and Adult Services,Head of Adults,Third Party Payments,474101,Purchase of Care,02-Dec-2015,3057919-2281560,"2,064.08",GAINFORD CARE HOMES LTD.
Children and Adult Services,Head of Adults,Third Party Payments,471101,Purchase of Care,02-Dec-2015,3057919-2281571,"2,043.64",GAINFORD CARE HOMES LTD.
Children and Adult Services,Head of Adults,Third Party Payments,471101,Purchase of Care,02-Dec-2015,3057919-2281804,"1,021.80",GAINFORD CARE HOMES LTD.
Children and Adult Services,Head of Adults,Third Party Payments,474101,Purchase of Care,02-Dec-2015,3057919-2282193,"2,064.08",GAINFORD CARE HOMES LTD.
Children and Adult Services,Head of Adults,Third Party Payments,474101,Purchase of Care,02-Dec-2015,3057919-2282325,"2,064.08",GAINFORD CARE HOMES LTD.
Children and Adult Services,Head of Adults,Third Party Payments,474101,Purchase of Care,02-Dec-2015,3057919-2283133,"1,474.34",GAINFORD CARE HOMES LTD.
Children and Adult Services,Head of Adults,Third Party Payments,470101,Purchase of Care,02-Dec-2015,3057919-2283135,"1,055.82",GAINFORD CARE HOMES LTD.
Children and Adult Services,Head of Adults,Third Party Payments,474101,Purchase of Care,02-Dec-2015,3057920-2278593,"1,958.48",GAINFORD CARE HOMES LTD.
Children and Adult Services,Head of Adults,Third Party Payments,471101,Purchase of Care,02-Dec-2015,3057920-2278621,"1,939.12",GAINFORD CARE HOMES LTD.
Children and Adult Services,Head of Adults,Third Party Payments,471101,Purchase of Care,02-Dec-2015,3057920-2278964,"1,939.12",GAINFORD CARE HOMES LTD.
Children and Adult Services,Head of Adults,Third Party Payments,471101,Purchase of Care,02-Dec-2015,3057920-2279019,"1,939.12",GAINFORD CARE HOMES LTD.
Children and Adult Services,Head of Adults,Third Party Payments,471101,Purchase of Care,02-Dec-2015,3057920-2279396,"1,939.12",GAINFORD CARE HOMES LTD.
Children and Adult Services,Head of Adults,Third Party Payments,471101,Purchase of Care,02-Dec-2015,3057920-2279534,"1,939.12",GAINFORD CARE HOMES LTD.
Children and Adult Services,Head of Adults,Third Party Payments,471101,Purchase of Care,02-Dec-2015,3057920-2279559,"1,939.12",GAINFORD CARE HOMES LTD.
Children and Adult Services,Head of Adults,Third Party Payments,471101,Purchase of Care,02-Dec-2015,3057920-2279572,"1,939.12",GAINFORD CARE HOMES LTD.
Children and Adult Services,Head of Adults,Third Party Payments,471101,Purchase of Care,02-Dec-2015,3057920-2279588,"1,939.12",GAINFORD CARE HOMES LTD.
Children and Adult Services,Head of Adults,Third Party Payments,471101,Purchase of Care,02-Dec-2015,3057920-2279747,"1,939.12",GAINFORD CARE HOMES LTD.
Children and Adult Services,Head of Adults,Third Party Payments,474101,Purchase of Care,02-Dec-2015,3057920-2279795,"1,958.48",GAINFORD CARE HOMES LTD.
Children and Adult Services,Head of Adults,Third Party Payments,474101,Purchase of Care,02-Dec-2015,3057920-2279818,"1,320.00",GAINFORD CARE HOMES LTD.
Children and Adult Services,Head of Adults,Third Party Payments,471101,Purchase of Care,02-Dec-2015,3057920-2280435,"1,939.12",GAINFORD CARE HOMES LTD.
Children and Adult Services,Head of Adults,Third Party Payments,470101,Purchase of Care,02-Dec-2015,3057920-2280484,"1,865.32",GAINFORD CARE HOMES LTD.
Children and Adult Services,Head of Adults,Third Party Payments,471101,Purchase of Care,02-Dec-2015,3057920-2280581,969.56,GAINFORD CARE HOMES LTD.
Children and Adult Services,Head of Adults,Third Party Payments,470101,Purchase of Care,02-Dec-2015,3057920-2280591,532.94,GAINFORD CARE HOMES LTD.
Children and Adult Services,Head of Adults,Third Party Payments,470101,Purchase of Care,02-Dec-2015,3057920-2280664,932.66,GAINFORD CARE HOMES LTD.
Children and Adult Services,Head of Adults,Third Party Payments,471101,Purchase of Care,02-Dec-2015,3057920-2280965,"1,939.12",GAINFORD CARE HOMES LTD.
Children and Adult Services,Head of Adults,Third Party Payments,474101,Purchase of Care,02-Dec-2015,3057920-2281099,"1,958.48",GAINFORD CARE HOMES LTD.
Children and Adult Services,Head of Adults,Third Party Payments,474101,Purchase of Care,02-Dec-2015,3057920-2281168,"1,958.48",GAINFORD CARE HOMES LTD.
Children and Adult Services,Head of Adults,Third Party Payments,471101,Purchase of Care,02-Dec-2015,3057920-2281337,"1,939.12",GAINFORD CARE HOMES LTD.
Children and Adult Services,Head of Adults,Third Party Payments,474101,Purchase of Care,02-Dec-2015,3057920-2281475,979.24,GAINFORD CARE HOMES LTD.
Children and Adult Services,Head of Adults,Third Party Payments,474101,Purchase of Care,02-Dec-2015,3057920-2281595,"1,958.48",GAINFORD CARE HOMES LTD.
Children and Adult Services,Head of Adults,Third Party Payments,474101,Purchase of Care,02-Dec-2015,3057920-2281806,979.24,GAINFORD CARE HOMES LTD.
Children and Adult Services,Head of Adults,Third Party Payments,471101,Purchase of Care,02-Dec-2015,3057920-2281816,969.56,GAINFORD CARE HOMES LTD.
Children and Adult Services,Head of Adults,Third Party Payments,474101,Purchase of Care,02-Dec-2015,3057920-2281946,979.24,GAINFORD CARE HOMES LTD.
Children and Adult Services,Head of Adults,Third Party Payments,474101,Purchase of Care,02-Dec-2015,3057920-2281999,"1,958.48",GAINFORD CARE HOMES LTD.
Children and Adult Services,Head of Adults,Third Party Payments,474101,Purchase of Care,02-Dec-2015,3057920-2282000,"3,934.56",GAINFORD CARE HOMES LTD.
Children and Adult Services,Head of Adults,Third Party Payments,471101,Purchase of Care,02-Dec-2015,3057920-2282090,"2,354.65",GAINFORD CARE HOMES LTD.
Children and Adult Services,Head of Adults,Third Party Payments,471101,Purchase of Care,02-Dec-2015,3057920-2282113,"1,939.12",GAINFORD CARE HOMES LTD.
Children and Adult Services,Head of Adults,Third Party Payments,471101,Purchase of Care,02-Dec-2015,3057920-2282187,"1,939.12",GAINFORD CARE HOMES LTD.
Children and Adult Services,Head of Adults,Third Party Payments,471101,Purchase of Care,02-Dec-2015,3057920-2282301,969.56,GAINFORD CARE HOMES LTD.
Children and Adult Services,Head of Adults,Third Party Payments,474101,Purchase of Care,02-Dec-2015,3057920-2282313,979.24,GAINFORD CARE HOMES LTD.
Children and Adult Services,Head of Adults,Third Party Payments,474101,Purchase of Care,02-Dec-2015,3057920-2282459,"3,427.34",GAINFORD CARE HOMES LTD.
Children and Adult Services,Central/Other,Debtors,930024,Debtor-free nursing care,02-Dec-2015,3057920-2282460,"1,568.00",GAINFORD CARE HOMES LTD.
Children and Adult Services,Head of Adults,Third Party Payments,474101,Purchase of Care,02-Dec-2015,3057920-2282849,699.45,GAINFORD CARE HOMES LTD.
Children and Adult Services,Head of Adults,Third Party Payments,471101,Purchase of Care,02-Dec-2015,3057920-2282867,"1,939.12",GAINFORD CARE HOMES LTD.
Children and Adult Services,Head of Adults,Third Party Payments,471101,Purchase of Care,02-Dec-2015,3057920-2283094,"1,662.10",GAINFORD CARE HOMES LTD.
Children and Adult Services,Head of Adults,Third Party Payments,474101,Purchase of Care,02-Dec-2015,3057920-2283095,"1,119.13",GAINFORD CARE HOMES LTD.
Children and Adult Services,Head of Adults,Third Party Payments,471101,Purchase of Care,02-Dec-2015,3057920-2283153,"1,939.12",GAINFORD CARE HOMES LTD.
Children and Adult Services,Head of Adults,Third Party Payments,471101,Purchase of Care,02-Dec-2015,3057921-2278839,"1,908.00",GAINFORD CARE HOMES LTD.
Children and Adult Services,Head of Adults,Third Party Payments,471101,Purchase of Care,02-Dec-2015,3057921-2279012,954.00,GAINFORD CARE HOMES LTD.
Children and Adult Services,Head of Adults,Third Party Payments,474101,Purchase of Care,02-Dec-2015,3057921-2279667,"1,196.00",GAINFORD CARE HOMES LTD.
Children and Adult Services,Head of Adults,Third Party Payments,474101,Purchase of Care,02-Dec-2015,3057921-2279681,"1,944.00",GAINFORD CARE HOMES LTD.
Children and Adult Services,Head of Adults,Third Party Payments,474101,Purchase of Care,02-Dec-2015,3057921-2279744,"1,944.00",GAINFORD CARE HOMES LTD.
Children and Adult Services,Head of Adults,Third Party Payments,474101,Purchase of Care,02-Dec-2015,3057921-2280123,"1,924.00",GAINFORD CARE HOMES LTD.
Children and Adult Services,Head of Adults,Third Party Payments,470101,Purchase of Care,02-Dec-2015,3057921-2280342,"1,844.00",GAINFORD CARE HOMES LTD.
Children and Adult Services,Head of Adults,Third Party Payments,474101,Purchase of Care,02-Dec-2015,3057921-2280620,"1,196.00",GAINFORD CARE HOMES LTD.
Children and Adult Services,Head of Adults,Third Party Payments,471101,Purchase of Care,02-Dec-2015,3057921-2281487,"2,081.57",GAINFORD CARE HOMES LTD.
Children and Adult Services,Head of Adults,Third Party Payments,474101,Purchase of Care,02-Dec-2015,3057921-2281735,972.00,GAINFORD CARE HOMES LTD.
Children and Adult Services,Head of Adults,Third Party Payments,474101,Purchase of Care,02-Dec-2015,3057921-2281750,"1,944.00",GAINFORD CARE HOMES LTD.
Children and Adult Services,Head of Adults,Third Party Payments,471101,Purchase of Care,02-Dec-2015,3057921-2282148,"1,908.00",GAINFORD CARE HOMES LTD.
Children and Adult Services,Head of Adults,Third Party Payments,474101,Purchase of Care,02-Dec-2015,3057921-2283131,"1,666.28",GAINFORD CARE HOMES LTD.
Children and Adult Services,Head of Adults,Third Party Payments,471101,Purchase of Care,02-Dec-2015,3057922-2279567,"2,047.16",GARDEN LODGE CARE HOME.
Children and Adult Services,Head of Adults,Third Party Payments,478101,Purchase of Care,02-Dec-2015,3057923-2281934,"1,436.40",REDACTED - PAYMENT TO INDIVIDUAL
Children and Adult Services,Head of Adults,Third Party Payments,471101,Purchase of Care,02-Dec-2015,3057924-2279149,"2,064.40",GRANGEWOOD CARE CENTRE.
Children and Adult Services,Head of Adults,Third Party Payments,471101,Purchase of Care,02-Dec-2015,3057924-2280876,"2,064.40",GRANGEWOOD CARE CENTRE.
Children and Adult Services,Head of Adults,Third Party Payments,470101,Purchase of Care,02-Dec-2015,3057924-2281117,"1,996.40",GRANGEWOOD CARE CENTRE.
Children and Adult Services,Head of Adults,Third Party Payments,471101,Purchase of Care,02-Dec-2015,3057924-2282959,"2,123.50",GRANGEWOOD CARE CENTRE.
Children and Adult Services,Head of Adults,Third Party Payments,471101,Purchase of Care,02-Dec-2015,3057925-2280140,"2,000.00",GREENACRES CARE CENTRE.
Children and Adult Services,Head of Adults,Third Party Payments,471101,Purchase of Care,02-Dec-2015,3057926-2272959,"1,984.00",GRETTON COURT NURSING HOME.
Children and Adult Services,Head of Adults,Third Party Payments,471101,Purchase of Care,02-Dec-2015,3057926-2278521,"2,024.00",GRETTON COURT NURSING HOME.
Children and Adult Services,Head of Adults,Third Party Payments,470101,Purchase of Care,02-Dec-2015,3057927-2278348,"7,325.40",GRETTON HOMES.
Children and Adult Services,Head of Adults,Third Party Payments,470101,Purchase of Care,02-Dec-2015,3057928-2278415,"1,649.08",GUARDIAN CARE HOMES (WEST) LTD.
Children and Adult Services,Head of Adults,Third Party Payments,474101,Purchase of Care,02-Dec-2015,3057928-2278696,"1,558.88",GUARDIAN CARE HOMES (WEST) LTD.
Children and Adult Services,Head of Adults,Third Party Payments,474101,Purchase of Care,02-Dec-2015,3057928-2278779,"1,532.88",GUARDIAN CARE HOMES (WEST) LTD.
Children and Adult Services,Head of Adults,Third Party Payments,470101,Purchase of Care,02-Dec-2015,3057928-2278808,"1,413.92",GUARDIAN CARE HOMES (WEST) LTD.
Children and Adult Services,Head of Adults,Third Party Payments,470101,Purchase of Care,02-Dec-2015,3057928-2278909,874.88,GUARDIAN CARE HOMES (WEST) LTD.
Children and Adult Services,Head of Adults,Third Party Payments,474101,Purchase of Care,02-Dec-2015,3057928-2279017,"1,584.56",GUARDIAN CARE HOMES (WEST) LTD.
Children and Adult Services,Head of Adults,Third Party Payments,474101,Purchase of Care,02-Dec-2015,3057928-2279021,"2,064.08",GUARDIAN CARE HOMES (WEST) LTD.
Children and Adult Services,Head of Adults,Third Party Payments,474101,Purchase of Care,02-Dec-2015,3057928-2279211,"1,523.96",GUARDIAN CARE HOMES (WEST) LTD.
Children and Adult Services,Head of Adults,Third Party Payments,471101,Purchase of Care,02-Dec-2015,3057928-2279454,"1,286.76",GUARDIAN CARE HOMES (WEST) LTD.
Children and Adult Services,Head of Adults,Third Party Payments,471101,Purchase of Care,02-Dec-2015,3057928-2279554,"1,512.28",GUARDIAN CARE HOMES (WEST) LTD.
Children and Adult Services,Head of Adults,Third Party Payments,470101,Purchase of Care,02-Dec-2015,3057928-2279665,"1,465.68",GUARDIAN CARE HOMES (WEST) LTD.
Children and Adult Services,Head of Adults,Third Party Payments,471101,Purchase of Care,02-Dec-2015,3057928-2279689,"1,538.44",GUARDIAN CARE HOMES (WEST) LTD.
Children and Adult Services,Head of Adults,Third Party Payments,474101,Purchase of Care,02-Dec-2015,3057928-2279862,"2,064.08",GUARDIAN CARE HOMES (WEST) LTD.
Children and Adult Services,Head of Adults,Third Party Payments,471101,Purchase of Care,02-Dec-2015,3057928-2279947,"1,217.96",GUARDIAN CARE HOMES (WEST) LTD.
Children and Adult Services,Head of Adults,Third Party Payments,471101,Purchase of Care,02-Dec-2015,3057928-2280030,"1,546.04",GUARDIAN CARE HOMES (WEST) LTD.
Children and Adult Services,Head of Adults,Third Party Payments,471101,Purchase of Care,02-Dec-2015,3057928-2280119,"1,021.84",GUARDIAN CARE HOMES (WEST) LTD.
Children and Adult Services,Head of Adults,Third Party Payments,471101,Purchase of Care,02-Dec-2015,3057928-2280204,"1,297.32",GUARDIAN CARE HOMES (WEST) LTD.
Children and Adult Services,Head of Adults,Third Party Payments,471101,Purchase of Care,02-Dec-2015,3057928-2280287,"2,043.64",GUARDIAN CARE HOMES (WEST) LTD.
Children and Adult Services,Head of Adults,Third Party Payments,471101,Purchase of Care,02-Dec-2015,3057928-2280339,"2,043.64",GUARDIAN CARE HOMES (WEST) LTD.
Children and Adult Services,Head of Adults,Third Party Payments,474101,Purchase of Care,02-Dec-2015,3057928-2280384,"2,386.16",GUARDIAN CARE HOMES (WEST) LTD.
Children and Adult Services,Central/Other,Debtors,930024,Debtor-free nursing care,02-Dec-2015,3057928-2280385,"1,344.00",GUARDIAN CARE HOMES (WEST) LTD.
Children and Adult Services,Head of Adults,Third Party Payments,471101,Purchase of Care,02-Dec-2015,3057928-2280636,948.83,GUARDIAN CARE HOMES (WEST) LTD.
Children and Adult Services,Head of Adults,Third Party Payments,474101,Purchase of Care,02-Dec-2015,3057928-2280745,"1,558.88",GUARDIAN CARE HOMES (WEST) LTD.
Children and Adult Services,Head of Adults,Third Party Payments,470101,Purchase of Care,02-Dec-2015,3057928-2280751,"1,030.00",GUARDIAN CARE HOMES (WEST) LTD.
Children and Adult Services,Head of Adults,Third Party Payments,470101,Purchase of Care,02-Dec-2015,3057928-2280807,"1,036.64",GUARDIAN CARE HOMES (WEST) LTD.
Children and Adult Services,Head of Adults,Third Party Payments,470101,Purchase of Care,02-Dec-2015,3057928-2280872,"1,216.36",GUARDIAN CARE HOMES (WEST) LTD.
Children and Adult Services,Head of Adults,Third Party Payments,470101,Purchase of Care,02-Dec-2015,3057928-2280943,"1,337.38",GUARDIAN CARE HOMES (WEST) LTD.
Children and Adult Services,Head of Adults,Third Party Payments,470101,Purchase of Care,02-Dec-2015,3057928-2280951,"2,674.77",GUARDIAN CARE HOMES (WEST) LTD.
Children and Adult Services,Head of Adults,Third Party Payments,471101,Purchase of Care,02-Dec-2015,3057928-2281113,"1,562.92",GUARDIAN CARE HOMES (WEST) LTD.
Children and Adult Services,Head of Adults,Third Party Payments,471101,Purchase of Care,02-Dec-2015,3057928-2281305,"2,043.64",GUARDIAN CARE HOMES (WEST) LTD.
Children and Adult Services,Head of Adults,Third Party Payments,471101,Purchase of Care,02-Dec-2015,3057928-2281444,"1,538.44",GUARDIAN CARE HOMES (WEST) LTD.
Children and Adult Services,Head of Adults,Third Party Payments,471101,Purchase of Care,02-Dec-2015,3057928-2281471,"1,000.68",GUARDIAN CARE HOMES (WEST) LTD.
Children and Adult Services,Head of Adults,Third Party Payments,470101,Purchase of Care,02-Dec-2015,3057928-2281477,720.16,GUARDIAN CARE HOMES (WEST) LTD.
Children and Adult Services,Head of Adults,Third Party Payments,474101,Purchase of Care,02-Dec-2015,3057928-2281626,"1,471.08",GUARDIAN CARE HOMES (WEST) LTD.
